Workbook

Sheet INICIO
C3: MINISTERIO DE SALUD | G3: CENTRO NACIONAL DE ALIMENTACIÓN Y NUTRICIÓN
C4: INSTITUTO NACIONAL DE SALUD | G4: DIRECCIÓN EJECUTIVA DE VIGILANCIA ALIMENTARIA Y NUTRICIONAL
C6: PERÚ: INDICADORES NUTRICIONALES EN NIÑOS EXTRANJEROS MENORES DE 3 Y 5 AÑOS
C7: SISTEMA DE INFORMACIÓN DEL ESTADO NUTRICIONAL
C8: PERIODO: ENERO A MARZO 2022
C10: 1 | D10: ESTADO NUTRICIONAL EN NIÑOS EXTRANJEROS MENORES DE 3 AÑOS SEGÚN DEPARTAMENTO DEL ESTABLECIMIENTO DE SALUD
C11: 2 | D11: ESTADO NUTRICIONAL EN NIÑOS EXTRANJEROS MENORES DE 3 AÑOS SEGÚN DIRESA/GERESA/DIRIS
C12: 3 | D12: ESTADO NUTRICIONAL EN NIÑOS EXTRANJEROS MENORES DE 3 AÑOS SEGÚN DEPARTAMENTO/PROVINCIA/DISTRITO DEL ESTABLECIMIENTO DE SALUD
C13: 4 | D13: ESTADO NUTRICIONAL EN NIÑOS EXTRANJEROS MENORES DE 5 AÑOS SEGÚN DEPARTAMENTO DEL ESTABLECIMIENTO DE SALUD
C14: 5 | D14: ESTADO NUTRICIONAL EN NIÑOS EXTRANJEROS MENORES DE 5 AÑOS SEGÚN DIRESA/GERESA/DIRIS
C15: 6 | D15: ESTADO NUTRICIONAL EN NIÑOS EXTRANJEROS MENORES DE 5 AÑOS SEGÚN DEPARTAMENTO/PROVINCIA/DISTRITO DEL ESTABLECIMIENTO DE SALUD
C16: 7 | D16: ANEMIA EN NIÑOS EXTRANJEROS ENTRE 6 A 35 MESES SEGÚN DEPARTAMENTO DEL ESTABLECIMIENTO DE SALUD
C17: 8 | D17: ANEMIA EN NIÑOS EXTRANJEROS ENTRE 6 A 35 MESES SEGÚN DIRESA/GERESA/DIRIS
C18: 9 | D18: ANEMIA EN NIÑOS EXTRANJEROS ENTRE 6 A 35 MESES SEGÚN DEPARTAMENTO/PROVINCIA/DISTRITO DEL ESTABLECIMIENTO DE SALUD
C19: 10 | D19: ANEMIA EN NIÑOS EXTRANJEROS ENTRE 6 A 59 MESES SEGÚN DEPARTAMENTO DEL ESTABLECIMIENTO DE SALUD
C20: 11 | D20: ANEMIA EN NIÑOS EXTRANJEROS ENTRE 6 A 59 MESES SEGÚN DIRESA/GERESA/DIRIS
C21: 12 | D21: ANEMIA EN NIÑOS EXTRANJEROS ENTRE 6 A 59 MESES SEGÚN DEPARTAMENTO/PROVINCIA/DISTRITO DEL ESTABLECIMIENTO DE SALUD

Sheet EN 0-35m x DEP
B2: CUADRO N°01 PERÚ: ESTADO NUTRICIONAL EN NIÑOS EXTRANJEROS MENORES DE 3 AÑOS QUE ACCEDIERON A LOS ESTABLECIMIENTOS DE SALUD POR INDICADORES ANTROPOMÉTRICOS, SEGÚN DEPARTAMENTO DEL ESTABLECIMIENTO DE SALUD
B3: =INICIO!C$8 -> PERIODO: ENERO A MARZO 2022
B5: DEPARTAMENTO | C5: INDICADOR TALLA / EDAD1 | I5: INDICADOR PESO / EDAD2 | L5: INDICADOR PESO / TALLA3
C6: N° DE EVALUADOS | D6: DESNUTRICIÓN CRÓNICA | F6: N° DE EVALUADOS | G6: RIESGO DE D. CRÓNICA4 | I6: N° DE EVALUADOS | J6: DESNUTRICIÓN GLOBAL | L6: N° DE EVALUADOS | M6: DESNUTRICIÓN AGUDA | O6: N° DE EVALUADOS | P6: RIESGO DE D. AGUDA | R6: SOBREPESO | T6: OBESIDAD
D7: N° DE CASOS | E7: % | G7: N° DE CASOS | H7: % | J7: N° DE CASOS | K7: % | M7: N° DE CASOS | N7: % | P7: N° DE CASOS | Q7: % | R7: N° DE CASOS | S7: % | T7: N° DE CASOS | U7: %
B8: AMAZONAS | C8: 1 | D8: 0 | E8: 0 | F8: 1 | G8: 0 | H8: 0 | I8: 1 | J8: 0 | K8: 0 | L8: 1 | M8: 0 | N8: 0 | O8: 1 | P8: 0 | Q8: 0 | R8: 0 | S8: 0 | T8: 0 | U8: 0
B9: ANCASH | C9: 11 | D9: 1 | E9: 9.090909091 | F9: 10 | G9: 3 | H9: 30 | I9: 11 | J9: 1 | K9: 9.090909091 | L9: 11 | M9: 1 | N9: 9.090909091 | O9: 9 | P9: 0 | Q9: 0 | R9: 1 | S9: 9.090909091 | T9: 0 | U9: 0
B10: APURIMAC | C10: 1 | D10: 0 | E10: 0 | F10: 1 | G10: 0 | H10: 0 | I10: 1 | J10: 0 | K10: 0 | L10: 1 | M10: 0 | N10: 0 | O10: 1 | P10: 0 | Q10: 0 | R10: 0 | S10: 0 | T10: 0 | U10: 0
B11: AREQUIPA | C11: 8 | D11: 0 | E11: 0 | F11: 8 | G11: 0 | H11: 0 | I11: 8 | J11: 0 | K11: 0 | L11: 8 | M11: 0 | N11: 0 | O11: 8 | P11: 3 | Q11: 37.5 | R11: 0 | S11: 0 | T11: 0 | U11: 0
B12: AYACUCHO | C12: 1 | D12: 0 | E12: 0 | F12: 1 | G12: 1 | H12: 100 | I12: 1 | J12: 0 | K12: 0 | L12: 1 | M12: 0 | N12: 0 | O12: 1 | P12: 0 | Q12: 0 | R12: 0 | S12: 0 | T12: 0 | U12: 0
B13: CAJAMARCA | C13: 1 | D13: 0 | E13: 0 | F13: 1 | G13: 0 | H13: 0 | I13: 1 | J13: 0 | K13: 0 | L13: 1 | M13: 0 | N13: 0 | O13: 1 | P13: 0 | Q13: 0 | R13: 0 | S13: 0 | T13: 0 | U13: 0
B14: CALLAO | C14: 15 | D14: 2 | E14: 13.33333333 | F14: 13 | G14: 7 | H14: 53.84615385 | I14: 15 | J14: 0 | K14: 0 | L14: 15 | M14: 0 | N14: 0 | O14: 14 | P14: 0 | Q14: 0 | R14: 1 | S14: 6.666666667 | T14: 0 | U14: 0
B15: CUSCO | C15: 2 | D15: 0 | E15: 0 | F15: 2 | G15: 1 | H15: 50 | I15: 2 | J15: 1 | K15: 50 | L15: 2 | M15: 1 | N15: 50 | O15: 1 | P15: 0 | Q15: 0 | R15: 0 | S15: 0 | T15: 0 | U15: 0
B16: HUANCAVELICA | C16: (SD) | D16: (SD) | E16: (SD) | F16: (SD) | G16: (SD) | H16: (SD) | I16: (SD) | J16: (SD) | K16: (SD) | L16: (SD) | M16: (SD) | N16: (SD) | O16: (SD) | P16: (SD) | Q16: (SD) | R16: (SD) | S16: (SD) | T16: (SD) | U16: (SD)
B17: HUANUCO | C17: (SD) | D17: (SD) | E17: (SD) | F17: (SD) | G17: (SD) | H17: (SD) | I17: (SD) | J17: (SD) | K17: (SD) | L17: (SD) | M17: (SD) | N17: (SD) | O17: (SD) | P17: (SD) | Q17: (SD) | R17: (SD) | S17: (SD) | T17: (SD) | U17: (SD)
B18: ICA | C18: 13 | D18: 0 | E18: 0 | F18: 13 | G18: 6 | H18: 46.15384615 | I18: 13 | J18: 0 | K18: 0 | L18: 13 | M18: 1 | N18: 7.692307692 | O18: 11 | P18: 2 | Q18: 18.18181818 | R18: 1 | S18: 7.692307692 | T18: 0 | U18: 0
B19: JUNIN | C19: 2 | D19: 1 | E19: 50 | F19: 1 | G19: 1 | H19: 100 | I19: 2 | J19: 0 | K19: 0 | L19: 2 | M19: 0 | N19: 0 | O19: 2 | P19: 0 | Q19: 0 | R19: 0 | S19: 0 | T19: 0 | U19: 0
B20: LA LIBERTAD | C20: 15 | D20: 2 | E20: 13.33333333 | F20: 13 | G20: 2 | H20: 15.38461538 | I20: 15 | J20: 0 | K20: 0 | L20: 15 | M20: 0 | N20: 0 | O20: 12 | P20: 1 | Q20: 8.333333333 | R20: 3 | S20: 20 | T20: 0 | U20: 0
B21: LAMBAYEQUE | C21: 2 | D21: 0 | E21: 0 | F21: 2 | G21: 0 | H21: 0 | I21: 2 | J21: 0 | K21: 0 | L21: 2 | M21: 0 | N21: 0 | O21: 2 | P21: 1 | Q21: 50 | R21: 0 | S21: 0 | T21: 0 | U21: 0
B22: LIMA | C22: 221 | D22: 23 | E22: 10.40723982 | F22: 198 | G22: 64 | H22: 32.32323232 | I22: 221 | J22: 13 | K22: 5.882352941 | L22: 221 | M22: 11 | N22: 4.977375566 | O22: 188 | P22: 25 | Q22: 13.29787234 | R22: 15 | S22: 6.787330317 | T22: 7 | U22: 3.167420814
B23: LORETO | C23: (SD) | D23: (SD) | E23: (SD) | F23: (SD) | G23: (SD) | H23: (SD) | I23: (SD) | J23: (SD) | K23: (SD) | L23: (SD) | M23: (SD) | N23: (SD) | O23: (SD) | P23: (SD) | Q23: (SD) | R23: (SD) | S23: (SD) | T23: (SD) | U23: (SD)
B24: MADRE DE DIOS | C24: (SD) | D24: (SD) | E24: (SD) | F24: (SD) | G24: (SD) | H24: (SD) | I24: (SD) | J24: (SD) | K24: (SD) | L24: (SD) | M24: (SD) | N24: (SD) | O24: (SD) | P24: (SD) | Q24: (SD) | R24: (SD) | S24: (SD) | T24: (SD) | U24: (SD)
B25: MOQUEGUA | C25: 1 | D25: 0 | E25: 0 | F25: 1 | G25: 0 | H25: 0 | I25: 1 | J25: 0 | K25: 0 | L25: 1 | M25: 0 | N25: 0 | O25: 1 | P25: 0 | Q25: 0 | R25: 0 | S25: 0 | T25: 0 | U25: 0
B26: PASCO | C26: (SD) | D26: (SD) | E26: (SD) | F26: (SD) | G26: (SD) | H26: (SD) | I26: (SD) | J26: (SD) | K26: (SD) | L26: (SD) | M26: (SD) | N26: (SD) | O26: (SD) | P26: (SD) | Q26: (SD) | R26: (SD) | S26: (SD) | T26: (SD) | U26: (SD)
B27: PIURA | C27: 11 | D27: 0 | E27: 0 | F27: 11 | G27: 4 | H27: 36.36363636 | I27: 11 | J27: 0 | K27: 0 | L27: 11 | M27: 0 | N27: 0 | O27: 11 | P27: 0 | Q27: 0 | R27: 0 | S27: 0 | T27: 0 | U27: 0
B28: PUNO | C28: 1 | D28: 0 | E28: 0 | F28: 1 | G28: 0 | H28: 0 | I28: 1 | J28: 0 | K28: 0 | L28: 1 | M28: 0 | N28: 0 | O28: 1 | P28: 0 | Q28: 0 | R28: 0 | S28: 0 | T28: 0 | U28: 0
B29: SAN MARTIN | C29: 2 | D29: 0 | E29: 0 | F29: 2 | G29: 1 | H29: 50 | I29: 2 | J29: 0 | K29: 0 | L29: 2 | M29: 0 | N29: 0 | O29: 1 | P29: 1 | Q29: 100 | R29: 1 | S29: 50 | T29: 0 | U29: 0
B30: TACNA | C30: 1 | D30: 1 | E30: 100 | F30: 0 | G30: 0 | H30: 0 | I30: 1 | J30: 1 | K30: 100 | L30: 1 | M30: 0 | N30: 0 | O30: 1 | P30: 1 | Q30: 100 | R30: 0 | S30: 0 | T30: 0 | U30: 0
B31: TUMBES | C31: 7 | D31: 1 | E31: 14.28571429 | F31: 6 | G31: 2 | H31: 33.33333333 | I31: 7 | J31: 0 | K31: 0 | L31: 7 | M31: 0 | N31: 0 | O31: 7 | P31: 1 | Q31: 14.28571429 | R31: 0 | S31: 0 | T31: 0 | U31: 0
B32: UCAYALI | C32: 1 | D32: 0 | E32: 0 | F32: 1 | G32: 1 | H32: 100 | I32: 1 | J32: 0 | K32: 0 | L32: 1 | M32: 0 | N32: 0 | O32: 1 | P32: 0 | Q32: 0 | R32: 0 | S32: 0 | T32: 0 | U32: 0
B33: PERÚ | C33: =SUM(C8:C32) -> 317 | D33: =SUM(D8:D32) -> 31 | E33: =D33/C33*100 -> 9.779179811 | F33: =SUM(F8:F32) -> 286 | G33: =SUM(G8:G32) -> 93 | H33: =G33/F33*100 -> 32.51748252 | I33: =SUM(I8:I32) -> 317 | J33: =SUM(J8:J32) -> 16 | K33: =J33/I33*100 -> 5.047318612 | L33: =SUM(L8:L32) -> 317 | M33: =SUM(M8:M32) -> 14 | N33: =M33/L33*100 -> 4.416403785 | O33: =SUM(O8:O32) -> 274 | P33: =SUM(P8:P32) -> 35 | Q33: =P33/O33*100 -> 12.77372263 | R33: =SUM(R8:R32) -> 22 | S33: =R33/L33*100 -> 6.940063091 | T33: =SUM(T8:T32) -> 7 | U33: =T33/L33*100 -> 2.208201893
B34: Fuente: Sistema de Información SIEN - HIS, 2022.
B35: Instituto Nacional de Salud / Centro Nacional de Alimentación y Nutrición / Dirección Ejecutiva de Vigilancia Alimentaria y Nutricional.
B36: 1,2,3 Indicadores Nitricionales según OMS.
B37: 4 Riesgo de Desnutrición Crónica (T/E)se considera a todo niño que se encuentra con valor -2 <= Z < -1
B38: (SD) Departamentos sin registro de NIÑOS EXTRANJEROS.

Sheet EN 0-35m x DIRESA
B2: CUADRO N°02 PERÚ: ESTADO NUTRICIONAL EN NIÑOS EXTRANJEROS MENORES DE 3 AÑOS QUE ACCEDIERON A LOS ESTABLECIMIENTOS DE SALUD POR INDICADORES ANTROPOMÉTRICOS, SEGÚN DIRESA / GERESA / DIRIS
B3: =INICIO!C$8 -> PERIODO: ENERO A MARZO 2022
B5: DIRESA / GERESA / DIRIS | C5: INDICADOR TALLA / EDAD1 | I5: INDICADOR PESO / EDAD2 | L5: INDICADOR PESO / TALLA3
C6: N° DE EVALUADOS | D6: DESNUTRICIÓN CRÓNICA | F6: N° DE EVALUADOS | G6: RIESGO DE D. CRÓNICA4 | I6: N° DE EVALUADOS | J6: DESNUTRICIÓN GLOBAL | L6: N° DE EVALUADOS | M6: DESNUTRICIÓN AGUDA | O6: N° DE EVALUADOS | P6: RIESGO DE D. AGUDA | R6: SOBREPESO | T6: OBESIDAD
D7: N° DE CASOS | E7: % | G7: N° DE CASOS | H7: % | J7: N° DE CASOS | K7: % | M7: N° DE CASOS | N7: % | P7: N° DE CASOS | Q7: % | R7: N° DE CASOS | S7: % | T7: N° DE CASOS | U7: %
B8: AMAZONAS | C8: 1 | D8: 0 | E8: 0 | F8: 1 | G8: 0 | H8: 0 | I8: 1 | J8: 0 | K8: 0 | L8: 1 | M8: 0 | N8: 0 | O8: 1 | P8: 0 | Q8: 0 | R8: 0 | S8: 0 | T8: 0 | U8: 0
B9: ANCASH | C9: 11 | D9: 1 | E9: 9.090909091 | F9: 10 | G9: 3 | H9: 30 | I9: 11 | J9: 1 | K9: 9.090909091 | L9: 11 | M9: 1 | N9: 9.090909091 | O9: 9 | P9: 0 | Q9: 0 | R9: 1 | S9: 9.090909091 | T9: 0 | U9: 0
B10: APURIMAC | C10: 1 | D10: 0 | E10: 0 | F10: 1 | G10: 0 | H10: 0 | I10: 1 | J10: 0 | K10: 0 | L10: 1 | M10: 0 | N10: 0 | O10: 1 | P10: 0 | Q10: 0 | R10: 0 | S10: 0 | T10: 0 | U10: 0
B11: AREQUIPA | C11: 8 | D11: 0 | E11: 0 | F11: 8 | G11: 0 | H11: 0 | I11: 8 | J11: 0 | K11: 0 | L11: 8 | M11: 0 | N11: 0 | O11: 8 | P11: 3 | Q11: 37.5 | R11: 0 | S11: 0 | T11: 0 | U11: 0
B12: AYACUCHO | C12: 1 | D12: 0 | E12: 0 | F12: 1 | G12: 1 | H12: 100 | I12: 1 | J12: 0 | K12: 0 | L12: 1 | M12: 0 | N12: 0 | O12: 1 | P12: 0 | Q12: 0 | R12: 0 | S12: 0 | T12: 0 | U12: 0
B13: CAJAMARCA | C13: 1 | D13: 0 | E13: 0 | F13: 1 | G13: 0 | H13: 0 | I13: 1 | J13: 0 | K13: 0 | L13: 1 | M13: 0 | N13: 0 | O13: 1 | P13: 0 | Q13: 0 | R13: 0 | S13: 0 | T13: 0 | U13: 0
B14: CALLAO | C14: 15 | D14: 2 | E14: 13.33333333 | F14: 13 | G14: 7 | H14: 53.84615385 | I14: 15 | J14: 0 | K14: 0 | L14: 15 | M14: 0 | N14: 0 | O14: 14 | P14: 0 | Q14: 0 | R14: 1 | S14: 6.666666667 | T14: 0 | U14: 0
B15: CUSCO | C15: 2 | D15: 0 | E15: 0 | F15: 2 | G15: 1 | H15: 50 | I15: 2 | J15: 1 | K15: 50 | L15: 2 | M15: 1 | N15: 50 | O15: 1 | P15: 0 | Q15: 0 | R15: 0 | S15: 0 | T15: 0 | U15: 0
B16: HUANCAVELICA | C16: (SD) | D16: (SD) | E16: (SD) | F16: (SD) | G16: (SD) | H16: (SD) | I16: (SD) | J16: (SD) | K16: (SD) | L16: (SD) | M16: (SD) | N16: (SD) | O16: (SD) | P16: (SD) | Q16: (SD) | R16: (SD) | S16: (SD) | T16: (SD) | U16: (SD)
B17: HUANUCO | C17: (SD) | D17: (SD) | E17: (SD) | F17: (SD) | G17: (SD) | H17: (SD) | I17: (SD) | J17: (SD) | K17: (SD) | L17: (SD) | M17: (SD) | N17: (SD) | O17: (SD) | P17: (SD) | Q17: (SD) | R17: (SD) | S17: (SD) | T17: (SD) | U17: (SD)
B18: ICA | C18: 13 | D18: 0 | E18: 0 | F18: 13 | G18: 6 | H18: 46.15384615 | I18: 13 | J18: 0 | K18: 0 | L18: 13 | M18: 1 | N18: 7.692307692 | O18: 11 | P18: 2 | Q18: 18.18181818 | R18: 1 | S18: 7.692307692 | T18: 0 | U18: 0
B19: JUNIN | C19: 2 | D19: 1 | E19: 50 | F19: 1 | G19: 1 | H19: 100 | I19: 2 | J19: 0 | K19: 0 | L19: 2 | M19: 0 | N19: 0 | O19: 2 | P19: 0 | Q19: 0 | R19: 0 | S19: 0 | T19: 0 | U19: 0
B20: LA LIBERTAD | C20: 15 | D20: 2 | E20: 13.33333333 | F20: 13 | G20: 2 | H20: 15.38461538 | I20: 15 | J20: 0 | K20: 0 | L20: 15 | M20: 0 | N20: 0 | O20: 12 | P20: 1 | Q20: 8.333333333 | R20: 3 | S20: 20 | T20: 0 | U20: 0
B21: LAMBAYEQUE | C21: 2 | D21: 0 | E21: 0 | F21: 2 | G21: 0 | H21: 0 | I21: 2 | J21: 0 | K21: 0 | L21: 2 | M21: 0 | N21: 0 | O21: 2 | P21: 1 | Q21: 50 | R21: 0 | S21: 0 | T21: 0 | U21: 0
B22: LIMA DIRIS CENTRO | C22: 52 | D22: 4 | E22: 7.692307692 | F22: 48 | G22: 15 | H22: 31.25 | I22: 52 | J22: 5 | K22: 9.615384615 | L22: 52 | M22: 4 | N22: 7.692307692 | O22: 44 | P22: 8 | Q22: 18.18181818 | R22: 4 | S22: 7.692307692 | T22: 0 | U22: 0
B23: LIMA DIRIS ESTE | C23: 31 | D23: 3 | E23: 9.677419355 | F23: 28 | G23: 9 | H23: 32.14285714 | I23: 31 | J23: 1 | K23: 3.225806452 | L23: 31 | M23: 3 | N23: 9.677419355 | O23: 22 | P23: 4 | Q23: 18.18181818 | R23: 5 | S23: 16.12903226 | T23: 1 | U23: 3.225806452
B24: LIMA DIRIS NORTE | C24: 82 | D24: 11 | E24: 13.41463415 | F24: 71 | G24: 22 | H24: 30.98591549 | I24: 82 | J24: 4 | K24: 4.87804878 | L24: 82 | M24: 2 | N24: 2.43902439 | O24: 74 | P24: 10 | Q24: 13.51351351 | R24: 3 | S24: 3.658536585 | T24: 3 | U24: 3.658536585
B25: LIMA DIRIS SUR | C25: 32 | D25: 5 | E25: 15.625 | F25: 27 | G25: 11 | H25: 40.74074074 | I25: 32 | J25: 2 | K25: 6.25 | L25: 32 | M25: 1 | N25: 3.125 | O25: 28 | P25: 3 | Q25: 10.71428571 | R25: 0 | S25: 0 | T25: 3 | U25: 9.375
B26: LIMA PROVINCIAS | C26: 24 | D26: 0 | E26: 0 | F26: 24 | G26: 7 | H26: 29.16666667 | I26: 24 | J26: 1 | K26: 4.166666667 | L26: 24 | M26: 1 | N26: 4.166666667 | O26: 20 | P26: 0 | Q26: 0 | R26: 3 | S26: 12.5 | T26: 0 | U26: 0
B27: LORETO | C27: (SD) | D27: (SD) | E27: (SD) | F27: (SD) | G27: (SD) | H27: (SD) | I27: (SD) | J27: (SD) | K27: (SD) | L27: (SD) | M27: (SD) | N27: (SD) | O27: (SD) | P27: (SD) | Q27: (SD) | R27: (SD) | S27: (SD) | T27: (SD) | U27: (SD)
B28: MADRE DE DIOS | C28: (SD) | D28: (SD) | E28: (SD) | F28: (SD) | G28: (SD) | H28: (SD) | I28: (SD) | J28: (SD) | K28: (SD) | L28: (SD) | M28: (SD) | N28: (SD) | O28: (SD) | P28: (SD) | Q28: (SD) | R28: (SD) | S28: (SD) | T28: (SD) | U28: (SD)
B29: MOQUEGUA | C29: 1 | D29: 0 | E29: 0 | F29: 1 | G29: 0 | H29: 0 | I29: 1 | J29: 0 | K29: 0 | L29: 1 | M29: 0 | N29: 0 | O29: 1 | P29: 0 | Q29: 0 | R29: 0 | S29: 0 | T29: 0 | U29: 0
B30: PASCO | C30: (SD) | D30: (SD) | E30: (SD) | F30: (SD) | G30: (SD) | H30: (SD) | I30: (SD) | J30: (SD) | K30: (SD) | L30: (SD) | M30: (SD) | N30: (SD) | O30: (SD) | P30: (SD) | Q30: (SD) | R30: (SD) | S30: (SD) | T30: (SD) | U30: (SD)
B31: PIURA | C31: 11 | D31: 0 | E31: 0 | F31: 11 | G31: 4 | H31: 36.36363636 | I31: 11 | J31: 0 | K31: 0 | L31: 11 | M31: 0 | N31: 0 | O31: 11 | P31: 0 | Q31: 0 | R31: 0 | S31: 0 | T31: 0 | U31: 0
B32: PUNO | C32: 1 | D32: 0 | E32: 0 | F32: 1 | G32: 0 | H32: 0 | I32: 1 | J32: 0 | K32: 0 | L32: 1 | M32: 0 | N32: 0 | O32: 1 | P32: 0 | Q32: 0 | R32: 0 | S32: 0 | T32: 0 | U32: 0
B33: SAN MARTIN | C33: 2 | D33: 0 | E33: 0 | F33: 2 | G33: 1 | H33: 50 | I33: 2 | J33: 0 | K33: 0 | L33: 2 | M33: 0 | N33: 0 | O33: 1 | P33: 1 | Q33: 100 | R33: 1 | S33: 50 | T33: 0 | U33: 0
B34: TACNA | C34: 1 | D34: 1 | E34: 100 | F34: 0 | G34: 0 | H34: 0 | I34: 1 | J34: 1 | K34: 100 | L34: 1 | M34: 0 | N34: 0 | O34: 1 | P34: 1 | Q34: 100 | R34: 0 | S34: 0 | T34: 0 | U34: 0
B35: TUMBES | C35: 7 | D35: 1 | E35: 14.28571429 | F35: 6 | G35: 2 | H35: 33.33333333 | I35: 7 | J35: 0 | K35: 0 | L35: 7 | M35: 0 | N35: 0 | O35: 7 | P35: 1 | Q35: 14.28571429 | R35: 0 | S35: 0 | T35: 0 | U35: 0
B36: UCAYALI | C36: 1 | D36: 0 | E36: 0 | F36: 1 | G36: 1 | H36: 100 | I36: 1 | J36: 0 | K36: 0 | L36: 1 | M36: 0 | N36: 0 | O36: 1 | P36: 0 | Q36: 0 | R36: 0 | S36: 0 | T36: 0 | U36: 0
B37: PERÚ | C37: =SUM(C8:C36) -> 317 | D37: =SUM(D8:D36) -> 31 | E37: =D37/C37*100 -> 9.779179811 | F37: =SUM(F8:F36) -> 286 | G37: =SUM(G8:G36) -> 93 | H37: =G37/F37*100 -> 32.51748252 | I37: =SUM(I8:I36) -> 317 | J37: =SUM(J8:J36) -> 16 | K37: =J37/I37*100 -> 5.047318612 | L37: =SUM(L8:L36) -> 317 | M37: =SUM(M8:M36) -> 14 | N37: =M37/L37*100 -> 4.416403785 | O37: =SUM(O8:O36) -> 274 | P37: =SUM(P8:P36) -> 35 | Q37: =P37/O37*100 -> 12.77372263 | R37: =SUM(R8:R36) -> 22 | S37: =R37/L37*100 -> 6.940063091 | T37: =SUM(T8:T36) -> 7 | U37: =T37/L37*100 -> 2.208201893
B38: Fuente: Sistema de Información SIEN - HIS, 2022.
B39: Instituto Nacional de Salud / Centro Nacional de Alimentación y Nutrición / Dirección Ejecutiva de Vigilancia Alimentaria y Nutricional.
B40: 1,2,3 Indicadores Nitricionales según OMS.
B41: 4 Riesgo de Desnutrición Crónica (T/E)se considera a todo niño que se encuentra con valor -2 <= Z < -1
B42: (SD) Diresas sin registro de NIÑOS EXTRANJEROS.

Sheet EN 0-35m x DISTRITO
B2: CUADRO N°03 PERÚ: ESTADO NUTRICIONAL EN NIÑOS EXTRANJEROS MENORES DE 3 AÑOS QUE ACCEDIERON A LOS ESTABLECIMIENTOS DE SALUD POR INDICADORES ANTROPOMÉTRICOS, SEGÚN DEPARTAMENTO, PROVINCIA Y DISTRITO DEL ESTABLECIMIENTO DE SALUD
B3: =INICIO!C$8 -> PERIODO: ENERO A MARZO 2022
B5: DEPARTAMENTO | C5: PROVINCIA | D5: DISTRITO | E5: UBIGEO | F5: INDICADOR TALLA / EDAD1 | L5: INDICADOR PESO / EDAD2 | O5: INDICADOR PESO / TALLA3
F6: N° DE EVALUADOS | G6: DESNUTRICIÓN CRÓNICA | I6: N° DE EVALUADOS | J6: RIESGO DE D. CRÓNICA4 | L6: N° DE EVALUADOS | M6: DESNUTRICIÓN GLOBAL | O6: N° DE EVALUADOS | P6: DESNUTRICIÓN AGUDA | R6: N° DE EVALUADOS | S6: RIESGO DE D. AGUDA | U6: SOBREPESO | W6: OBESIDAD
G7: N° DE CASOS | H7: % | J7: N° DE CASOS | K7: % | M7: N° DE CASOS | N7: % | P7: N° DE CASOS | Q7: % | S7: N° DE CASOS | T7: % | U7: N° DE CASOS | V7: % | W7: N° DE CASOS | X7: %
B8: AMAZONAS | C8: UTCUBAMBA | D8: BAGUA GRANDE | E8: 010701 | F8: 1 | G8: 0 | H8: 0 | I8: 1 | J8: 0 | K8: 0 | L8: 1 | M8: 0 | N8: 0 | O8: 1 | P8: 0 | Q8: 0 | R8: 1 | S8: 0 | T8: 0 | U8: 0 | V8: 0 | W8: 0 | X8: 0
B9: ANCASH | C9: CASMA | D9: CASMA | E9: 020801 | F9: 5 | G9: 0 | H9: 0 | I9: 5 | J9: 1 | K9: 20 | L9: 5 | M9: 0 | N9: 0 | O9: 5 | P9: 1 | Q9: 20 | R9: 4 | S9: 0 | T9: 0 | U9: 0 | V9: 0 | W9: 0 | X9: 0
C10: HUARMEY | D10: HUARMEY | E10: 021101 | F10: 1 | G10: 1 | H10: 100 | I10: 0 | J10: 0 | K10: 0 | L10: 1 | M10: 1 | N10: 100 | O10: 1 | P10: 0 | Q10: 0 | R10: 1 | S10: 0 | T10: 0 | U10: 0 | V10: 0 | W10: 0 | X10: 0
C11: SANTA | D11: CHIMBOTE | E11: 021801 | F11: 2 | G11: 0 | H11: 0 | I11: 2 | J11: 1 | K11: 50 | L11: 2 | M11: 0 | N11: 0 | O11: 2 | P11: 0 | Q11: 0 | R11: 1 | S11: 0 | T11: 0 | U11: 1 | V11: 50 | W11: 0 | X11: 0
D12: NUEVO CHIMBOTE | E12: 021809 | F12: 2 | G12: 0 | H12: 0 | I12: 2 | J12: 0 | K12: 0 | L12: 2 | M12: 0 | N12: 0 | O12: 2 | P12: 0 | Q12: 0 | R12: 2 | S12: 0 | T12: 0 | U12: 0 | V12: 0 | W12: 0 | X12: 0
D13: SANTA | E13: 021808 | F13: 1 | G13: 0 | H13: 0 | I13: 1 | J13: 1 | K13: 100 | L13: 1 | M13: 0 | N13: 0 | O13: 1 | P13: 0 | Q13: 0 | R13: 1 | S13: 0 | T13: 0 | U13: 0 | V13: 0 | W13: 0 | X13: 0
B14: APURIMAC | C14: ABANCAY | D14: ABANCAY | E14: 030101 | F14: 1 | G14: 0 | H14: 0 | I14: 1 | J14: 0 | K14: 0 | L14: 1 | M14: 0 | N14: 0 | O14: 1 | P14: 0 | Q14: 0 | R14: 1 | S14: 0 | T14: 0 | U14: 0 | V14: 0 | W14: 0 | X14: 0
B15: AREQUIPA | C15: AREQUIPA | D15: CERRO COLORADO | E15: 040104 | F15: 3 | G15: 0 | H15: 0 | I15: 3 | J15: 0 | K15: 0 | L15: 3 | M15: 0 | N15: 0 | O15: 3 | P15: 0 | Q15: 0 | R15: 3 | S15: 2 | T15: 66.66666667 | U15: 0 | V15: 0 | W15: 0 | X15: 0
D16: MIRAFLORES | E16: 040110 | F16: 1 | G16: 0 | H16: 0 | I16: 1 | J16: 0 | K16: 0 | L16: 1 | M16: 0 | N16: 0 | O16: 1 | P16: 0 | Q16: 0 | R16: 1 | S16: 0 | T16: 0 | U16: 0 | V16: 0 | W16: 0 | X16: 0
D17: PAUCARPATA | E17: 040112 | F17: 2 | G17: 0 | H17: 0 | I17: 2 | J17: 0 | K17: 0 | L17: 2 | M17: 0 | N17: 0 | O17: 2 | P17: 0 | Q17: 0 | R17: 2 | S17: 1 | T17: 50 | U17: 0 | V17: 0 | W17: 0 | X17: 0
C18: CARAVELI | D18: ATICO | E18: 040303 | F18: 1 | G18: 0 | H18: 0 | I18: 1 | J18: 0 | K18: 0 | L18: 1 | M18: 0 | N18: 0 | O18: 1 | P18: 0 | Q18: 0 | R18: 1 | S18: 0 | T18: 0 | U18: 0 | V18: 0 | W18: 0 | X18: 0
D19: YAUCA | E19: 040313 | F19: 1 | G19: 0 | H19: 0 | I19: 1 | J19: 0 | K19: 0 | L19: 1 | M19: 0 | N19: 0 | O19: 1 | P19: 0 | Q19: 0 | R19: 1 | S19: 0 | T19: 0 | U19: 0 | V19: 0 | W19: 0 | X19: 0
B20: AYACUCHO | C20: LA MAR | D20: ANCO | E20: 050502 | F20: 1 | G20: 0 | H20: 0 | I20: 1 | J20: 1 | K20: 100 | L20: 1 | M20: 0 | N20: 0 | O20: 1 | P20: 0 | Q20: 0 | R20: 1 | S20: 0 | T20: 0 | U20: 0 | V20: 0 | W20: 0 | X20: 0
B21: CAJAMARCA | C21: SAN IGNACIO | D21: SAN IGNACIO | E21: 060901 | F21: 1 | G21: 0 | H21: 0 | I21: 1 | J21: 0 | K21: 0 | L21: 1 | M21: 0 | N21: 0 | O21: 1 | P21: 0 | Q21: 0 | R21: 1 | S21: 0 | T21: 0 | U21: 0 | V21: 0 | W21: 0 | X21: 0
B22: CALLAO | C22: CALLAO | D22: BELLAVISTA | E22: 070102 | F22: 1 | G22: 1 | H22: 100 | I22: 0 | J22: 0 | K22: 0 | L22: 1 | M22: 0 | N22: 0 | O22: 1 | P22: 0 | Q22: 0 | R22: 1 | S22: 0 | T22: 0 | U22: 0 | V22: 0 | W22: 0 | X22: 0
D23: CALLAO | E23: 070101 | F23: 7 | G23: 0 | H23: 0 | I23: 7 | J23: 3 | K23: 42.85714286 | L23: 7 | M23: 0 | N23: 0 | O23: 7 | P23: 0 | Q23: 0 | R23: 7 | S23: 0 | T23: 0 | U23: 0 | V23: 0 | W23: 0 | X23: 0
D24: CARMEN DE LA LEGUA-REYNOSO | E24: 070103 | F24: 1 | G24: 1 | H24: 100 | I24: 0 | J24: 0 | K24: 0 | L24: 1 | M24: 0 | N24: 0 | O24: 1 | P24: 0 | Q24: 0 | R24: 1 | S24: 0 | T24: 0 | U24: 0 | V24: 0 | W24: 0 | X24: 0
D25: VENTANILLA | E25: 070106 | F25: 6 | G25: 0 | H25: 0 | I25: 6 | J25: 4 | K25: 66.66666667 | L25: 6 | M25: 0 | N25: 0 | O25: 6 | P25: 0 | Q25: 0 | R25: 5 | S25: 0 | T25: 0 | U25: 1 | V25: 16.66666667 | W25: 0 | X25: 0
B26: CUSCO | C26: CUSCO | D26: SAN SEBASTIAN | E26: 080105 | F26: 1 | G26: 0 | H26: 0 | I26: 1 | J26: 0 | K26: 0 | L26: 1 | M26: 0 | N26: 0 | O26: 1 | P26: 0 | Q26: 0 | R26: 1 | S26: 0 | T26: 0 | U26: 0 | V26: 0 | W26: 0 | X26: 0
D27: SANTIAGO | E27: 080106 | F27: 1 | G27: 0 | H27: 0 | I27: 1 | J27: 1 | K27: 100 | L27: 1 | M27: 1 | N27: 100 | O27: 1 | P27: 1 | Q27: 100 | R27: 0 | S27: 0 | T27: 0 | U27: 0 | V27: 0 | W27: 0 | X27: 0
B28: ICA | C28: CHINCHA | D28: GROCIO PRADO | E28: 110206 | F28: 2 | G28: 0 | H28: 0 | I28: 2 | J28: 1 | K28: 50 | L28: 2 | M28: 0 | N28: 0 | O28: 2 | P28: 0 | Q28: 0 | R28: 2 | S28: 0 | T28: 0 | U28: 0 | V28: 0 | W28: 0 | X28: 0
D29: PUEBLO NUEVO | E29: 110207 | F29: 1 | G29: 0 | H29: 0 | I29: 1 | J29: 0 | K29: 0 | L29: 1 | M29: 0 | N29: 0 | O29: 1 | P29: 0 | Q29: 0 | R29: 1 | S29: 0 | T29: 0 | U29: 0 | V29: 0 | W29: 0 | X29: 0
C30: ICA | D30: ICA | E30: 110101 | F30: 3 | G30: 0 | H30: 0 | I30: 3 | J30: 2 | K30: 66.66666667 | L30: 3 | M30: 0 | N30: 0 | O30: 3 | P30: 0 | Q30: 0 | R30: 3 | S30: 1 | T30: 33.33333333 | U30: 0 | V30: 0 | W30: 0 | X30: 0
C31: NAZCA | D31: NAZCA | E31: 110301 | F31: 1 | G31: 0 | H31: 0 | I31: 1 | J31: 0 | K31: 0 | L31: 1 | M31: 0 | N31: 0 | O31: 1 | P31: 0 | Q31: 0 | R31: 1 | S31: 0 | T31: 0 | U31: 0 | V31: 0 | W31: 0 | X31: 0
C32: PISCO | D32: PISCO | E32: 110501 | F32: 2 | G32: 0 | H32: 0 | I32: 2 | J32: 1 | K32: 50 | L32: 2 | M32: 0 | N32: 0 | O32: 2 | P32: 0 | Q32: 0 | R32: 1 | S32: 0 | T32: 0 | U32: 1 | V32: 50 | W32: 0 | X32: 0
D33: SAN ANDRES | E33: 110506 | F33: 3 | G33: 0 | H33: 0 | I33: 3 | J33: 1 | K33: 33.33333333 | L33: 3 | M33: 0 | N33: 0 | O33: 3 | P33: 1 | Q33: 33.33333333 | R33: 2 | S33: 1 | T33: 50 | U33: 0 | V33: 0 | W33: 0 | X33: 0
D34: SAN CLEMENTE | E34: 110507 | F34: 1 | G34: 0 | H34: 0 | I34: 1 | J34: 1 | K34: 100 | L34: 1 | M34: 0 | N34: 0 | O34: 1 | P34: 0 | Q34: 0 | R34: 1 | S34: 0 | T34: 0 | U34: 0 | V34: 0 | W34: 0 | X34: 0
B35: JUNIN | C35: SATIPO | D35: PANGOA | E35: 120606 | F35: 2 | G35: 1 | H35: 50 | I35: 1 | J35: 1 | K35: 100 | L35: 2 | M35: 0 | N35: 0 | O35: 2 | P35: 0 | Q35: 0 | R35: 2 | S35: 0 | T35: 0 | U35: 0 | V35: 0 | W35: 0 | X35: 0
B36: LA LIBERTAD | C36: ASCOPE | D36: PAIJAN | E36: 130205 | F36: 1 | G36: 0 | H36: 0 | I36: 1 | J36: 0 | K36: 0 | L36: 1 | M36: 0 | N36: 0 | O36: 1 | P36: 0 | Q36: 0 | R36: 1 | S36: 0 | T36: 0 | U36: 0 | V36: 0 | W36: 0 | X36: 0
D37: RAZURI | E37: 130206 | F37: 1 | G37: 0 | H37: 0 | I37: 1 | J37: 0 | K37: 0 | L37: 1 | M37: 0 | N37: 0 | O37: 1 | P37: 0 | Q37: 0 | R37: 1 | S37: 0 | T37: 0 | U37: 0 | V37: 0 | W37: 0 | X37: 0
C38: CHEPEN | D38: CHEPEN | E38: 130401 | F38: 3 | G38: 2 | H38: 66.66666667 | I38: 1 | J38: 0 | K38: 0 | L38: 3 | M38: 0 | N38: 0 | O38: 3 | P38: 0 | Q38: 0 | R38: 2 | S38: 1 | T38: 50 | U38: 1 | V38: 33.33333333 | W38: 0 | X38: 0
D39: PACANGA | E39: 130402 | F39: 1 | G39: 0 | H39: 0 | I39: 1 | J39: 1 | K39: 100 | L39: 1 | M39: 0 | N39: 0 | O39: 1 | P39: 0 | Q39: 0 | R39: 1 | S39: 0 | T39: 0 | U39: 0 | V39: 0 | W39: 0 | X39: 0
C40: PACASMAYO | D40: GUADALUPE | E40: 130702 | F40: 1 | G40: 0 | H40: 0 | I40: 1 | J40: 0 | K40: 0 | L40: 1 | M40: 0 | N40: 0 | O40: 1 | P40: 0 | Q40: 0 | R40: 1 | S40: 0 | T40: 0 | U40: 0 | V40: 0 | W40: 0 | X40: 0
D41: PACASMAYO | E41: 130704 | F41: 1 | G41: 0 | H41: 0 | I41: 1 | J41: 0 | K41: 0 | L41: 1 | M41: 0 | N41: 0 | O41: 1 | P41: 0 | Q41: 0 | R41: 1 | S41: 0 | T41: 0 | U41: 0 | V41: 0 | W41: 0 | X41: 0
C42: TRUJILLO | D42: MOCHE | E42: 130107 | F42: 1 | G42: 0 | H42: 0 | I42: 1 | J42: 0 | K42: 0 | L42: 1 | M42: 0 | N42: 0 | O42: 1 | P42: 0 | Q42: 0 | R42: 1 | S42: 0 | T42: 0 | U42: 0 | V42: 0 | W42: 0 | X42: 0
D43: TRUJILLO | E43: 130101 | F43: 5 | G43: 0 | H43: 0 | I43: 5 | J43: 1 | K43: 20 | L43: 5 | M43: 0 | N43: 0 | O43: 5 | P43: 0 | Q43: 0 | R43: 3 | S43: 0 | T43: 0 | U43: 2 | V43: 40 | W43: 0 | X43: 0
C44: VIRU | D44: CHAO | E44: 131202 | F44: 1 | G44: 0 | H44: 0 | I44: 1 | J44: 0 | K44: 0 | L44: 1 | M44: 0 | N44: 0 | O44: 1 | P44: 0 | Q44: 0 | R44: 1 | S44: 0 | T44: 0 | U44: 0 | V44: 0 | W44: 0 | X44: 0
B45: LAMBAYEQUE | C45: CHICLAYO | D45: LAGUNAS | E45: 140107 | F45: 1 | G45: 0 | H45: 0 | I45: 1 | J45: 0 | K45: 0 | L45: 1 | M45: 0 | N45: 0 | O45: 1 | P45: 0 | Q45: 0 | R45: 1 | S45: 0 | T45: 0 | U45: 0 | V45: 0 | W45: 0 | X45: 0
C46: FERREÑAFE | D46: FERREÑAFE | E46: 140201 | F46: 1 | G46: 0 | H46: 0 | I46: 1 | J46: 0 | K46: 0 | L46: 1 | M46: 0 | N46: 0 | O46: 1 | P46: 0 | Q46: 0 | R46: 1 | S46: 1 | T46: 100 | U46: 0 | V46: 0 | W46: 0 | X46: 0
B47: LIMA | C47: BARRANCA | D47: SUPE | E47: 150204 | F47: 6 | G47: 0 | H47: 0 | I47: 6 | J47: 2 | K47: 33.33333333 | L47: 6 | M47: 0 | N47: 0 | O47: 6 | P47: 0 | Q47: 0 | R47: 5 | S47: 0 | T47: 0 | U47: 1 | V47: 16.66666667 | W47: 0 | X47: 0
C48: CAÑETE | D48: MALA | E48: 150509 | F48: 3 | G48: 0 | H48: 0 | I48: 3 | J48: 2 | K48: 66.66666667 | L48: 3 | M48: 1 | N48: 33.33333333 | O48: 3 | P48: 1 | Q48: 33.33333333 | R48: 2 | S48: 0 | T48: 0 | U48: 0 | V48: 0 | W48: 0 | X48: 0
C49: HUARAL | D49: AUCALLAMA | E49: 150604 | F49: 2 | G49: 0 | H49: 0 | I49: 2 | J49: 0 | K49: 0 | L49: 2 | M49: 0 | N49: 0 | O49: 2 | P49: 0 | Q49: 0 | R49: 2 | S49: 0 | T49: 0 | U49: 0 | V49: 0 | W49: 0 | X49: 0
D50: CHANCAY | E50: 150605 | F50: 1 | G50: 0 | H50: 0 | I50: 1 | J50: 1 | K50: 100 | L50: 1 | M50: 0 | N50: 0 | O50: 1 | P50: 0 | Q50: 0 | R50: 1 | S50: 0 | T50: 0 | U50: 0 | V50: 0 | W50: 0 | X50: 0
D51: HUARAL | E51: 150601 | F51: 2 | G51: 0 | H51: 0 | I51: 2 | J51: 0 | K51: 0 | L51: 2 | M51: 0 | N51: 0 | O51: 2 | P51: 0 | Q51: 0 | R51: 2 | S51: 0 | T51: 0 | U51: 0 | V51: 0 | W51: 0 | X51: 0
C52: HUAURA | D52: HUACHO | E52: 150801 | F52: 1 | G52: 0 | H52: 0 | I52: 1 | J52: 1 | K52: 100 | L52: 1 | M52: 0 | N52: 0 | O52: 1 | P52: 0 | Q52: 0 | R52: 1 | S52: 0 | T52: 0 | U52: 0 | V52: 0 | W52: 0 | X52: 0
D53: HUALMAY | E53: 150805 | F53: 1 | G53: 0 | H53: 0 | I53: 1 | J53: 1 | K53: 100 | L53: 1 | M53: 0 | N53: 0 | O53: 1 | P53: 0 | Q53: 0 | R53: 1 | S53: 0 | T53: 0 | U53: 0 | V53: 0 | W53: 0 | X53: 0
D54: SANTA MARIA | E54: 150810 | F54: 2 | G54: 0 | H54: 0 | I54: 2 | J54: 0 | K54: 0 | L54: 2 | M54: 0 | N54: 0 | O54: 2 | P54: 0 | Q54: 0 | R54: 2 | S54: 0 | T54: 0 | U54: 0 | V54: 0 | W54: 0 | X54: 0
D55: SAYAN | E55: 150811 | F55: 2 | G55: 0 | H55: 0 | I55: 2 | J55: 0 | K55: 0 | L55: 2 | M55: 0 | N55: 0 | O55: 2 | P55: 0 | Q55: 0 | R55: 0 | S55: 0 | T55: 0 | U55: 2 | V55: 100 | W55: 0 | X55: 0
D56: VEGUETA | E56: 150812 | F56: 3 | G56: 0 | H56: 0 | I56: 3 | J56: 0 | K56: 0 | L56: 3 | M56: 0 | N56: 0 | O56: 3 | P56: 0 | Q56: 0 | R56: 3 | S56: 0 | T56: 0 | U56: 0 | V56: 0 | W56: 0 | X56: 0
C57: LIMA | D57: ANCON | E57: 150102 | F57: 1 | G57: 0 | H57: 0 | I57: 1 | J57: 1 | K57: 100 | L57: 1 | M57: 0 | N57: 0 | O57: 1 | P57: 0 | Q57: 0 | R57: 1 | S57: 0 | T57: 0 | U57: 0 | V57: 0 | W57: 0 | X57: 0
D58: ATE | E58: 150103 | F58: 10 | G58: 2 | H58: 20 | I58: 8 | J58: 2 | K58: 25 | L58: 10 | M58: 0 | N58: 0 | O58: 10 | P58: 0 | Q58: 0 | R58: 7 | S58: 1 | T58: 14.28571429 | U58: 3 | V58: 30 | W58: 0 | X58: 0
D59: CARABAYLLO | E59: 150106 | F59: 5 | G59: 0 | H59: 0 | I59: 5 | J59: 0 | K59: 0 | L59: 5 | M59: 0 | N59: 0 | O59: 5 | P59: 0 | Q59: 0 | R59: 4 | S59: 0 | T59: 0 | U59: 0 | V59: 0 | W59: 1 | X59: 20
D60: CHORRILLOS | E60: 150108 | F60: 2 | G60: 1 | H60: 50 | I60: 1 | J60: 1 | K60: 100 | L60: 2 | M60: 0 | N60: 0 | O60: 2 | P60: 0 | Q60: 0 | R60: 2 | S60: 0 | T60: 0 | U60: 0 | V60: 0 | W60: 0 | X60: 0
D61: COMAS | E61: 150110 | F61: 13 | G61: 4 | H61: 30.76923077 | I61: 9 | J61: 3 | K61: 33.33333333 | L61: 13 | M61: 1 | N61: 7.692307692 | O61: 13 | P61: 0 | Q61: 0 | R61: 12 | S61: 4 | T61: 33.33333333 | U61: 1 | V61: 7.692307692 | W61: 0 | X61: 0
D62: EL AGUSTINO | E62: 150111 | F62: 1 | G62: 0 | H62: 0 | I62: 1 | J62: 1 | K62: 100 | L62: 1 | M62: 0 | N62: 0 | O62: 1 | P62: 0 | Q62: 0 | R62: 1 | S62: 0 | T62: 0 | U62: 0 | V62: 0 | W62: 0 | X62: 0
D63: INDEPENDENCIA | E63: 150112 | F63: 8 | G63: 2 | H63: 25 | I63: 6 | J63: 3 | K63: 50 | L63: 8 | M63: 1 | N63: 12.5 | O63: 8 | P63: 0 | Q63: 0 | R63: 8 | S63: 2 | T63: 25 | U63: 0 | V63: 0 | W63: 0 | X63: 0
D64: LA VICTORIA | E64: 150115 | F64: 5 | G64: 1 | H64: 20 | I64: 4 | J64: 0 | K64: 0 | L64: 5 | M64: 2 | N64: 40 | O64: 5 | P64: 1 | Q64: 20 | R64: 4 | S64: 1 | T64: 25 | U64: 0 | V64: 0 | W64: 0 | X64: 0
D65: LIMA | E65: 150101 | F65: 21 | G65: 1 | H65: 4.761904762 | I65: 20 | J65: 10 | K65: 50 | L65: 21 | M65: 2 | N65: 9.523809524 | O65: 21 | P65: 1 | Q65: 4.761904762 | R65: 18 | S65: 4 | T65: 22.22222222 | U65: 2 | V65: 9.523809524 | W65: 0 | X65: 0
D66: LINCE | E66: 150116 | F66: 3 | G66: 0 | H66: 0 | I66: 3 | J66: 0 | K66: 0 | L66: 3 | M66: 0 | N66: 0 | O66: 3 | P66: 0 | Q66: 0 | R66: 3 | S66: 1 | T66: 33.33333333 | U66: 0 | V66: 0 | W66: 0 | X66: 0
D67: LOS OLIVOS | E67: 150117 | F67: 20 | G67: 1 | H67: 5 | I67: 19 | J67: 6 | K67: 31.57894737 | L67: 20 | M67: 0 | N67: 0 | O67: 20 | P67: 1 | Q67: 5 | R67: 18 | S67: 1 | T67: 5.555555556 | U67: 1 | V67: 5 | W67: 0 | X67: 0
D68: LURIGANCHO | E68: 150118 | F68: 5 | G68: 0 | H68: 0 | I68: 5 | J68: 1 | K68: 20 | L68: 5 | M68: 0 | N68: 0 | O68: 5 | P68: 2 | Q68: 40 | R68: 2 | S68: 2 | T68: 100 | U68: 1 | V68: 20 | W68: 0 | X68: 0
D69: MIRAFLORES | E69: 150122 | F69: 4 | G69: 0 | H69: 0 | I69: 4 | J69: 0 | K69: 0 | L69: 4 | M69: 0 | N69: 0 | O69: 4 | P69: 0 | Q69: 0 | R69: 3 | S69: 0 | T69: 0 | U69: 1 | V69: 25 | W69: 0 | X69: 0
D70: PACHACAMAC | E70: 150123 | F70: 1 | G70: 0 | H70: 0 | I70: 1 | J70: 1 | K70: 100 | L70: 1 | M70: 0 | N70: 0 | O70: 1 | P70: 0 | Q70: 0 | R70: 1 | S70: 0 | T70: 0 | U70: 0 | V70: 0 | W70: 0 | X70: 0
D71: PUENTE PIEDRA | E71: 150125 | F71: 1 | G71: 1 | H71: 100 | I71: 0 | J71: 0 | K71: 0 | L71: 1 | M71: 0 | N71: 0 | O71: 1 | P71: 0 | Q71: 0 | R71: 0 | S71: 0 | T71: 0 | U71: 0 | V71: 0 | W71: 1 | X71: 100
D72: RIMAC | E72: 150128 | F72: 4 | G72: 1 | H72: 25 | I72: 3 | J72: 0 | K72: 0 | L72: 4 | M72: 1 | N72: 25 | O72: 4 | P72: 0 | Q72: 0 | R72: 3 | S72: 1 | T72: 33.33333333 | U72: 1 | V72: 25 | W72: 0 | X72: 0
D73: SAN JUAN DE LURIGANCHO | E73: 150132 | F73: 16 | G73: 2 | H73: 12.5 | I73: 14 | J73: 4 | K73: 28.57142857 | L73: 16 | M73: 1 | N73: 6.25 | O73: 16 | P73: 2 | Q73: 12.5 | R73: 13 | S73: 2 | T73: 15.38461538 | U73: 1 | V73: 6.25 | W73: 0 | X73: 0
D74: SAN JUAN DE MIRAFLORES | E74: 150133 | F74: 12 | G74: 2 | H74: 16.66666667 | I74: 10 | J74: 3 | K74: 30 | L74: 12 | M74: 2 | N74: 16.66666667 | O74: 12 | P74: 1 | Q74: 8.333333333 | R74: 10 | S74: 1 | T74: 10 | U74: 0 | V74: 0 | W74: 1 | X74: 8.333333333
D75: SAN MARTIN DE PORRES | E75: 150135 | F75: 30 | G75: 2 | H75: 6.666666667 | I75: 28 | J75: 9 | K75: 32.14285714 | L75: 30 | M75: 1 | N75: 3.333333333 | O75: 30 | P75: 1 | Q75: 3.333333333 | R75: 28 | S75: 2 | T75: 7.142857143 | U75: 0 | V75: 0 | W75: 1 | X75: 3.333333333
D76: SAN MIGUEL | E76: 150136 | F76: 3 | G76: 0 | H76: 0 | I76: 3 | J76: 1 | K76: 33.33333333 | L76: 3 | M76: 0 | N76: 0 | O76: 3 | P76: 0 | Q76: 0 | R76: 3 | S76: 0 | T76: 0 | U76: 0 | V76: 0 | W76: 0 | X76: 0
D77: SANTA ANITA | E77: 150137 | F77: 15 | G77: 1 | H77: 6.666666667 | I77: 14 | J77: 5 | K77: 35.71428571 | L77: 15 | M77: 1 | N77: 6.666666667 | O77: 15 | P77: 1 | Q77: 6.666666667 | R77: 12 | S77: 1 | T77: 8.333333333 | U77: 1 | V77: 6.666666667 | W77: 1 | X77: 6.666666667
D78: SANTIAGO DE SURCO | E78: 150140 | F78: 8 | G78: 1 | H78: 12.5 | I78: 7 | J78: 2 | K78: 28.57142857 | L78: 8 | M78: 0 | N78: 0 | O78: 8 | P78: 0 | Q78: 0 | R78: 7 | S78: 0 | T78: 0 | U78: 0 | V78: 0 | W78: 1 | X78: 12.5
D79: VILLA EL SALVADOR | E79: 150142 | F79: 8 | G79: 1 | H79: 12.5 | I79: 7 | J79: 4 | K79: 57.14285714 | L79: 8 | M79: 0 | N79: 0 | O79: 8 | P79: 0 | Q79: 0 | R79: 7 | S79: 2 | T79: 28.57142857 | U79: 0 | V79: 0 | W79: 1 | X79: 12.5
D80: VILLA MARIA DEL TRIUNFO | E80: 150143 | F80: 1 | G80: 0 | H80: 0 | I80: 1 | J80: 0 | K80: 0 | L80: 1 | M80: 0 | N80: 0 | O80: 1 | P80: 0 | Q80: 0 | R80: 1 | S80: 0 | T80: 0 | U80: 0 | V80: 0 | W80: 0 | X80: 0
C81: OYON | D81: PACHANGARA | E81: 150906 | F81: 1 | G81: 0 | H81: 0 | I81: 1 | J81: 0 | K81: 0 | L81: 1 | M81: 0 | N81: 0 | O81: 1 | P81: 0 | Q81: 0 | R81: 1 | S81: 0 | T81: 0 | U81: 0 | V81: 0 | W81: 0 | X81: 0
B82: MOQUEGUA | C82: MARISCAL NIETO | D82: MOQUEGUA | E82: 180101 | F82: 1 | G82: 0 | H82: 0 | I82: 1 | J82: 0 | K82: 0 | L82: 1 | M82: 0 | N82: 0 | O82: 1 | P82: 0 | Q82: 0 | R82: 1 | S82: 0 | T82: 0 | U82: 0 | V82: 0 | W82: 0 | X82: 0
B83: PIURA | C83: MORROPON | D83: MORROPON | E83: 200405 | F83: 1 | G83: 0 | H83: 0 | I83: 1 | J83: 1 | K83: 100 | L83: 1 | M83: 0 | N83: 0 | O83: 1 | P83: 0 | Q83: 0 | R83: 1 | S83: 0 | T83: 0 | U83: 0 | V83: 0 | W83: 0 | X83: 0
C84: PAITA | D84: PAITA | E84: 200501 | F84: 2 | G84: 0 | H84: 0 | I84: 2 | J84: 1 | K84: 50 | L84: 2 | M84: 0 | N84: 0 | O84: 2 | P84: 0 | Q84: 0 | R84: 2 | S84: 0 | T84: 0 | U84: 0 | V84: 0 | W84: 0 | X84: 0
D85: VICHAYAL | E85: 200507 | F85: 1 | G85: 0 | H85: 0 | I85: 1 | J85: 0 | K85: 0 | L85: 1 | M85: 0 | N85: 0 | O85: 1 | P85: 0 | Q85: 0 | R85: 1 | S85: 0 | T85: 0 | U85: 0 | V85: 0 | W85: 0 | X85: 0
C86: PIURA | D86: CASTILLA | E86: 200104 | F86: 2 | G86: 0 | H86: 0 | I86: 2 | J86: 1 | K86: 50 | L86: 2 | M86: 0 | N86: 0 | O86: 2 | P86: 0 | Q86: 0 | R86: 2 | S86: 0 | T86: 0 | U86: 0 | V86: 0 | W86: 0 | X86: 0
D87: PIURA | E87: 200101 | F87: 1 | G87: 0 | H87: 0 | I87: 1 | J87: 0 | K87: 0 | L87: 1 | M87: 0 | N87: 0 | O87: 1 | P87: 0 | Q87: 0 | R87: 1 | S87: 0 | T87: 0 | U87: 0 | V87: 0 | W87: 0 | X87: 0
D88: VEINTISEIS DE OCTUBRE | E88: 200115 | F88: 1 | G88: 0 | H88: 0 | I88: 1 | J88: 1 | K88: 100 | L88: 1 | M88: 0 | N88: 0 | O88: 1 | P88: 0 | Q88: 0 | R88: 1 | S88: 0 | T88: 0 | U88: 0 | V88: 0 | W88: 0 | X88: 0
C89: SECHURA | D89: SECHURA | E89: 200801 | F89: 1 | G89: 0 | H89: 0 | I89: 1 | J89: 0 | K89: 0 | L89: 1 | M89: 0 | N89: 0 | O89: 1 | P89: 0 | Q89: 0 | R89: 1 | S89: 0 | T89: 0 | U89: 0 | V89: 0 | W89: 0 | X89: 0
C90: TALARA | D90: LOS ORGANOS | E90: 200705 | F90: 1 | G90: 0 | H90: 0 | I90: 1 | J90: 0 | K90: 0 | L90: 1 | M90: 0 | N90: 0 | O90: 1 | P90: 0 | Q90: 0 | R90: 1 | S90: 0 | T90: 0 | U90: 0 | V90: 0 | W90: 0 | X90: 0
D91: MANCORA | E91: 200706 | F91: 1 | G91: 0 | H91: 0 | I91: 1 | J91: 0 | K91: 0 | L91: 1 | M91: 0 | N91: 0 | O91: 1 | P91: 0 | Q91: 0 | R91: 1 | S91: 0 | T91: 0 | U91: 0 | V91: 0 | W91: 0 | X91: 0
B92: PUNO | C92: PUNO | D92: PUNO | E92: 210101 | F92: 1 | G92: 0 | H92: 0 | I92: 1 | J92: 0 | K92: 0 | L92: 1 | M92: 0 | N92: 0 | O92: 1 | P92: 0 | Q92: 0 | R92: 1 | S92: 0 | T92: 0 | U92: 0 | V92: 0 | W92: 0 | X92: 0
B93: SAN MARTIN | C93: SAN MARTIN | D93: TARAPOTO | E93: 220901 | F93: 2 | G93: 0 | H93: 0 | I93: 2 | J93: 1 | K93: 50 | L93: 2 | M93: 0 | N93: 0 | O93: 2 | P93: 0 | Q93: 0 | R93: 1 | S93: 1 | T93: 100 | U93: 1 | V93: 50 | W93: 0 | X93: 0
B94: TACNA | C94: TACNA | D94: ALTO DE LA ALIANZA | E94: 230102 | F94: 1 | G94: 1 | H94: 100 | I94: 0 | J94: 0 | K94: 0 | L94: 1 | M94: 1 | N94: 100 | O94: 1 | P94: 0 | Q94: 0 | R94: 1 | S94: 1 | T94: 100 | U94: 0 | V94: 0 | W94: 0 | X94: 0
B95: TUMBES | C95: CONTRALMIRANTE VILLAR | D95: ZORRITOS | E95: 240201 | F95: 1 | G95: 0 | H95: 0 | I95: 1 | J95: 1 | K95: 100 | L95: 1 | M95: 0 | N95: 0 | O95: 1 | P95: 0 | Q95: 0 | R95: 1 | S95: 0 | T95: 0 | U95: 0 | V95: 0 | W95: 0 | X95: 0
C96: TUMBES | D96: PAMPAS DE HOSPITAL | E96: 240104 | F96: 1 | G96: 0 | H96: 0 | I96: 1 | J96: 0 | K96: 0 | L96: 1 | M96: 0 | N96: 0 | O96: 1 | P96: 0 | Q96: 0 | R96: 1 | S96: 0 | T96: 0 | U96: 0 | V96: 0 | W96: 0 | X96: 0
D97: TUMBES | E97: 240101 | F97: 4 | G97: 0 | H97: 0 | I97: 4 | J97: 1 | K97: 25 | L97: 4 | M97: 0 | N97: 0 | O97: 4 | P97: 0 | Q97: 0 | R97: 4 | S97: 1 | T97: 25 | U97: 0 | V97: 0 | W97: 0 | X97: 0
C98: ZARUMILLA | D98: ZARUMILLA | E98: 240301 | F98: 1 | G98: 1 | H98: 100 | I98: 0 | J98: 0 | K98: 0 | L98: 1 | M98: 0 | N98: 0 | O98: 1 | P98: 0 | Q98: 0 | R98: 1 | S98: 0 | T98: 0 | U98: 0 | V98: 0 | W98: 0 | X98: 0
B99: UCAYALI | C99: CORONEL PORTILLO | D99: CAMPOVERDE | E99: 250102 | F99: 1 | G99: 0 | H99: 0 | I99: 1 | J99: 1 | K99: 100 | L99: 1 | M99: 0 | N99: 0 | O99: 1 | P99: 0 | Q99: 0 | R99: 1 | S99: 0 | T99: 0 | U99: 0 | V99: 0 | W99: 0 | X99: 0
B100: PERÚ | F100: =SUM(F8:F99) -> 317 | G100: =SUM(G8:G99) -> 31 | H100: =G100/F100*100 -> 9.779179811 | I100: =SUM(I8:I99) -> 286 | J100: =SUM(J8:J99) -> 93 | K100: =J100/I100*100 -> 32.51748252 | L100: =SUM(L8:L99) -> 317 | M100: =SUM(M8:M99) -> 16 | N100: =M100/L100*100 -> 5.047318612 | O100: =SUM(O8:O99) -> 317 | P100: =SUM(P8:P99) -> 14 | Q100: =P100/O100*100 -> 4.416403785 | R100: =SUM(R8:R99) -> 274 | S100: =SUM(S8:S99) -> 35 | T100: =S100/R100*100 -> 12.77372263 | U100: =SUM(U8:U99) -> 22 | V100: =U100/O100*100 -> 6.940063091 | W100: =SUM(W8:W99) -> 7 | X100: =W100/O100*100 -> 2.208201893
B101: Fuente: Sistema de Información SIEN - HIS, 2022.
B102: Instituto Nacional de Salud / Centro Nacional de Alimentación y Nutrición / Dirección Ejecutiva de Vigilancia Alimentaria y Nutricional.
B103: 1,2,3 Indicadores Nitricionales según OMS.
B104: 4 Riesgo de Desnutrición Crónica (T/E)se considera a todo niño que se encuentra con valor -2 <= Z < -1

Sheet EN 0-59m x DEP
B2: CUADRO N°04 PERÚ: ESTADO NUTRICIONAL EN NIÑOS EXTRANJEROS MENORES DE 5 AÑOS QUE ACCEDIERON A LOS ESTABLECIMIENTOS DE SALUD POR INDICADORES ANTROPOMÉTRICOS, SEGÚN DEPARTAMENTO DEL ESTABLECIMIENTO DE SALUD
B3: =INICIO!C$8 -> PERIODO: ENERO A MARZO 2022
B5: DEPARTAMENTO | C5: INDICADOR TALLA / EDAD1 | I5: INDICADOR PESO / EDAD2 | L5: INDICADOR PESO / TALLA3
C6: N° DE EVALUADOS | D6: DESNUTRICIÓN CRÓNICA | F6: N° DE EVALUADOS | G6: RIESGO DE D. CRÓNICA4 | I6: N° DE EVALUADOS | J6: DESNUTRICIÓN GLOBAL | L6: N° DE EVALUADOS | M6: DESNUTRICIÓN AGUDA | O6: N° DE EVALUADOS | P6: RIESGO DE D. AGUDA | R6: SOBREPESO | T6: OBESIDAD
D7: N° DE CASOS | E7: % | G7: N° DE CASOS | H7: % | J7: N° DE CASOS | K7: % | M7: N° DE CASOS | N7: % | P7: N° DE CASOS | Q7: % | R7: N° DE CASOS | S7: % | T7: N° DE CASOS | U7: %
B8: AMAZONAS | C8: 2 | D8: 0 | E8: 0 | F8: 2 | G8: 0 | H8: 0 | I8: 2 | J8: 0 | K8: 0 | L8: 2 | M8: 0 | N8: 0 | O8: 2 | P8: 0 | Q8: 0 | R8: 0 | S8: 0 | T8: 0 | U8: 0
B9: ANCASH | C9: 18 | D9: 1 | E9: 5.555555556 | F9: 17 | G9: 4 | H9: 23.52941176 | I9: 18 | J9: 1 | K9: 5.555555556 | L9: 18 | M9: 1 | N9: 5.555555556 | O9: 16 | P9: 1 | Q9: 6.25 | R9: 1 | S9: 5.555555556 | T9: 0 | U9: 0
B10: APURIMAC | C10: 1 | D10: 0 | E10: 0 | F10: 1 | G10: 0 | H10: 0 | I10: 1 | J10: 0 | K10: 0 | L10: 1 | M10: 0 | N10: 0 | O10: 1 | P10: 0 | Q10: 0 | R10: 0 | S10: 0 | T10: 0 | U10: 0
B11: AREQUIPA | C11: 23 | D11: 2 | E11: 8.695652174 | F11: 21 | G11: 6 | H11: 28.57142857 | I11: 23 | J11: 2 | K11: 8.695652174 | L11: 23 | M11: 1 | N11: 4.347826087 | O11: 22 | P11: 8 | Q11: 36.36363636 | R11: 0 | S11: 0 | T11: 0 | U11: 0
B12: AYACUCHO | C12: 1 | D12: 0 | E12: 0 | F12: 1 | G12: 1 | H12: 100 | I12: 1 | J12: 0 | K12: 0 | L12: 1 | M12: 0 | N12: 0 | O12: 1 | P12: 0 | Q12: 0 | R12: 0 | S12: 0 | T12: 0 | U12: 0
B13: CAJAMARCA | C13: 1 | D13: 0 | E13: 0 | F13: 1 | G13: 0 | H13: 0 | I13: 1 | J13: 0 | K13: 0 | L13: 1 | M13: 0 | N13: 0 | O13: 1 | P13: 0 | Q13: 0 | R13: 0 | S13: 0 | T13: 0 | U13: 0
B14: CALLAO | C14: 34 | D14: 3 | E14: 8.823529412 | F14: 31 | G14: 11 | H14: 35.48387097 | I14: 34 | J14: 0 | K14: 0 | L14: 34 | M14: 0 | N14: 0 | O14: 31 | P14: 1 | Q14: 3.225806452 | R14: 1 | S14: 2.941176471 | T14: 2 | U14: 5.882352941
B15: CUSCO | C15: 2 | D15: 0 | E15: 0 | F15: 2 | G15: 1 | H15: 50 | I15: 2 | J15: 1 | K15: 50 | L15: 2 | M15: 1 | N15: 50 | O15: 1 | P15: 0 | Q15: 0 | R15: 0 | S15: 0 | T15: 0 | U15: 0
B16: HUANCAVELICA | C16: (SD) | D16: (SD) | E16: (SD) | F16: (SD) | G16: (SD) | H16: (SD) | I16: (SD) | J16: (SD) | K16: (SD) | L16: (SD) | M16: (SD) | N16: (SD) | O16: (SD) | P16: (SD) | Q16: (SD) | R16: (SD) | S16: (SD) | T16: (SD) | U16: (SD)
B17: HUANUCO | C17: 1 | D17: 0 | E17: 0 | F17: 1 | G17: 0 | H17: 0 | I17: 1 | J17: 0 | K17: 0 | L17: 1 | M17: 0 | N17: 0 | O17: 1 | P17: 1 | Q17: 100 | R17: 0 | S17: 0 | T17: 0 | U17: 0
B18: ICA | C18: 44 | D18: 1 | E18: 2.272727273 | F18: 43 | G18: 8 | H18: 18.60465116 | I18: 44 | J18: 0 | K18: 0 | L18: 44 | M18: 2 | N18: 4.545454545 | O18: 40 | P18: 7 | Q18: 17.5 | R18: 2 | S18: 4.545454545 | T18: 0 | U18: 0
B19: JUNIN | C19: 4 | D19: 1 | E19: 25 | F19: 3 | G19: 1 | H19: 33.33333333 | I19: 4 | J19: 0 | K19: 0 | L19: 4 | M19: 1 | N19: 25 | O19: 3 | P19: 0 | Q19: 0 | R19: 0 | S19: 0 | T19: 0 | U19: 0
B20: LA LIBERTAD | C20: 34 | D20: 5 | E20: 14.70588235 | F20: 29 | G20: 6 | H20: 20.68965517 | I20: 34 | J20: 3 | K20: 8.823529412 | L20: 34 | M20: 2 | N20: 5.882352941 | O20: 27 | P20: 2 | Q20: 7.407407407 | R20: 5 | S20: 14.70588235 | T20: 0 | U20: 0
B21: LAMBAYEQUE | C21: 4 | D21: 0 | E21: 0 | F21: 4 | G21: 0 | H21: 0 | I21: 4 | J21: 0 | K21: 0 | L21: 4 | M21: 0 | N21: 0 | O21: 4 | P21: 2 | Q21: 50 | R21: 0 | S21: 0 | T21: 0 | U21: 0
B22: LIMA | C22: 505 | D22: 46 | E22: 9.108910891 | F22: 459 | G22: 125 | H22: 27.23311547 | I22: 505 | J22: 25 | K22: 4.95049505 | L22: 505 | M22: 25 | N22: 4.95049505 | O22: 439 | P22: 70 | Q22: 15.9453303 | R22: 29 | S22: 5.742574257 | T22: 12 | U22: 2.376237624
B23: LORETO | C23: 1 | D23: 0 | E23: 0 | F23: 1 | G23: 1 | H23: 100 | I23: 1 | J23: 0 | K23: 0 | L23: 1 | M23: 0 | N23: 0 | O23: 1 | P23: 0 | Q23: 0 | R23: 0 | S23: 0 | T23: 0 | U23: 0
B24: MADRE DE DIOS | C24: 1 | D24: 0 | E24: 0 | F24: 1 | G24: 0 | H24: 0 | I24: 1 | J24: 0 | K24: 0 | L24: 1 | M24: 0 | N24: 0 | O24: 1 | P24: 0 | Q24: 0 | R24: 0 | S24: 0 | T24: 0 | U24: 0
B25: MOQUEGUA | C25: 7 | D25: 0 | E25: 0 | F25: 7 | G25: 1 | H25: 14.28571429 | I25: 7 | J25: 0 | K25: 0 | L25: 7 | M25: 0 | N25: 0 | O25: 7 | P25: 1 | Q25: 14.28571429 | R25: 0 | S25: 0 | T25: 0 | U25: 0
B26: PASCO | C26: (SD) | D26: (SD) | E26: (SD) | F26: (SD) | G26: (SD) | H26: (SD) | I26: (SD) | J26: (SD) | K26: (SD) | L26: (SD) | M26: (SD) | N26: (SD) | O26: (SD) | P26: (SD) | Q26: (SD) | R26: (SD) | S26: (SD) | T26: (SD) | U26: (SD)
B27: PIURA | C27: 41 | D27: 1 | E27: 2.43902439 | F27: 40 | G27: 9 | H27: 22.5 | I27: 41 | J27: 0 | K27: 0 | L27: 41 | M27: 0 | N27: 0 | O27: 39 | P27: 1 | Q27: 2.564102564 | R27: 1 | S27: 2.43902439 | T27: 1 | U27: 2.43902439
B28: PUNO | C28: 1 | D28: 0 | E28: 0 | F28: 1 | G28: 0 | H28: 0 | I28: 1 | J28: 0 | K28: 0 | L28: 1 | M28: 0 | N28: 0 | O28: 1 | P28: 0 | Q28: 0 | R28: 0 | S28: 0 | T28: 0 | U28: 0
B29: SAN MARTIN | C29: 8 | D29: 0 | E29: 0 | F29: 8 | G29: 6 | H29: 75 | I29: 8 | J29: 0 | K29: 0 | L29: 8 | M29: 0 | N29: 0 | O29: 7 | P29: 1 | Q29: 14.28571429 | R29: 1 | S29: 12.5 | T29: 0 | U29: 0
B30: TACNA | C30: 2 | D30: 1 | E30: 50 | F30: 1 | G30: 1 | H30: 100 | I30: 2 | J30: 1 | K30: 50 | L30: 2 | M30: 0 | N30: 0 | O30: 2 | P30: 1 | Q30: 50 | R30: 0 | S30: 0 | T30: 0 | U30: 0
B31: TUMBES | C31: 19 | D31: 1 | E31: 5.263157895 | F31: 18 | G31: 7 | H31: 38.88888889 | I31: 19 | J31: 1 | K31: 5.263157895 | L31: 19 | M31: 0 | N31: 0 | O31: 18 | P31: 5 | Q31: 27.77777778 | R31: 1 | S31: 5.263157895 | T31: 0 | U31: 0
B32: UCAYALI | C32: 1 | D32: 0 | E32: 0 | F32: 1 | G32: 1 | H32: 100 | I32: 1 | J32: 0 | K32: 0 | L32: 1 | M32: 0 | N32: 0 | O32: 1 | P32: 0 | Q32: 0 | R32: 0 | S32: 0 | T32: 0 | U32: 0
B33: PERÚ | C33: =SUM(C8:C32) -> 755 | D33: =SUM(D8:D32) -> 62 | E33: =D33/C33*100 -> 8.21192053 | F33: =SUM(F8:F32) -> 693 | G33: =SUM(G8:G32) -> 189 | H33: =G33/F33*100 -> 27.27272727 | I33: =SUM(I8:I32) -> 755 | J33: =SUM(J8:J32) -> 34 | K33: =J33/I33*100 -> 4.503311258 | L33: =SUM(L8:L32) -> 755 | M33: =SUM(M8:M32) -> 33 | N33: =M33/L33*100 -> 4.370860927 | O33: =SUM(O8:O32) -> 666 | P33: =SUM(P8:P32) -> 101 | Q33: =P33/O33*100 -> 15.16516517 | R33: =SUM(R8:R32) -> 41 | S33: =R33/L33*100 -> 5.430463576 | T33: =SUM(T8:T32) -> 15 | U33: =T33/L33*100 -> 1.986754967
B34: Fuente: Sistema de Información SIEN - HIS, 2022.
B35: Instituto Nacional de Salud / Centro Nacional de Alimentación y Nutrición / Dirección Ejecutiva de Vigilancia Alimentaria y Nutricional.
B36: 1,2,3 Indicadores Nitricionales según OMS.
B37: 4 Riesgo de Desnutrición Crónica (T/E)se considera a todo niño que se encuentra con valor -2 <= Z < -1
B38: (SD) Departamentos sin registro de NIÑOS EXTRANJEROS.

Sheet EN 0-59m x DIRESA
B2: CUADRO N°05 PERÚ: ESTADO NUTRICIONAL EN NIÑOS EXTRANJEROS MENORES DE 5 AÑOS QUE ACCEDIERON A LOS ESTABLECIMIENTOS DE SALUD POR INDICADORES ANTROPOMÉTRICOS, SEGÚN DIRESA / GERESA / DIRIS
B3: =INICIO!C$8 -> PERIODO: ENERO A MARZO 2022
B5: DIRESA / GERESA / DIRIS | C5: INDICADOR TALLA / EDAD1 | I5: INDICADOR PESO / EDAD2 | L5: INDICADOR PESO / TALLA3
C6: N° DE EVALUADOS | D6: DESNUTRICIÓN CRÓNICA | F6: N° DE EVALUADOS | G6: RIESGO DE D. CRÓNICA4 | I6: N° DE EVALUADOS | J6: DESNUTRICIÓN GLOBAL | L6: N° DE EVALUADOS | M6: DESNUTRICIÓN AGUDA | O6: N° DE EVALUADOS | P6: RIESGO DE D. AGUDA | R6: SOBREPESO | T6: OBESIDAD
D7: N° DE CASOS | E7: % | G7: N° DE CASOS | H7: % | J7: N° DE CASOS | K7: % | M7: N° DE CASOS | N7: % | P7: N° DE CASOS | Q7: % | R7: N° DE CASOS | S7: % | T7: N° DE CASOS | U7: %
B8: AMAZONAS | C8: 2 | D8: 0 | E8: 0 | F8: 2 | G8: 0 | H8: 0 | I8: 2 | J8: 0 | K8: 0 | L8: 2 | M8: 0 | N8: 0 | O8: 2 | P8: 0 | Q8: 0 | R8: 0 | S8: 0 | T8: 0 | U8: 0
B9: ANCASH | C9: 18 | D9: 1 | E9: 5.555555556 | F9: 17 | G9: 4 | H9: 23.52941176 | I9: 18 | J9: 1 | K9: 5.555555556 | L9: 18 | M9: 1 | N9: 5.555555556 | O9: 16 | P9: 1 | Q9: 6.25 | R9: 1 | S9: 5.555555556 | T9: 0 | U9: 0
B10: APURIMAC | C10: 1 | D10: 0 | E10: 0 | F10: 1 | G10: 0 | H10: 0 | I10: 1 | J10: 0 | K10: 0 | L10: 1 | M10: 0 | N10: 0 | O10: 1 | P10: 0 | Q10: 0 | R10: 0 | S10: 0 | T10: 0 | U10: 0
B11: AREQUIPA | C11: 23 | D11: 2 | E11: 8.695652174 | F11: 21 | G11: 6 | H11: 28.57142857 | I11: 23 | J11: 2 | K11: 8.695652174 | L11: 23 | M11: 1 | N11: 4.347826087 | O11: 22 | P11: 8 | Q11: 36.36363636 | R11: 0 | S11: 0 | T11: 0 | U11: 0
B12: AYACUCHO | C12: 1 | D12: 0 | E12: 0 | F12: 1 | G12: 1 | H12: 100 | I12: 1 | J12: 0 | K12: 0 | L12: 1 | M12: 0 | N12: 0 | O12: 1 | P12: 0 | Q12: 0 | R12: 0 | S12: 0 | T12: 0 | U12: 0
B13: CAJAMARCA | C13: 1 | D13: 0 | E13: 0 | F13: 1 | G13: 0 | H13: 0 | I13: 1 | J13: 0 | K13: 0 | L13: 1 | M13: 0 | N13: 0 | O13: 1 | P13: 0 | Q13: 0 | R13: 0 | S13: 0 | T13: 0 | U13: 0
B14: CALLAO | C14: 34 | D14: 3 | E14: 8.823529412 | F14: 31 | G14: 11 | H14: 35.48387097 | I14: 34 | J14: 0 | K14: 0 | L14: 34 | M14: 0 | N14: 0 | O14: 31 | P14: 1 | Q14: 3.225806452 | R14: 1 | S14: 2.941176471 | T14: 2 | U14: 5.882352941
B15: CUSCO | C15: 2 | D15: 0 | E15: 0 | F15: 2 | G15: 1 | H15: 50 | I15: 2 | J15: 1 | K15: 50 | L15: 2 | M15: 1 | N15: 50 | O15: 1 | P15: 0 | Q15: 0 | R15: 0 | S15: 0 | T15: 0 | U15: 0
B16: HUANCAVELICA | C16: (SD) | D16: (SD) | E16: (SD) | F16: (SD) | G16: (SD) | H16: (SD) | I16: (SD) | J16: (SD) | K16: (SD) | L16: (SD) | M16: (SD) | N16: (SD) | O16: (SD) | P16: (SD) | Q16: (SD) | R16: (SD) | S16: (SD) | T16: (SD) | U16: (SD)
B17: HUANUCO | C17: 1 | D17: 0 | E17: 0 | F17: 1 | G17: 0 | H17: 0 | I17: 1 | J17: 0 | K17: 0 | L17: 1 | M17: 0 | N17: 0 | O17: 1 | P17: 1 | Q17: 100 | R17: 0 | S17: 0 | T17: 0 | U17: 0
B18: ICA | C18: 44 | D18: 1 | E18: 2.272727273 | F18: 43 | G18: 8 | H18: 18.60465116 | I18: 44 | J18: 0 | K18: 0 | L18: 44 | M18: 2 | N18: 4.545454545 | O18: 40 | P18: 7 | Q18: 17.5 | R18: 2 | S18: 4.545454545 | T18: 0 | U18: 0
B19: JUNIN | C19: 4 | D19: 1 | E19: 25 | F19: 3 | G19: 1 | H19: 33.33333333 | I19: 4 | J19: 0 | K19: 0 | L19: 4 | M19: 1 | N19: 25 | O19: 3 | P19: 0 | Q19: 0 | R19: 0 | S19: 0 | T19: 0 | U19: 0
B20: LA LIBERTAD | C20: 34 | D20: 5 | E20: 14.70588235 | F20: 29 | G20: 6 | H20: 20.68965517 | I20: 34 | J20: 3 | K20: 8.823529412 | L20: 34 | M20: 2 | N20: 5.882352941 | O20: 27 | P20: 2 | Q20: 7.407407407 | R20: 5 | S20: 14.70588235 | T20: 0 | U20: 0
B21: LAMBAYEQUE | C21: 4 | D21: 0 | E21: 0 | F21: 4 | G21: 0 | H21: 0 | I21: 4 | J21: 0 | K21: 0 | L21: 4 | M21: 0 | N21: 0 | O21: 4 | P21: 2 | Q21: 50 | R21: 0 | S21: 0 | T21: 0 | U21: 0
B22: LIMA DIRIS CENTRO | C22: 134 | D22: 11 | E22: 8.208955224 | F22: 123 | G22: 37 | H22: 30.08130081 | I22: 134 | J22: 11 | K22: 8.208955224 | L22: 134 | M22: 6 | N22: 4.47761194 | O22: 118 | P22: 25 | Q22: 21.18644068 | R22: 9 | S22: 6.71641791 | T22: 1 | U22: 0.7462686567
B23: LIMA DIRIS ESTE | C23: 96 | D23: 8 | E23: 8.333333333 | F23: 88 | G23: 17 | H23: 19.31818182 | I23: 96 | J23: 4 | K23: 4.166666667 | L23: 96 | M23: 8 | N23: 8.333333333 | O23: 79 | P23: 15 | Q23: 18.98734177 | R23: 8 | S23: 8.333333333 | T23: 1 | U23: 1.041666667
B24: LIMA DIRIS NORTE | C24: 170 | D24: 18 | E24: 10.58823529 | F24: 152 | G24: 41 | H24: 26.97368421 | I24: 170 | J24: 7 | K24: 4.117647059 | L24: 170 | M24: 8 | N24: 4.705882353 | O24: 150 | P24: 22 | Q24: 14.66666667 | R24: 6 | S24: 3.529411765 | T24: 6 | U24: 3.529411765
B25: LIMA DIRIS SUR | C25: 53 | D25: 8 | E25: 15.09433962 | F25: 45 | G25: 16 | H25: 35.55555556 | I25: 53 | J25: 2 | K25: 3.773584906 | L25: 53 | M25: 2 | N25: 3.773584906 | O25: 45 | P25: 6 | Q25: 13.33333333 | R25: 2 | S25: 3.773584906 | T25: 4 | U25: 7.547169811
B26: LIMA PROVINCIAS | C26: 52 | D26: 1 | E26: 1.923076923 | F26: 51 | G26: 14 | H26: 27.45098039 | I26: 52 | J26: 1 | K26: 1.923076923 | L26: 52 | M26: 1 | N26: 1.923076923 | O26: 47 | P26: 2 | Q26: 4.255319149 | R26: 4 | S26: 7.692307692 | T26: 0 | U26: 0
B27: LORETO | C27: 1 | D27: 0 | E27: 0 | F27: 1 | G27: 1 | H27: 100 | I27: 1 | J27: 0 | K27: 0 | L27: 1 | M27: 0 | N27: 0 | O27: 1 | P27: 0 | Q27: 0 | R27: 0 | S27: 0 | T27: 0 | U27: 0
B28: MADRE DE DIOS | C28: 1 | D28: 0 | E28: 0 | F28: 1 | G28: 0 | H28: 0 | I28: 1 | J28: 0 | K28: 0 | L28: 1 | M28: 0 | N28: 0 | O28: 1 | P28: 0 | Q28: 0 | R28: 0 | S28: 0 | T28: 0 | U28: 0
B29: MOQUEGUA | C29: 7 | D29: 0 | E29: 0 | F29: 7 | G29: 1 | H29: 14.28571429 | I29: 7 | J29: 0 | K29: 0 | L29: 7 | M29: 0 | N29: 0 | O29: 7 | P29: 1 | Q29: 14.28571429 | R29: 0 | S29: 0 | T29: 0 | U29: 0
B30: PASCO | C30: (SD) | D30: (SD) | E30: (SD) | F30: (SD) | G30: (SD) | H30: (SD) | I30: (SD) | J30: (SD) | K30: (SD) | L30: (SD) | M30: (SD) | N30: (SD) | O30: (SD) | P30: (SD) | Q30: (SD) | R30: (SD) | S30: (SD) | T30: (SD) | U30: (SD)
B31: PIURA | C31: 41 | D31: 1 | E31: 2.43902439 | F31: 40 | G31: 9 | H31: 22.5 | I31: 41 | J31: 0 | K31: 0 | L31: 41 | M31: 0 | N31: 0 | O31: 39 | P31: 1 | Q31: 2.564102564 | R31: 1 | S31: 2.43902439 | T31: 1 | U31: 2.43902439
B32: PUNO | C32: 1 | D32: 0 | E32: 0 | F32: 1 | G32: 0 | H32: 0 | I32: 1 | J32: 0 | K32: 0 | L32: 1 | M32: 0 | N32: 0 | O32: 1 | P32: 0 | Q32: 0 | R32: 0 | S32: 0 | T32: 0 | U32: 0
B33: SAN MARTIN | C33: 8 | D33: 0 | E33: 0 | F33: 8 | G33: 6 | H33: 75 | I33: 8 | J33: 0 | K33: 0 | L33: 8 | M33: 0 | N33: 0 | O33: 7 | P33: 1 | Q33: 14.28571429 | R33: 1 | S33: 12.5 | T33: 0 | U33: 0
B34: TACNA | C34: 2 | D34: 1 | E34: 50 | F34: 1 | G34: 1 | H34: 100 | I34: 2 | J34: 1 | K34: 50 | L34: 2 | M34: 0 | N34: 0 | O34: 2 | P34: 1 | Q34: 50 | R34: 0 | S34: 0 | T34: 0 | U34: 0
B35: TUMBES | C35: 19 | D35: 1 | E35: 5.263157895 | F35: 18 | G35: 7 | H35: 38.88888889 | I35: 19 | J35: 1 | K35: 5.263157895 | L35: 19 | M35: 0 | N35: 0 | O35: 18 | P35: 5 | Q35: 27.77777778 | R35: 1 | S35: 5.263157895 | T35: 0 | U35: 0
B36: UCAYALI | C36: 1 | D36: 0 | E36: 0 | F36: 1 | G36: 1 | H36: 100 | I36: 1 | J36: 0 | K36: 0 | L36: 1 | M36: 0 | N36: 0 | O36: 1 | P36: 0 | Q36: 0 | R36: 0 | S36: 0 | T36: 0 | U36: 0
B37: PERÚ | C37: =SUM(C8:C36) -> 755 | D37: =SUM(D8:D36) -> 62 | E37: =D37/C37*100 -> 8.21192053 | F37: =SUM(F8:F36) -> 693 | G37: =SUM(G8:G36) -> 189 | H37: =G37/F37*100 -> 27.27272727 | I37: =SUM(I8:I36) -> 755 | J37: =SUM(J8:J36) -> 34 | K37: =J37/I37*100 -> 4.503311258 | L37: =SUM(L8:L36) -> 755 | M37: =SUM(M8:M36) -> 33 | N37: =M37/L37*100 -> 4.370860927 | O37: =SUM(O8:O36) -> 666 | P37: =SUM(P8:P36) -> 101 | Q37: =P37/O37*100 -> 15.16516517 | R37: =SUM(R8:R36) -> 41 | S37: =R37/L37*100 -> 5.430463576 | T37: =SUM(T8:T36) -> 15 | U37: =T37/L37*100 -> 1.986754967
B38: Fuente: Sistema de Información SIEN - HIS, 2022.
B39: Instituto Nacional de Salud / Centro Nacional de Alimentación y Nutrición / Dirección Ejecutiva de Vigilancia Alimentaria y Nutricional.
B40: 1,2,3 Indicadores Nitricionales según OMS.
B41: 4 Riesgo de Desnutrición Crónica (T/E)se considera a todo niño que se encuentra con valor -2 <= Z < -1
B42: (SD) Diresas sin registro de NIÑOS EXTRANJEROS.

Sheet EN 0-59m x DISTRITO
B2: CUADRO N°06 PERÚ: ESTADO NUTRICIONAL EN NIÑOS EXTRANJEROS MENORES DE 5 AÑOS QUE ACCEDIERON A LOS ESTABLECIMIENTOS DE SALUD POR INDICADORES ANTROPOMÉTRICOS, SEGÚN DEPARTAMENTO, PROVINCIA Y DISTRITO DEL ESTABLECIMIENTO DE SALUD
B3: =INICIO!C$8 -> PERIODO: ENERO A MARZO 2022
B5: DEPARTAMENTO | C5: PROVINCIA | D5: DISTRITO | E5: UBIGEO | F5: INDICADOR TALLA / EDAD1 | L5: INDICADOR PESO / EDAD2 | O5: INDICADOR PESO / TALLA3
F6: N° DE EVALUADOS | G6: DESNUTRICIÓN CRÓNICA | I6: N° DE EVALUADOS | J6: RIESGO DE D. CRÓNICA4 | L6: N° DE EVALUADOS | M6: DESNUTRICIÓN GLOBAL | O6: N° DE EVALUADOS | P6: DESNUTRICIÓN AGUDA | R6: N° DE EVALUADOS | S6: RIESGO DE D. AGUDA | U6: SOBREPESO | W6: OBESIDAD
G7: N° DE CASOS | H7: % | J7: N° DE CASOS | K7: % | M7: N° DE CASOS | N7: % | P7: N° DE CASOS | Q7: % | S7: N° DE CASOS | T7: % | U7: N° DE CASOS | V7: % | W7: N° DE CASOS | X7: %
B8: AMAZONAS | C8: BAGUA | D8: BAGUA | E8: 010201 | F8: 1 | G8: 0 | H8: 0 | I8: 1 | J8: 0 | K8: 0 | L8: 1 | M8: 0 | N8: 0 | O8: 1 | P8: 0 | Q8: 0 | R8: 1 | S8: 0 | T8: 0 | U8: 0 | V8: 0 | W8: 0 | X8: 0
C9: UTCUBAMBA | D9: BAGUA GRANDE | E9: 010701 | F9: 1 | G9: 0 | H9: 0 | I9: 1 | J9: 0 | K9: 0 | L9: 1 | M9: 0 | N9: 0 | O9: 1 | P9: 0 | Q9: 0 | R9: 1 | S9: 0 | T9: 0 | U9: 0 | V9: 0 | W9: 0 | X9: 0
B10: ANCASH | C10: BOLOGNESI | D10: COLQUIOC | E10: 020507 | F10: 1 | G10: 0 | H10: 0 | I10: 1 | J10: 1 | K10: 100 | L10: 1 | M10: 0 | N10: 0 | O10: 1 | P10: 0 | Q10: 0 | R10: 1 | S10: 0 | T10: 0 | U10: 0 | V10: 0 | W10: 0 | X10: 0
C11: CASMA | D11: CASMA | E11: 020801 | F11: 6 | G11: 0 | H11: 0 | I11: 6 | J11: 1 | K11: 16.66666667 | L11: 6 | M11: 0 | N11: 0 | O11: 6 | P11: 1 | Q11: 16.66666667 | R11: 5 | S11: 0 | T11: 0 | U11: 0 | V11: 0 | W11: 0 | X11: 0
C12: HUARMEY | D12: HUARMEY | E12: 021101 | F12: 1 | G12: 1 | H12: 100 | I12: 0 | J12: 0 | K12: 0 | L12: 1 | M12: 1 | N12: 100 | O12: 1 | P12: 0 | Q12: 0 | R12: 1 | S12: 0 | T12: 0 | U12: 0 | V12: 0 | W12: 0 | X12: 0
C13: HUAYLAS | D13: CARAZ | E13: 021201 | F13: 1 | G13: 0 | H13: 0 | I13: 1 | J13: 0 | K13: 0 | L13: 1 | M13: 0 | N13: 0 | O13: 1 | P13: 0 | Q13: 0 | R13: 1 | S13: 1 | T13: 100 | U13: 0 | V13: 0 | W13: 0 | X13: 0
C14: SANTA | D14: CHIMBOTE | E14: 021801 | F14: 4 | G14: 0 | H14: 0 | I14: 4 | J14: 1 | K14: 25 | L14: 4 | M14: 0 | N14: 0 | O14: 4 | P14: 0 | Q14: 0 | R14: 3 | S14: 0 | T14: 0 | U14: 1 | V14: 25 | W14: 0 | X14: 0
D15: COISHCO | E15: 021803 | F15: 1 | G15: 0 | H15: 0 | I15: 1 | J15: 0 | K15: 0 | L15: 1 | M15: 0 | N15: 0 | O15: 1 | P15: 0 | Q15: 0 | R15: 1 | S15: 0 | T15: 0 | U15: 0 | V15: 0 | W15: 0 | X15: 0
D16: NUEVO CHIMBOTE | E16: 021809 | F16: 2 | G16: 0 | H16: 0 | I16: 2 | J16: 0 | K16: 0 | L16: 2 | M16: 0 | N16: 0 | O16: 2 | P16: 0 | Q16: 0 | R16: 2 | S16: 0 | T16: 0 | U16: 0 | V16: 0 | W16: 0 | X16: 0
D17: SANTA | E17: 021808 | F17: 2 | G17: 0 | H17: 0 | I17: 2 | J17: 1 | K17: 50 | L17: 2 | M17: 0 | N17: 0 | O17: 2 | P17: 0 | Q17: 0 | R17: 2 | S17: 0 | T17: 0 | U17: 0 | V17: 0 | W17: 0 | X17: 0
B18: APURIMAC | C18: ABANCAY | D18: ABANCAY | E18: 030101 | F18: 1 | G18: 0 | H18: 0 | I18: 1 | J18: 0 | K18: 0 | L18: 1 | M18: 0 | N18: 0 | O18: 1 | P18: 0 | Q18: 0 | R18: 1 | S18: 0 | T18: 0 | U18: 0 | V18: 0 | W18: 0 | X18: 0
B19: AREQUIPA | C19: AREQUIPA | D19: ALTO SELVA ALEGRE | E19: 040102 | F19: 2 | G19: 0 | H19: 0 | I19: 2 | J19: 2 | K19: 100 | L19: 2 | M19: 0 | N19: 0 | O19: 2 | P19: 0 | Q19: 0 | R19: 2 | S19: 1 | T19: 50 | U19: 0 | V19: 0 | W19: 0 | X19: 0
D20: CERRO COLORADO | E20: 040104 | F20: 4 | G20: 1 | H20: 25 | I20: 3 | J20: 0 | K20: 0 | L20: 4 | M20: 1 | N20: 25 | O20: 4 | P20: 0 | Q20: 0 | R20: 4 | S20: 2 | T20: 50 | U20: 0 | V20: 0 | W20: 0 | X20: 0
D21: CHARACATO | E21: 040105 | F21: 1 | G21: 0 | H21: 0 | I21: 1 | J21: 0 | K21: 0 | L21: 1 | M21: 0 | N21: 0 | O21: 1 | P21: 1 | Q21: 100 | R21: 0 | S21: 0 | T21: 0 | U21: 0 | V21: 0 | W21: 0 | X21: 0
D22: JACOBO HUNTER | E22: 040107 | F22: 2 | G22: 0 | H22: 0 | I22: 2 | J22: 1 | K22: 50 | L22: 2 | M22: 0 | N22: 0 | O22: 2 | P22: 0 | Q22: 0 | R22: 2 | S22: 0 | T22: 0 | U22: 0 | V22: 0 | W22: 0 | X22: 0
D23: JOSE LUIS BUSTAMANTE Y RIVERO | E23: 040129 | F23: 1 | G23: 0 | H23: 0 | I23: 1 | J23: 0 | K23: 0 | L23: 1 | M23: 0 | N23: 0 | O23: 1 | P23: 0 | Q23: 0 | R23: 1 | S23: 0 | T23: 0 | U23: 0 | V23: 0 | W23: 0 | X23: 0
D24: MARIANO MELGAR | E24: 040109 | F24: 1 | G24: 0 | H24: 0 | I24: 1 | J24: 1 | K24: 100 | L24: 1 | M24: 0 | N24: 0 | O24: 1 | P24: 0 | Q24: 0 | R24: 1 | S24: 1 | T24: 100 | U24: 0 | V24: 0 | W24: 0 | X24: 0
D25: MIRAFLORES | E25: 040110 | F25: 1 | G25: 0 | H25: 0 | I25: 1 | J25: 0 | K25: 0 | L25: 1 | M25: 0 | N25: 0 | O25: 1 | P25: 0 | Q25: 0 | R25: 1 | S25: 0 | T25: 0 | U25: 0 | V25: 0 | W25: 0 | X25: 0
D26: PAUCARPATA | E26: 040112 | F26: 3 | G26: 0 | H26: 0 | I26: 3 | J26: 1 | K26: 33.33333333 | L26: 3 | M26: 0 | N26: 0 | O26: 3 | P26: 0 | Q26: 0 | R26: 3 | S26: 2 | T26: 66.66666667 | U26: 0 | V26: 0 | W26: 0 | X26: 0
D27: SOCABAYA | E27: 040122 | F27: 1 | G27: 0 | H27: 0 | I27: 1 | J27: 0 | K27: 0 | L27: 1 | M27: 0 | N27: 0 | O27: 1 | P27: 0 | Q27: 0 | R27: 1 | S27: 0 | T27: 0 | U27: 0 | V27: 0 | W27: 0 | X27: 0
C28: CAMANA | D28: QUILCA | E28: 040207 | F28: 1 | G28: 0 | H28: 0 | I28: 1 | J28: 1 | K28: 100 | L28: 1 | M28: 0 | N28: 0 | O28: 1 | P28: 0 | Q28: 0 | R28: 1 | S28: 0 | T28: 0 | U28: 0 | V28: 0 | W28: 0 | X28: 0
C29: CARAVELI | D29: ATICO | E29: 040303 | F29: 1 | G29: 0 | H29: 0 | I29: 1 | J29: 0 | K29: 0 | L29: 1 | M29: 0 | N29: 0 | O29: 1 | P29: 0 | Q29: 0 | R29: 1 | S29: 0 | T29: 0 | U29: 0 | V29: 0 | W29: 0 | X29: 0
D30: CARAVELI | E30: 040301 | F30: 1 | G30: 0 | H30: 0 | I30: 1 | J30: 0 | K30: 0 | L30: 1 | M30: 0 | N30: 0 | O30: 1 | P30: 0 | Q30: 0 | R30: 1 | S30: 0 | T30: 0 | U30: 0 | V30: 0 | W30: 0 | X30: 0
D31: YAUCA | E31: 040313 | F31: 1 | G31: 0 | H31: 0 | I31: 1 | J31: 0 | K31: 0 | L31: 1 | M31: 0 | N31: 0 | O31: 1 | P31: 0 | Q31: 0 | R31: 1 | S31: 0 | T31: 0 | U31: 0 | V31: 0 | W31: 0 | X31: 0
C32: ISLAY | D32: ISLAY | E32: 040704 | F32: 1 | G32: 1 | H32: 100 | I32: 0 | J32: 0 | K32: 0 | L32: 1 | M32: 1 | N32: 100 | O32: 1 | P32: 0 | Q32: 0 | R32: 1 | S32: 1 | T32: 100 | U32: 0 | V32: 0 | W32: 0 | X32: 0
D33: MOLLENDO | E33: 040701 | F33: 2 | G33: 0 | H33: 0 | I33: 2 | J33: 0 | K33: 0 | L33: 2 | M33: 0 | N33: 0 | O33: 2 | P33: 0 | Q33: 0 | R33: 2 | S33: 1 | T33: 50 | U33: 0 | V33: 0 | W33: 0 | X33: 0
B34: AYACUCHO | C34: LA MAR | D34: ANCO | E34: 050502 | F34: 1 | G34: 0 | H34: 0 | I34: 1 | J34: 1 | K34: 100 | L34: 1 | M34: 0 | N34: 0 | O34: 1 | P34: 0 | Q34: 0 | R34: 1 | S34: 0 | T34: 0 | U34: 0 | V34: 0 | W34: 0 | X34: 0
B35: CAJAMARCA | C35: SAN IGNACIO | D35: SAN IGNACIO | E35: 060901 | F35: 1 | G35: 0 | H35: 0 | I35: 1 | J35: 0 | K35: 0 | L35: 1 | M35: 0 | N35: 0 | O35: 1 | P35: 0 | Q35: 0 | R35: 1 | S35: 0 | T35: 0 | U35: 0 | V35: 0 | W35: 0 | X35: 0
B36: CALLAO | C36: CALLAO | D36: BELLAVISTA | E36: 070102 | F36: 1 | G36: 1 | H36: 100 | I36: 0 | J36: 0 | K36: 0 | L36: 1 | M36: 0 | N36: 0 | O36: 1 | P36: 0 | Q36: 0 | R36: 1 | S36: 0 | T36: 0 | U36: 0 | V36: 0 | W36: 0 | X36: 0
D37: CALLAO | E37: 070101 | F37: 18 | G37: 0 | H37: 0 | I37: 18 | J37: 7 | K37: 38.88888889 | L37: 18 | M37: 0 | N37: 0 | O37: 18 | P37: 0 | Q37: 0 | R37: 17 | S37: 1 | T37: 5.882352941 | U37: 0 | V37: 0 | W37: 1 | X37: 5.555555556
D38: CARMEN DE LA LEGUA-REYNOSO | E38: 070103 | F38: 1 | G38: 1 | H38: 100 | I38: 0 | J38: 0 | K38: 0 | L38: 1 | M38: 0 | N38: 0 | O38: 1 | P38: 0 | Q38: 0 | R38: 1 | S38: 0 | T38: 0 | U38: 0 | V38: 0 | W38: 0 | X38: 0
D39: VENTANILLA | E39: 070106 | F39: 14 | G39: 1 | H39: 7.142857143 | I39: 13 | J39: 4 | K39: 30.76923077 | L39: 14 | M39: 0 | N39: 0 | O39: 14 | P39: 0 | Q39: 0 | R39: 12 | S39: 0 | T39: 0 | U39: 1 | V39: 7.142857143 | W39: 1 | X39: 7.142857143
B40: CUSCO | C40: CUSCO | D40: SAN SEBASTIAN | E40: 080105 | F40: 1 | G40: 0 | H40: 0 | I40: 1 | J40: 0 | K40: 0 | L40: 1 | M40: 0 | N40: 0 | O40: 1 | P40: 0 | Q40: 0 | R40: 1 | S40: 0 | T40: 0 | U40: 0 | V40: 0 | W40: 0 | X40: 0
D41: SANTIAGO | E41: 080106 | F41: 1 | G41: 0 | H41: 0 | I41: 1 | J41: 1 | K41: 100 | L41: 1 | M41: 1 | N41: 100 | O41: 1 | P41: 1 | Q41: 100 | R41: 0 | S41: 0 | T41: 0 | U41: 0 | V41: 0 | W41: 0 | X41: 0
B42: HUANUCO | C42: HUANUCO | D42: AMARILIS | E42: 100102 | F42: 1 | G42: 0 | H42: 0 | I42: 1 | J42: 0 | K42: 0 | L42: 1 | M42: 0 | N42: 0 | O42: 1 | P42: 0 | Q42: 0 | R42: 1 | S42: 1 | T42: 100 | U42: 0 | V42: 0 | W42: 0 | X42: 0
B43: ICA | C43: CHINCHA | D43: CHINCHA BAJA | E43: 110204 | F43: 1 | G43: 0 | H43: 0 | I43: 1 | J43: 0 | K43: 0 | L43: 1 | M43: 0 | N43: 0 | O43: 1 | P43: 0 | Q43: 0 | R43: 1 | S43: 0 | T43: 0 | U43: 0 | V43: 0 | W43: 0 | X43: 0
D44: GROCIO PRADO | E44: 110206 | F44: 4 | G44: 0 | H44: 0 | I44: 4 | J44: 1 | K44: 25 | L44: 4 | M44: 0 | N44: 0 | O44: 4 | P44: 0 | Q44: 0 | R44: 4 | S44: 1 | T44: 25 | U44: 0 | V44: 0 | W44: 0 | X44: 0
D45: PUEBLO NUEVO | E45: 110207 | F45: 5 | G45: 1 | H45: 20 | I45: 4 | J45: 1 | K45: 25 | L45: 5 | M45: 0 | N45: 0 | O45: 5 | P45: 0 | Q45: 0 | R45: 5 | S45: 0 | T45: 0 | U45: 0 | V45: 0 | W45: 0 | X45: 0
C46: ICA | D46: ICA | E46: 110101 | F46: 6 | G46: 0 | H46: 0 | I46: 6 | J46: 2 | K46: 33.33333333 | L46: 6 | M46: 0 | N46: 0 | O46: 6 | P46: 0 | Q46: 0 | R46: 6 | S46: 1 | T46: 16.66666667 | U46: 0 | V46: 0 | W46: 0 | X46: 0
D47: LA TINGUIÑA | E47: 110102 | F47: 1 | G47: 0 | H47: 0 | I47: 1 | J47: 0 | K47: 0 | L47: 1 | M47: 0 | N47: 0 | O47: 1 | P47: 0 | Q47: 0 | R47: 0 | S47: 0 | T47: 0 | U47: 1 | V47: 100 | W47: 0 | X47: 0
D48: PUEBLO NUEVO | E48: 110107 | F48: 1 | G48: 0 | H48: 0 | I48: 1 | J48: 0 | K48: 0 | L48: 1 | M48: 0 | N48: 0 | O48: 1 | P48: 0 | Q48: 0 | R48: 1 | S48: 0 | T48: 0 | U48: 0 | V48: 0 | W48: 0 | X48: 0
D49: SALAS | E49: 110108 | F49: 1 | G49: 0 | H49: 0 | I49: 1 | J49: 0 | K49: 0 | L49: 1 | M49: 0 | N49: 0 | O49: 1 | P49: 0 | Q49: 0 | R49: 1 | S49: 1 | T49: 100 | U49: 0 | V49: 0 | W49: 0 | X49: 0
D50: SUBTANJALLA | E50: 110112 | F50: 4 | G50: 0 | H50: 0 | I50: 4 | J50: 0 | K50: 0 | L50: 4 | M50: 0 | N50: 0 | O50: 4 | P50: 0 | Q50: 0 | R50: 4 | S50: 1 | T50: 25 | U50: 0 | V50: 0 | W50: 0 | X50: 0
D51: TATE | E51: 110113 | F51: 1 | G51: 0 | H51: 0 | I51: 1 | J51: 0 | K51: 0 | L51: 1 | M51: 0 | N51: 0 | O51: 1 | P51: 0 | Q51: 0 | R51: 1 | S51: 0 | T51: 0 | U51: 0 | V51: 0 | W51: 0 | X51: 0
C52: NAZCA | D52: MARCONA | E52: 110304 | F52: 4 | G52: 0 | H52: 0 | I52: 4 | J52: 0 | K52: 0 | L52: 4 | M52: 0 | N52: 0 | O52: 4 | P52: 0 | Q52: 0 | R52: 4 | S52: 1 | T52: 25 | U52: 0 | V52: 0 | W52: 0 | X52: 0
D53: NAZCA | E53: 110301 | F53: 1 | G53: 0 | H53: 0 | I53: 1 | J53: 0 | K53: 0 | L53: 1 | M53: 0 | N53: 0 | O53: 1 | P53: 0 | Q53: 0 | R53: 1 | S53: 0 | T53: 0 | U53: 0 | V53: 0 | W53: 0 | X53: 0
C54: PISCO | D54: PARACAS | E54: 110505 | F54: 1 | G54: 0 | H54: 0 | I54: 1 | J54: 1 | K54: 100 | L54: 1 | M54: 0 | N54: 0 | O54: 1 | P54: 0 | Q54: 0 | R54: 1 | S54: 0 | T54: 0 | U54: 0 | V54: 0 | W54: 0 | X54: 0
D55: PISCO | E55: 110501 | F55: 3 | G55: 0 | H55: 0 | I55: 3 | J55: 1 | K55: 33.33333333 | L55: 3 | M55: 0 | N55: 0 | O55: 3 | P55: 0 | Q55: 0 | R55: 2 | S55: 0 | T55: 0 | U55: 1 | V55: 33.33333333 | W55: 0 | X55: 0
D56: SAN ANDRES | E56: 110506 | F56: 10 | G56: 0 | H56: 0 | I56: 10 | J56: 1 | K56: 10 | L56: 10 | M56: 0 | N56: 0 | O56: 10 | P56: 2 | Q56: 20 | R56: 8 | S56: 2 | T56: 25 | U56: 0 | V56: 0 | W56: 0 | X56: 0
D57: SAN CLEMENTE | E57: 110507 | F57: 1 | G57: 0 | H57: 0 | I57: 1 | J57: 1 | K57: 100 | L57: 1 | M57: 0 | N57: 0 | O57: 1 | P57: 0 | Q57: 0 | R57: 1 | S57: 0 | T57: 0 | U57: 0 | V57: 0 | W57: 0 | X57: 0
B58: JUNIN | C58: CHANCHAMAYO | D58: PICHANAQUI | E58: 120303 | F58: 1 | G58: 0 | H58: 0 | I58: 1 | J58: 0 | K58: 0 | L58: 1 | M58: 0 | N58: 0 | O58: 1 | P58: 0 | Q58: 0 | R58: 1 | S58: 0 | T58: 0 | U58: 0 | V58: 0 | W58: 0 | X58: 0
C59: SATIPO | D59: PANGOA | E59: 120606 | F59: 3 | G59: 1 | H59: 33.33333333 | I59: 2 | J59: 1 | K59: 50 | L59: 3 | M59: 0 | N59: 0 | O59: 3 | P59: 1 | Q59: 33.33333333 | R59: 2 | S59: 0 | T59: 0 | U59: 0 | V59: 0 | W59: 0 | X59: 0
B60: LA LIBERTAD | C60: ASCOPE | D60: CASA GRANDE | E60: 130208 | F60: 2 | G60: 0 | H60: 0 | I60: 2 | J60: 0 | K60: 0 | L60: 2 | M60: 0 | N60: 0 | O60: 2 | P60: 0 | Q60: 0 | R60: 2 | S60: 0 | T60: 0 | U60: 0 | V60: 0 | W60: 0 | X60: 0
D61: PAIJAN | E61: 130205 | F61: 2 | G61: 1 | H61: 50 | I61: 1 | J61: 0 | K61: 0 | L61: 2 | M61: 1 | N61: 50 | O61: 2 | P61: 0 | Q61: 0 | R61: 2 | S61: 0 | T61: 0 | U61: 0 | V61: 0 | W61: 0 | X61: 0
D62: RAZURI | E62: 130206 | F62: 1 | G62: 0 | H62: 0 | I62: 1 | J62: 0 | K62: 0 | L62: 1 | M62: 0 | N62: 0 | O62: 1 | P62: 0 | Q62: 0 | R62: 1 | S62: 0 | T62: 0 | U62: 0 | V62: 0 | W62: 0 | X62: 0
C63: CHEPEN | D63: CHEPEN | E63: 130401 | F63: 6 | G63: 3 | H63: 50 | I63: 3 | J63: 2 | K63: 66.66666667 | L63: 6 | M63: 1 | N63: 16.66666667 | O63: 6 | P63: 0 | Q63: 0 | R63: 5 | S63: 2 | T63: 40 | U63: 1 | V63: 16.66666667 | W63: 0 | X63: 0
D64: PACANGA | E64: 130402 | F64: 1 | G64: 0 | H64: 0 | I64: 1 | J64: 1 | K64: 100 | L64: 1 | M64: 0 | N64: 0 | O64: 1 | P64: 0 | Q64: 0 | R64: 1 | S64: 0 | T64: 0 | U64: 0 | V64: 0 | W64: 0 | X64: 0
C65: PACASMAYO | D65: GUADALUPE | E65: 130702 | F65: 2 | G65: 0 | H65: 0 | I65: 2 | J65: 0 | K65: 0 | L65: 2 | M65: 0 | N65: 0 | O65: 2 | P65: 0 | Q65: 0 | R65: 2 | S65: 0 | T65: 0 | U65: 0 | V65: 0 | W65: 0 | X65: 0
D66: PACASMAYO | E66: 130704 | F66: 1 | G66: 0 | H66: 0 | I66: 1 | J66: 0 | K66: 0 | L66: 1 | M66: 0 | N66: 0 | O66: 1 | P66: 0 | Q66: 0 | R66: 1 | S66: 0 | T66: 0 | U66: 0 | V66: 0 | W66: 0 | X66: 0
C67: TRUJILLO | D67: EL PORVENIR | E67: 130102 | F67: 1 | G67: 0 | H67: 0 | I67: 1 | J67: 0 | K67: 0 | L67: 1 | M67: 0 | N67: 0 | O67: 1 | P67: 0 | Q67: 0 | R67: 1 | S67: 0 | T67: 0 | U67: 0 | V67: 0 | W67: 0 | X67: 0
D68: FLORENCIA DE MORA | E68: 130103 | F68: 1 | G68: 0 | H68: 0 | I68: 1 | J68: 0 | K68: 0 | L68: 1 | M68: 0 | N68: 0 | O68: 1 | P68: 0 | Q68: 0 | R68: 1 | S68: 0 | T68: 0 | U68: 0 | V68: 0 | W68: 0 | X68: 0
D69: HUANCHACO | E69: 130104 | F69: 1 | G69: 0 | H69: 0 | I69: 1 | J69: 0 | K69: 0 | L69: 1 | M69: 0 | N69: 0 | O69: 1 | P69: 1 | Q69: 100 | R69: 0 | S69: 0 | T69: 0 | U69: 0 | V69: 0 | W69: 0 | X69: 0
D70: LA ESPERANZA | E70: 130105 | F70: 1 | G70: 0 | H70: 0 | I70: 1 | J70: 0 | K70: 0 | L70: 1 | M70: 0 | N70: 0 | O70: 1 | P70: 0 | Q70: 0 | R70: 1 | S70: 0 | T70: 0 | U70: 0 | V70: 0 | W70: 0 | X70: 0
D71: MOCHE | E71: 130107 | F71: 4 | G71: 0 | H71: 0 | I71: 4 | J71: 1 | K71: 25 | L71: 4 | M71: 1 | N71: 25 | O71: 4 | P71: 1 | Q71: 25 | R71: 2 | S71: 0 | T71: 0 | U71: 1 | V71: 25 | W71: 0 | X71: 0
D72: TRUJILLO | E72: 130101 | F72: 10 | G72: 1 | H72: 10 | I72: 9 | J72: 2 | K72: 22.22222222 | L72: 10 | M72: 0 | N72: 0 | O72: 10 | P72: 0 | Q72: 0 | R72: 7 | S72: 0 | T72: 0 | U72: 3 | V72: 30 | W72: 0 | X72: 0
C73: VIRU | D73: CHAO | E73: 131202 | F73: 1 | G73: 0 | H73: 0 | I73: 1 | J73: 0 | K73: 0 | L73: 1 | M73: 0 | N73: 0 | O73: 1 | P73: 0 | Q73: 0 | R73: 1 | S73: 0 | T73: 0 | U73: 0 | V73: 0 | W73: 0 | X73: 0
B74: LAMBAYEQUE | C74: CHICLAYO | D74: CHICLAYO | E74: 140101 | F74: 1 | G74: 0 | H74: 0 | I74: 1 | J74: 0 | K74: 0 | L74: 1 | M74: 0 | N74: 0 | O74: 1 | P74: 0 | Q74: 0 | R74: 1 | S74: 1 | T74: 100 | U74: 0 | V74: 0 | W74: 0 | X74: 0
D75: JOSE LEONARDO ORTIZ | E75: 140105 | F75: 1 | G75: 0 | H75: 0 | I75: 1 | J75: 0 | K75: 0 | L75: 1 | M75: 0 | N75: 0 | O75: 1 | P75: 0 | Q75: 0 | R75: 1 | S75: 0 | T75: 0 | U75: 0 | V75: 0 | W75: 0 | X75: 0
D76: LAGUNAS | E76: 140107 | F76: 1 | G76: 0 | H76: 0 | I76: 1 | J76: 0 | K76: 0 | L76: 1 | M76: 0 | N76: 0 | O76: 1 | P76: 0 | Q76: 0 | R76: 1 | S76: 0 | T76: 0 | U76: 0 | V76: 0 | W76: 0 | X76: 0
C77: FERREÑAFE | D77: FERREÑAFE | E77: 140201 | F77: 1 | G77: 0 | H77: 0 | I77: 1 | J77: 0 | K77: 0 | L77: 1 | M77: 0 | N77: 0 | O77: 1 | P77: 0 | Q77: 0 | R77: 1 | S77: 1 | T77: 100 | U77: 0 | V77: 0 | W77: 0 | X77: 0
B78: LIMA | C78: BARRANCA | D78: BARRANCA | E78: 150201 | F78: 2 | G78: 0 | H78: 0 | I78: 2 | J78: 2 | K78: 100 | L78: 2 | M78: 0 | N78: 0 | O78: 2 | P78: 0 | Q78: 0 | R78: 2 | S78: 1 | T78: 50 | U78: 0 | V78: 0 | W78: 0 | X78: 0
D79: SUPE | E79: 150204 | F79: 6 | G79: 0 | H79: 0 | I79: 6 | J79: 2 | K79: 33.33333333 | L79: 6 | M79: 0 | N79: 0 | O79: 6 | P79: 0 | Q79: 0 | R79: 5 | S79: 0 | T79: 0 | U79: 1 | V79: 16.66666667 | W79: 0 | X79: 0
C80: CAÑETE | D80: CHILCA | E80: 150505 | F80: 2 | G80: 0 | H80: 0 | I80: 2 | J80: 0 | K80: 0 | L80: 2 | M80: 0 | N80: 0 | O80: 2 | P80: 0 | Q80: 0 | R80: 2 | S80: 0 | T80: 0 | U80: 0 | V80: 0 | W80: 0 | X80: 0
D81: MALA | E81: 150509 | F81: 6 | G81: 0 | H81: 0 | I81: 6 | J81: 2 | K81: 33.33333333 | L81: 6 | M81: 1 | N81: 16.66666667 | O81: 6 | P81: 1 | Q81: 16.66666667 | R81: 5 | S81: 0 | T81: 0 | U81: 0 | V81: 0 | W81: 0 | X81: 0
C82: HUARAL | D82: AUCALLAMA | E82: 150604 | F82: 2 | G82: 0 | H82: 0 | I82: 2 | J82: 0 | K82: 0 | L82: 2 | M82: 0 | N82: 0 | O82: 2 | P82: 0 | Q82: 0 | R82: 2 | S82: 0 | T82: 0 | U82: 0 | V82: 0 | W82: 0 | X82: 0
D83: CHANCAY | E83: 150605 | F83: 10 | G83: 1 | H83: 10 | I83: 9 | J83: 4 | K83: 44.44444444 | L83: 10 | M83: 0 | N83: 0 | O83: 10 | P83: 0 | Q83: 0 | R83: 9 | S83: 1 | T83: 11.11111111 | U83: 1 | V83: 10 | W83: 0 | X83: 0
D84: HUARAL | E84: 150601 | F84: 5 | G84: 0 | H84: 0 | I84: 5 | J84: 1 | K84: 20 | L84: 5 | M84: 0 | N84: 0 | O84: 5 | P84: 0 | Q84: 0 | R84: 5 | S84: 0 | T84: 0 | U84: 0 | V84: 0 | W84: 0 | X84: 0
C85: HUAROCHIRI | D85: SANTA EULALIA | E85: 150728 | F85: 1 | G85: 0 | H85: 0 | I85: 1 | J85: 1 | K85: 100 | L85: 1 | M85: 0 | N85: 0 | O85: 1 | P85: 0 | Q85: 0 | R85: 1 | S85: 0 | T85: 0 | U85: 0 | V85: 0 | W85: 0 | X85: 0
C86: HUAURA | D86: HUACHO | E86: 150801 | F86: 3 | G86: 0 | H86: 0 | I86: 3 | J86: 1 | K86: 33.33333333 | L86: 3 | M86: 0 | N86: 0 | O86: 3 | P86: 0 | Q86: 0 | R86: 3 | S86: 0 | T86: 0 | U86: 0 | V86: 0 | W86: 0 | X86: 0
D87: HUALMAY | E87: 150805 | F87: 4 | G87: 0 | H87: 0 | I87: 4 | J87: 1 | K87: 25 | L87: 4 | M87: 0 | N87: 0 | O87: 4 | P87: 0 | Q87: 0 | R87: 4 | S87: 0 | T87: 0 | U87: 0 | V87: 0 | W87: 0 | X87: 0
D88: SANTA MARIA | E88: 150810 | F88: 2 | G88: 0 | H88: 0 | I88: 2 | J88: 0 | K88: 0 | L88: 2 | M88: 0 | N88: 0 | O88: 2 | P88: 0 | Q88: 0 | R88: 2 | S88: 0 | T88: 0 | U88: 0 | V88: 0 | W88: 0 | X88: 0
D89: SAYAN | E89: 150811 | F89: 3 | G89: 0 | H89: 0 | I89: 3 | J89: 0 | K89: 0 | L89: 3 | M89: 0 | N89: 0 | O89: 3 | P89: 0 | Q89: 0 | R89: 1 | S89: 0 | T89: 0 | U89: 2 | V89: 66.66666667 | W89: 0 | X89: 0
D90: VEGUETA | E90: 150812 | F90: 5 | G90: 0 | H90: 0 | I90: 5 | J90: 0 | K90: 0 | L90: 5 | M90: 0 | N90: 0 | O90: 5 | P90: 0 | Q90: 0 | R90: 5 | S90: 0 | T90: 0 | U90: 0 | V90: 0 | W90: 0 | X90: 0
C91: LIMA | D91: ANCON | E91: 150102 | F91: 6 | G91: 0 | H91: 0 | I91: 6 | J91: 4 | K91: 66.66666667 | L91: 6 | M91: 0 | N91: 0 | O91: 6 | P91: 0 | Q91: 0 | R91: 6 | S91: 2 | T91: 33.33333333 | U91: 0 | V91: 0 | W91: 0 | X91: 0
D92: ATE | E92: 150103 | F92: 32 | G92: 3 | H92: 9.375 | I92: 29 | J92: 8 | K92: 27.5862069 | L92: 32 | M92: 1 | N92: 3.125 | O92: 32 | P92: 0 | Q92: 0 | R92: 27 | S92: 5 | T92: 18.51851852 | U92: 5 | V92: 15.625 | W92: 0 | X92: 0
D93: CARABAYLLO | E93: 150106 | F93: 7 | G93: 0 | H93: 0 | I93: 7 | J93: 1 | K93: 14.28571429 | L93: 7 | M93: 1 | N93: 14.28571429 | O93: 7 | P93: 1 | Q93: 14.28571429 | R93: 5 | S93: 1 | T93: 20 | U93: 0 | V93: 0 | W93: 1 | X93: 14.28571429
D94: CHORRILLOS | E94: 150108 | F94: 4 | G94: 2 | H94: 50 | I94: 2 | J94: 1 | K94: 50 | L94: 4 | M94: 0 | N94: 0 | O94: 4 | P94: 0 | Q94: 0 | R94: 4 | S94: 0 | T94: 0 | U94: 0 | V94: 0 | W94: 0 | X94: 0
D95: COMAS | E95: 150110 | F95: 38 | G95: 6 | H95: 15.78947368 | I95: 32 | J95: 7 | K95: 21.875 | L95: 38 | M95: 3 | N95: 7.894736842 | O95: 38 | P95: 2 | Q95: 5.263157895 | R95: 34 | S95: 7 | T95: 20.58823529 | U95: 1 | V95: 2.631578947 | W95: 1 | X95: 2.631578947
D96: EL AGUSTINO | E96: 150111 | F96: 2 | G96: 1 | H96: 50 | I96: 1 | J96: 1 | K96: 100 | L96: 2 | M96: 0 | N96: 0 | O96: 2 | P96: 0 | Q96: 0 | R96: 2 | S96: 0 | T96: 0 | U96: 0 | V96: 0 | W96: 0 | X96: 0
D97: INDEPENDENCIA | E97: 150112 | F97: 14 | G97: 3 | H97: 21.42857143 | I97: 11 | J97: 4 | K97: 36.36363636 | L97: 14 | M97: 1 | N97: 7.142857143 | O97: 14 | P97: 0 | Q97: 0 | R97: 14 | S97: 2 | T97: 14.28571429 | U97: 0 | V97: 0 | W97: 0 | X97: 0
D98: JESUS MARIA | E98: 150113 | F98: 1 | G98: 0 | H98: 0 | I98: 1 | J98: 0 | K98: 0 | L98: 1 | M98: 0 | N98: 0 | O98: 1 | P98: 0 | Q98: 0 | R98: 1 | S98: 0 | T98: 0 | U98: 0 | V98: 0 | W98: 0 | X98: 0
D99: LA MOLINA | E99: 150114 | F99: 2 | G99: 1 | H99: 50 | I99: 1 | J99: 0 | K99: 0 | L99: 2 | M99: 0 | N99: 0 | O99: 2 | P99: 0 | Q99: 0 | R99: 2 | S99: 0 | T99: 0 | U99: 0 | V99: 0 | W99: 0 | X99: 0
D100: LA VICTORIA | E100: 150115 | F100: 14 | G100: 1 | H100: 7.142857143 | I100: 13 | J100: 1 | K100: 7.692307692 | L100: 14 | M100: 2 | N100: 14.28571429 | O100: 14 | P100: 1 | Q100: 7.142857143 | R100: 13 | S100: 2 | T100: 15.38461538 | U100: 0 | V100: 0 | W100: 0 | X100: 0
D101: LIMA | E101: 150101 | F101: 53 | G101: 6 | H101: 11.32075472 | I101: 47 | J101: 16 | K101: 34.04255319 | L101: 53 | M101: 5 | N101: 9.433962264 | O101: 53 | P101: 1 | Q101: 1.886792453 | R101: 45 | S101: 11 | T101: 24.44444444 | U101: 6 | V101: 11.32075472 | W101: 1 | X101: 1.886792453
D102: LINCE | E102: 150116 | F102: 3 | G102: 0 | H102: 0 | I102: 3 | J102: 0 | K102: 0 | L102: 3 | M102: 0 | N102: 0 | O102: 3 | P102: 0 | Q102: 0 | R102: 3 | S102: 1 | T102: 33.33333333 | U102: 0 | V102: 0 | W102: 0 | X102: 0
D103: LOS OLIVOS | E103: 150117 | F103: 39 | G103: 2 | H103: 5.128205128 | I103: 37 | J103: 8 | K103: 21.62162162 | L103: 39 | M103: 0 | N103: 0 | O103: 39 | P103: 1 | Q103: 2.564102564 | R103: 35 | S103: 3 | T103: 8.571428571 | U103: 3 | V103: 7.692307692 | W103: 0 | X103: 0
D104: LURIGANCHO | E104: 150118 | F104: 29 | G104: 2 | H104: 6.896551724 | I104: 27 | J104: 2 | K104: 7.407407407 | L104: 29 | M104: 1 | N104: 3.448275862 | O104: 29 | P104: 3 | Q104: 10.34482759 | R104: 24 | S104: 4 | T104: 16.66666667 | U104: 2 | V104: 6.896551724 | W104: 0 | X104: 0
D105: LURIN | E105: 150119 | F105: 3 | G105: 0 | H105: 0 | I105: 3 | J105: 1 | K105: 33.33333333 | L105: 3 | M105: 0 | N105: 0 | O105: 3 | P105: 0 | Q105: 0 | R105: 3 | S105: 2 | T105: 66.66666667 | U105: 0 | V105: 0 | W105: 0 | X105: 0
D106: MIRAFLORES | E106: 150122 | F106: 4 | G106: 0 | H106: 0 | I106: 4 | J106: 0 | K106: 0 | L106: 4 | M106: 0 | N106: 0 | O106: 4 | P106: 0 | Q106: 0 | R106: 3 | S106: 0 | T106: 0 | U106: 1 | V106: 25 | W106: 0 | X106: 0
D107: PACHACAMAC | E107: 150123 | F107: 1 | G107: 0 | H107: 0 | I107: 1 | J107: 1 | K107: 100 | L107: 1 | M107: 0 | N107: 0 | O107: 1 | P107: 0 | Q107: 0 | R107: 1 | S107: 0 | T107: 0 | U107: 0 | V107: 0 | W107: 0 | X107: 0
D108: PUCUSANA | E108: 150124 | F108: 2 | G108: 0 | H108: 0 | I108: 2 | J108: 0 | K108: 0 | L108: 2 | M108: 0 | N108: 0 | O108: 2 | P108: 0 | Q108: 0 | R108: 2 | S108: 0 | T108: 0 | U108: 0 | V108: 0 | W108: 0 | X108: 0
D109: PUENTE PIEDRA | E109: 150125 | F109: 5 | G109: 3 | H109: 60 | I109: 2 | J109: 1 | K109: 50 | L109: 5 | M109: 0 | N109: 0 | O109: 5 | P109: 0 | Q109: 0 | R109: 3 | S109: 0 | T109: 0 | U109: 0 | V109: 0 | W109: 2 | X109: 40
D110: RIMAC | E110: 150128 | F110: 9 | G110: 2 | H110: 22.22222222 | I110: 7 | J110: 1 | K110: 14.28571429 | L110: 9 | M110: 1 | N110: 11.11111111 | O110: 9 | P110: 2 | Q110: 22.22222222 | R110: 5 | S110: 2 | T110: 40 | U110: 2 | V110: 22.22222222 | W110: 0 | X110: 0
D111: SAN BARTOLO | E111: 150129 | F111: 1 | G111: 0 | H111: 0 | I111: 1 | J111: 0 | K111: 0 | L111: 1 | M111: 0 | N111: 0 | O111: 1 | P111: 0 | Q111: 0 | R111: 1 | S111: 0 | T111: 0 | U111: 0 | V111: 0 | W111: 0 | X111: 0
D112: SAN ISIDRO | E112: 150131 | F112: 2 | G112: 0 | H112: 0 | I112: 2 | J112: 0 | K112: 0 | L112: 2 | M112: 0 | N112: 0 | O112: 2 | P112: 0 | Q112: 0 | R112: 1 | S112: 1 | T112: 100 | U112: 1 | V112: 50 | W112: 0 | X112: 0
D113: SAN JUAN DE LURIGANCHO | E113: 150132 | F113: 37 | G113: 4 | H113: 10.81081081 | I113: 33 | J113: 13 | K113: 39.39393939 | L113: 37 | M113: 4 | N113: 10.81081081 | O113: 37 | P113: 4 | Q113: 10.81081081 | R113: 32 | S113: 6 | T113: 18.75 | U113: 1 | V113: 2.702702703 | W113: 0 | X113: 0
D114: SAN JUAN DE MIRAFLORES | E114: 150133 | F114: 17 | G114: 2 | H114: 11.76470588 | I114: 15 | J114: 4 | K114: 26.66666667 | L114: 17 | M114: 2 | N114: 11.76470588 | O114: 17 | P114: 2 | Q114: 11.76470588 | R114: 14 | S114: 1 | T114: 7.142857143 | U114: 0 | V114: 0 | W114: 1 | X114: 5.882352941
D115: SAN MARTIN DE PORRES | E115: 150135 | F115: 52 | G115: 2 | H115: 3.846153846 | I115: 50 | J115: 15 | K115: 30 | L115: 52 | M115: 1 | N115: 1.923076923 | O115: 52 | P115: 2 | Q115: 3.846153846 | R115: 48 | S115: 5 | T115: 10.41666667 | U115: 0 | V115: 0 | W115: 2 | X115: 3.846153846
D116: SAN MIGUEL | E116: 150136 | F116: 18 | G116: 0 | H116: 0 | I116: 18 | J116: 6 | K116: 33.33333333 | L116: 18 | M116: 0 | N116: 0 | O116: 18 | P116: 0 | Q116: 0 | R116: 18 | S116: 4 | T116: 22.22222222 | U116: 0 | V116: 0 | W116: 0 | X116: 0
D117: SANTA ANITA | E117: 150137 | F117: 31 | G117: 1 | H117: 3.225806452 | I117: 30 | J117: 6 | K117: 20 | L117: 31 | M117: 2 | N117: 6.451612903 | O117: 31 | P117: 5 | Q117: 16.12903226 | R117: 24 | S117: 6 | T117: 25 | U117: 1 | V117: 3.225806452 | W117: 1 | X117: 3.225806452
D118: SANTIAGO DE SURCO | E118: 150140 | F118: 10 | G118: 1 | H118: 10 | I118: 9 | J118: 3 | K118: 33.33333333 | L118: 10 | M118: 0 | N118: 0 | O118: 10 | P118: 0 | Q118: 0 | R118: 9 | S118: 1 | T118: 11.11111111 | U118: 0 | V118: 0 | W118: 1 | X118: 10
D119: SURQUILLO | E119: 150141 | F119: 2 | G119: 0 | H119: 0 | I119: 2 | J119: 1 | K119: 50 | L119: 2 | M119: 0 | N119: 0 | O119: 2 | P119: 0 | Q119: 0 | R119: 2 | S119: 0 | T119: 0 | U119: 0 | V119: 0 | W119: 0 | X119: 0
D120: VILLA EL SALVADOR | E120: 150142 | F120: 13 | G120: 3 | H120: 23.07692308 | I120: 10 | J120: 5 | K120: 50 | L120: 13 | M120: 0 | N120: 0 | O120: 13 | P120: 0 | Q120: 0 | R120: 10 | S120: 2 | T120: 20 | U120: 2 | V120: 15.38461538 | W120: 1 | X120: 7.692307692
D121: VILLA MARIA DEL TRIUNFO | E121: 150143 | F121: 2 | G121: 0 | H121: 0 | I121: 2 | J121: 1 | K121: 50 | L121: 2 | M121: 0 | N121: 0 | O121: 2 | P121: 0 | Q121: 0 | R121: 1 | S121: 0 | T121: 0 | U121: 0 | V121: 0 | W121: 1 | X121: 50
C122: OYON | D122: PACHANGARA | E122: 150906 | F122: 1 | G122: 0 | H122: 0 | I122: 1 | J122: 0 | K122: 0 | L122: 1 | M122: 0 | N122: 0 | O122: 1 | P122: 0 | Q122: 0 | R122: 1 | S122: 0 | T122: 0 | U122: 0 | V122: 0 | W122: 0 | X122: 0
B123: LORETO | C123: MAYNAS | D123: SAN JUAN BAUTISTA | E123: 160113 | F123: 1 | G123: 0 | H123: 0 | I123: 1 | J123: 1 | K123: 100 | L123: 1 | M123: 0 | N123: 0 | O123: 1 | P123: 0 | Q123: 0 | R123: 1 | S123: 0 | T123: 0 | U123: 0 | V123: 0 | W123: 0 | X123: 0
B124: MADRE DE DIOS | C124: TAMBOPATA | D124: LABERINTO | E124: 170104 | F124: 1 | G124: 0 | H124: 0 | I124: 1 | J124: 0 | K124: 0 | L124: 1 | M124: 0 | N124: 0 | O124: 1 | P124: 0 | Q124: 0 | R124: 1 | S124: 0 | T124: 0 | U124: 0 | V124: 0 | W124: 0 | X124: 0
B125: MOQUEGUA | C125: ILO | D125: ILO | E125: 180301 | F125: 4 | G125: 0 | H125: 0 | I125: 4 | J125: 1 | K125: 25 | L125: 4 | M125: 0 | N125: 0 | O125: 4 | P125: 0 | Q125: 0 | R125: 4 | S125: 1 | T125: 25 | U125: 0 | V125: 0 | W125: 0 | X125: 0
C126: MARISCAL NIETO | D126: MOQUEGUA | E126: 180101 | F126: 3 | G126: 0 | H126: 0 | I126: 3 | J126: 0 | K126: 0 | L126: 3 | M126: 0 | N126: 0 | O126: 3 | P126: 0 | Q126: 0 | R126: 3 | S126: 0 | T126: 0 | U126: 0 | V126: 0 | W126: 0 | X126: 0
B127: PIURA | C127: MORROPON | D127: CHULUCANAS | E127: 200401 | F127: 1 | G127: 0 | H127: 0 | I127: 1 | J127: 0 | K127: 0 | L127: 1 | M127: 0 | N127: 0 | O127: 1 | P127: 0 | Q127: 0 | R127: 1 | S127: 0 | T127: 0 | U127: 0 | V127: 0 | W127: 0 | X127: 0
D128: LA MATANZA | E128: 200404 | F128: 1 | G128: 0 | H128: 0 | I128: 1 | J128: 0 | K128: 0 | L128: 1 | M128: 0 | N128: 0 | O128: 1 | P128: 0 | Q128: 0 | R128: 1 | S128: 0 | T128: 0 | U128: 0 | V128: 0 | W128: 0 | X128: 0
D129: MORROPON | E129: 200405 | F129: 1 | G129: 0 | H129: 0 | I129: 1 | J129: 1 | K129: 100 | L129: 1 | M129: 0 | N129: 0 | O129: 1 | P129: 0 | Q129: 0 | R129: 1 | S129: 0 | T129: 0 | U129: 0 | V129: 0 | W129: 0 | X129: 0
C130: PAITA | D130: COLAN | E130: 200504 | F130: 1 | G130: 0 | H130: 0 | I130: 1 | J130: 1 | K130: 100 | L130: 1 | M130: 0 | N130: 0 | O130: 1 | P130: 0 | Q130: 0 | R130: 0 | S130: 0 | T130: 0 | U130: 1 | V130: 100 | W130: 0 | X130: 0
D131: PAITA | E131: 200501 | F131: 6 | G131: 0 | H131: 0 | I131: 6 | J131: 1 | K131: 16.66666667 | L131: 6 | M131: 0 | N131: 0 | O131: 6 | P131: 0 | Q131: 0 | R131: 5 | S131: 0 | T131: 0 | U131: 0 | V131: 0 | W131: 1 | X131: 16.66666667
D132: VICHAYAL | E132: 200507 | F132: 2 | G132: 0 | H132: 0 | I132: 2 | J132: 1 | K132: 50 | L132: 2 | M132: 0 | N132: 0 | O132: 2 | P132: 0 | Q132: 0 | R132: 2 | S132: 0 | T132: 0 | U132: 0 | V132: 0 | W132: 0 | X132: 0
C133: PIURA | D133: CASTILLA | E133: 200104 | F133: 2 | G133: 0 | H133: 0 | I133: 2 | J133: 1 | K133: 50 | L133: 2 | M133: 0 | N133: 0 | O133: 2 | P133: 0 | Q133: 0 | R133: 2 | S133: 0 | T133: 0 | U133: 0 | V133: 0 | W133: 0 | X133: 0
D134: PIURA | E134: 200101 | F134: 6 | G134: 0 | H134: 0 | I134: 6 | J134: 0 | K134: 0 | L134: 6 | M134: 0 | N134: 0 | O134: 6 | P134: 0 | Q134: 0 | R134: 6 | S134: 1 | T134: 16.66666667 | U134: 0 | V134: 0 | W134: 0 | X134: 0
D135: VEINTISEIS DE OCTUBRE | E135: 200115 | F135: 9 | G135: 0 | H135: 0 | I135: 9 | J135: 2 | K135: 22.22222222 | L135: 9 | M135: 0 | N135: 0 | O135: 9 | P135: 0 | Q135: 0 | R135: 9 | S135: 0 | T135: 0 | U135: 0 | V135: 0 | W135: 0 | X135: 0
C136: SECHURA | D136: SECHURA | E136: 200801 | F136: 5 | G136: 1 | H136: 20 | I136: 4 | J136: 1 | K136: 25 | L136: 5 | M136: 0 | N136: 0 | O136: 5 | P136: 0 | Q136: 0 | R136: 5 | S136: 0 | T136: 0 | U136: 0 | V136: 0 | W136: 0 | X136: 0
C137: SULLANA | D137: MIGUEL CHECA | E137: 200606 | F137: 1 | G137: 0 | H137: 0 | I137: 1 | J137: 0 | K137: 0 | L137: 1 | M137: 0 | N137: 0 | O137: 1 | P137: 0 | Q137: 0 | R137: 1 | S137: 0 | T137: 0 | U137: 0 | V137: 0 | W137: 0 | X137: 0
D138: SULLANA | E138: 200601 | F138: 2 | G138: 0 | H138: 0 | I138: 2 | J138: 1 | K138: 50 | L138: 2 | M138: 0 | N138: 0 | O138: 2 | P138: 0 | Q138: 0 | R138: 2 | S138: 0 | T138: 0 | U138: 0 | V138: 0 | W138: 0 | X138: 0
C139: TALARA | D139: LOS ORGANOS | E139: 200705 | F139: 2 | G139: 0 | H139: 0 | I139: 2 | J139: 0 | K139: 0 | L139: 2 | M139: 0 | N139: 0 | O139: 2 | P139: 0 | Q139: 0 | R139: 2 | S139: 0 | T139: 0 | U139: 0 | V139: 0 | W139: 0 | X139: 0
D140: MANCORA | E140: 200706 | F140: 1 | G140: 0 | H140: 0 | I140: 1 | J140: 0 | K140: 0 | L140: 1 | M140: 0 | N140: 0 | O140: 1 | P140: 0 | Q140: 0 | R140: 1 | S140: 0 | T140: 0 | U140: 0 | V140: 0 | W140: 0 | X140: 0
D141: PARIÑAS | E141: 200701 | F141: 1 | G141: 0 | H141: 0 | I141: 1 | J141: 0 | K141: 0 | L141: 1 | M141: 0 | N141: 0 | O141: 1 | P141: 0 | Q141: 0 | R141: 1 | S141: 0 | T141: 0 | U141: 0 | V141: 0 | W141: 0 | X141: 0
B142: PUNO | C142: PUNO | D142: PUNO | E142: 210101 | F142: 1 | G142: 0 | H142: 0 | I142: 1 | J142: 0 | K142: 0 | L142: 1 | M142: 0 | N142: 0 | O142: 1 | P142: 0 | Q142: 0 | R142: 1 | S142: 0 | T142: 0 | U142: 0 | V142: 0 | W142: 0 | X142: 0
B143: SAN MARTIN | C143: MOYOBAMBA | D143: MOYOBAMBA | E143: 220101 | F143: 1 | G143: 0 | H143: 0 | I143: 1 | J143: 1 | K143: 100 | L143: 1 | M143: 0 | N143: 0 | O143: 1 | P143: 0 | Q143: 0 | R143: 1 | S143: 0 | T143: 0 | U143: 0 | V143: 0 | W143: 0 | X143: 0
C144: RIOJA | D144: NUEVA CAJAMARCA | E144: 220804 | F144: 3 | G144: 0 | H144: 0 | I144: 3 | J144: 2 | K144: 66.66666667 | L144: 3 | M144: 0 | N144: 0 | O144: 3 | P144: 0 | Q144: 0 | R144: 3 | S144: 0 | T144: 0 | U144: 0 | V144: 0 | W144: 0 | X144: 0
C145: SAN MARTIN | D145: TARAPOTO | E145: 220901 | F145: 4 | G145: 0 | H145: 0 | I145: 4 | J145: 3 | K145: 75 | L145: 4 | M145: 0 | N145: 0 | O145: 4 | P145: 0 | Q145: 0 | R145: 3 | S145: 1 | T145: 33.33333333 | U145: 1 | V145: 25 | W145: 0 | X145: 0
B146: TACNA | C146: TACNA | D146: ALTO DE LA ALIANZA | E146: 230102 | F146: 1 | G146: 1 | H146: 100 | I146: 0 | J146: 0 | K146: 0 | L146: 1 | M146: 1 | N146: 100 | O146: 1 | P146: 0 | Q146: 0 | R146: 1 | S146: 1 | T146: 100 | U146: 0 | V146: 0 | W146: 0 | X146: 0
D147: TACNA | E147: 230101 | F147: 1 | G147: 0 | H147: 0 | I147: 1 | J147: 1 | K147: 100 | L147: 1 | M147: 0 | N147: 0 | O147: 1 | P147: 0 | Q147: 0 | R147: 1 | S147: 0 | T147: 0 | U147: 0 | V147: 0 | W147: 0 | X147: 0
B148: TUMBES | C148: CONTRALMIRANTE VILLAR | D148: ZORRITOS | E148: 240201 | F148: 4 | G148: 0 | H148: 0 | I148: 4 | J148: 2 | K148: 50 | L148: 4 | M148: 0 | N148: 0 | O148: 4 | P148: 0 | Q148: 0 | R148: 4 | S148: 0 | T148: 0 | U148: 0 | V148: 0 | W148: 0 | X148: 0
C149: TUMBES | D149: CORRALES | E149: 240102 | F149: 1 | G149: 0 | H149: 0 | I149: 1 | J149: 0 | K149: 0 | L149: 1 | M149: 0 | N149: 0 | O149: 1 | P149: 0 | Q149: 0 | R149: 1 | S149: 0 | T149: 0 | U149: 0 | V149: 0 | W149: 0 | X149: 0
D150: PAMPAS DE HOSPITAL | E150: 240104 | F150: 2 | G150: 0 | H150: 0 | I150: 2 | J150: 1 | K150: 50 | L150: 2 | M150: 0 | N150: 0 | O150: 2 | P150: 0 | Q150: 0 | R150: 2 | S150: 0 | T150: 0 | U150: 0 | V150: 0 | W150: 0 | X150: 0
D151: TUMBES | E151: 240101 | F151: 8 | G151: 0 | H151: 0 | I151: 8 | J151: 4 | K151: 50 | L151: 8 | M151: 1 | N151: 12.5 | O151: 8 | P151: 0 | Q151: 0 | R151: 8 | S151: 4 | T151: 50 | U151: 0 | V151: 0 | W151: 0 | X151: 0
C152: ZARUMILLA | D152: PAPAYAL | E152: 240304 | F152: 1 | G152: 0 | H152: 0 | I152: 1 | J152: 0 | K152: 0 | L152: 1 | M152: 0 | N152: 0 | O152: 1 | P152: 0 | Q152: 0 | R152: 1 | S152: 1 | T152: 100 | U152: 0 | V152: 0 | W152: 0 | X152: 0
D153: ZARUMILLA | E153: 240301 | F153: 3 | G153: 1 | H153: 33.33333333 | I153: 2 | J153: 0 | K153: 0 | L153: 3 | M153: 0 | N153: 0 | O153: 3 | P153: 0 | Q153: 0 | R153: 2 | S153: 0 | T153: 0 | U153: 1 | V153: 33.33333333 | W153: 0 | X153: 0
B154: UCAYALI | C154: CORONEL PORTILLO | D154: CAMPOVERDE | E154: 250102 | F154: 1 | G154: 0 | H154: 0 | I154: 1 | J154: 1 | K154: 100 | L154: 1 | M154: 0 | N154: 0 | O154: 1 | P154: 0 | Q154: 0 | R154: 1 | S154: 0 | T154: 0 | U154: 0 | V154: 0 | W154: 0 | X154: 0
B155: PERÚ | F155: =SUM(F8:F154) -> 755 | G155: =SUM(G8:G154) -> 62 | H155: =G155/F155*100 -> 8.21192053 | I155: =SUM(I8:I154) -> 693 | J155: =SUM(J8:J154) -> 189 | K155: =J155/I155*100 -> 27.27272727 | L155: =SUM(L8:L154) -> 755 | M155: =SUM(M8:M154) -> 34 | N155: =M155/L155*100 -> 4.503311258 | O155: =SUM(O8:O154) -> 755 | P155: =SUM(P8:P154) -> 33 | Q155: =P155/O155*100 -> 4.370860927 | R155: =SUM(R8:R154) -> 666 | S155: =SUM(S8:S154) -> 101 | T155: =S155/R155*100 -> 15.16516517 | U155: =SUM(U8:U154) -> 41 | V155: =U155/O155*100 -> 5.430463576 | W155: =SUM(W8:W154) -> 15 | X155: =W155/O155*100 -> 1.986754967
B156: Fuente: Sistema de Información SIEN - HIS, 2022.
B157: Instituto Nacional de Salud / Centro Nacional de Alimentación y Nutrición / Dirección Ejecutiva de Vigilancia Alimentaria y Nutricional.
B158: 1,2,3 Indicadores Nitricionales según OMS.
B159: 4 Riesgo de Desnutrición Crónica (T/E)se considera a todo niño que se encuentra con valor -2 <= Z < -1

Sheet Anemia 6-35m x DEP
B2: CUADRO N°07 PERÚ: ANEMIA EN NIÑOS EXTRANJEROS ENTRE 6 A 35 MESES QUE ACCEDIERON A LOS ESTABLECIMIENTOS DE SALUD, SEGÚN DEPARTAMENTO DEL ESTABLECIMIENTO DE SALUD
B3: =INICIO!C$8 -> PERIODO: ENERO A MARZO 2022
B5: DEPARTAMENTO | C5: N° DE EVALUADOS | D5: ANEMIA TOTAL | F5: ANEMIA LEVE | H5: ANEMIA MODERADA | J5: ANEMIA SEVERA
D6: N° DE CASOS | E6: % | F6: N° DE CASOS | G6: % | H6: N° DE CASOS | I6: % | J6: N° DE CASOS | K6: %
B7: AMAZONAS | C7: 1 | D7: 0 | E7: 0 | F7: 0 | G7: 0 | H7: 0 | I7: 0 | J7: 0 | K7: 0
B8: ANCASH | C8: 4 | D8: 1 | E8: 25 | F8: 1 | G8: 25 | H8: 0 | I8: 0 | J8: 0 | K8: 0
B9: APURIMAC | C9: 1 | D9: 1 | E9: 100 | F9: 1 | G9: 100 | H9: 0 | I9: 0 | J9: 0 | K9: 0
B10: AREQUIPA | C10: 4 | D10: 1 | E10: 25 | F10: 0 | G10: 0 | H10: 1 | I10: 25 | J10: 0 | K10: 0
B11: AYACUCHO | C11: (SD) | D11: (SD) | E11: (SD) | F11: (SD) | G11: (SD) | H11: (SD) | I11: (SD) | J11: (SD) | K11: (SD)
B12: CAJAMARCA | C12: (SD) | D12: (SD) | E12: (SD) | F12: (SD) | G12: (SD) | H12: (SD) | I12: (SD) | J12: (SD) | K12: (SD)
B13: CALLAO | C13: 14 | D13: 4 | E13: 28.57142857 | F13: 3 | G13: 21.42857143 | H13: 1 | I13: 7.142857143 | J13: 0 | K13: 0
B14: CUSCO | C14: (SD) | D14: (SD) | E14: (SD) | F14: (SD) | G14: (SD) | H14: (SD) | I14: (SD) | J14: (SD) | K14: (SD)
B15: HUANCAVELICA | C15: (SD) | D15: (SD) | E15: (SD) | F15: (SD) | G15: (SD) | H15: (SD) | I15: (SD) | J15: (SD) | K15: (SD)
B16: HUANUCO | C16: (SD) | D16: (SD) | E16: (SD) | F16: (SD) | G16: (SD) | H16: (SD) | I16: (SD) | J16: (SD) | K16: (SD)
B17: ICA | C17: 1 | D17: 1 | E17: 100 | F17: 1 | G17: 100 | H17: 0 | I17: 0 | J17: 0 | K17: 0
B18: JUNIN | C18: 1 | D18: 0 | E18: 0 | F18: 0 | G18: 0 | H18: 0 | I18: 0 | J18: 0 | K18: 0
B19: LA LIBERTAD | C19: 14 | D19: 4 | E19: 28.57142857 | F19: 2 | G19: 14.28571429 | H19: 2 | I19: 14.28571429 | J19: 0 | K19: 0
B20: LAMBAYEQUE | C20: 1 | D20: 0 | E20: 0 | F20: 0 | G20: 0 | H20: 0 | I20: 0 | J20: 0 | K20: 0
B21: LIMA | C21: 134 | D21: 38 | E21: 28.35820896 | F21: 29 | G21: 21.64179104 | H21: 9 | I21: 6.71641791 | J21: 0 | K21: 0
B22: LORETO | C22: (SD) | D22: (SD) | E22: (SD) | F22: (SD) | G22: (SD) | H22: (SD) | I22: (SD) | J22: (SD) | K22: (SD)
B23: MADRE DE DIOS | C23: (SD) | D23: (SD) | E23: (SD) | F23: (SD) | G23: (SD) | H23: (SD) | I23: (SD) | J23: (SD) | K23: (SD)
B24: MOQUEGUA | C24: 1 | D24: 0 | E24: 0 | F24: 0 | G24: 0 | H24: 0 | I24: 0 | J24: 0 | K24: 0
B25: PASCO | C25: (SD) | D25: (SD) | E25: (SD) | F25: (SD) | G25: (SD) | H25: (SD) | I25: (SD) | J25: (SD) | K25: (SD)
B26: PIURA | C26: 4 | D26: 0 | E26: 0 | F26: 0 | G26: 0 | H26: 0 | I26: 0 | J26: 0 | K26: 0
B27: PUNO | C27: (SD) | D27: (SD) | E27: (SD) | F27: (SD) | G27: (SD) | H27: (SD) | I27: (SD) | J27: (SD) | K27: (SD)
B28: SAN MARTIN | C28: 1 | D28: 0 | E28: 0 | F28: 0 | G28: 0 | H28: 0 | I28: 0 | J28: 0 | K28: 0
B29: TACNA | C29: 2 | D29: 0 | E29: 0 | F29: 0 | G29: 0 | H29: 0 | I29: 0 | J29: 0 | K29: 0
B30: TUMBES | C30: 5 | D30: 2 | E30: 40 | F30: 2 | G30: 40 | H30: 0 | I30: 0 | J30: 0 | K30: 0
B31: UCAYALI | C31: (SD) | D31: (SD) | E31: (SD) | F31: (SD) | G31: (SD) | H31: (SD) | I31: (SD) | J31: (SD) | K31: (SD)
B32: PERÚ | C32: =SUM(C7:C31) -> 188 | D32: =SUM(D7:D31) -> 52 | E32: =D32/C32*100 -> 27.65957447 | F32: =SUM(F7:F31) -> 39 | G32: =F32/C32*100 -> 20.74468085 | H32: =SUM(H7:H31) -> 13 | I32: =H32/C32*100 -> 6.914893617 | J32: =SUM(J7:J31) -> 0 | K32: =J32/C32*100 -> 0
B33: Fuente: Sistema de Información SIEN - HIS, 2022.
B34: Instituto Nacional de Salud / Centro Nacional de Alimentación y Nutrición / Dirección Ejecutiva de Vigilancia Alimentaria y Nutricional.
B35: (SD) Departamentos sin registro de NIÑOS EXTRANJEROS.

Sheet Anemia 6-35m x DIRESA
B2: CUADRO N°08 PERÚ: ANEMIA EN NIÑOS EXTRANJEROS ENTRE 6 A 35 MESES QUE ACCEDIERON A LOS ESTABLECIMIENTOS DE SALUD, SEGÚN DIRESA / GERESA / DIRIS
B3: =INICIO!C$8 -> PERIODO: ENERO A MARZO 2022
B5: DIRESA / GERESA / DIRIS | C5: N° DE EVALUADOS | D5: ANEMIA TOTAL | F5: ANEMIA LEVE | H5: ANEMIA MODERADA | J5: ANEMIA SEVERA
D6: N° DE CASOS | E6: % | F6: N° DE CASOS | G6: % | H6: N° DE CASOS | I6: % | J6: N° DE CASOS | K6: %
B7: AMAZONAS | C7: 1 | D7: 0 | E7: 0 | F7: 0 | G7: 0 | H7: 0 | I7: 0 | J7: 0 | K7: 0
B8: ANCASH | C8: 4 | D8: 1 | E8: 25 | F8: 1 | G8: 25 | H8: 0 | I8: 0 | J8: 0 | K8: 0
B9: APURIMAC | C9: 1 | D9: 1 | E9: 100 | F9: 1 | G9: 100 | H9: 0 | I9: 0 | J9: 0 | K9: 0
B10: AREQUIPA | C10: 4 | D10: 1 | E10: 25 | F10: 0 | G10: 0 | H10: 1 | I10: 25 | J10: 0 | K10: 0
B11: AYACUCHO | C11: (SD) | D11: (SD) | E11: (SD) | F11: (SD) | G11: (SD) | H11: (SD) | I11: (SD) | J11: (SD) | K11: (SD)
B12: CAJAMARCA | C12: (SD) | D12: (SD) | E12: (SD) | F12: (SD) | G12: (SD) | H12: (SD) | I12: (SD) | J12: (SD) | K12: (SD)
B13: CALLAO | C13: 14 | D13: 4 | E13: 28.57142857 | F13: 3 | G13: 21.42857143 | H13: 1 | I13: 7.142857143 | J13: 0 | K13: 0
B14: CUSCO | C14: (SD) | D14: (SD) | E14: (SD) | F14: (SD) | G14: (SD) | H14: (SD) | I14: (SD) | J14: (SD) | K14: (SD)
B15: HUANCAVELICA | C15: (SD) | D15: (SD) | E15: (SD) | F15: (SD) | G15: (SD) | H15: (SD) | I15: (SD) | J15: (SD) | K15: (SD)
B16: HUANUCO | C16: (SD) | D16: (SD) | E16: (SD) | F16: (SD) | G16: (SD) | H16: (SD) | I16: (SD) | J16: (SD) | K16: (SD)
B17: ICA | C17: 1 | D17: 1 | E17: 100 | F17: 1 | G17: 100 | H17: 0 | I17: 0 | J17: 0 | K17: 0
B18: JUNIN | C18: 1 | D18: 0 | E18: 0 | F18: 0 | G18: 0 | H18: 0 | I18: 0 | J18: 0 | K18: 0
B19: LA LIBERTAD | C19: 14 | D19: 4 | E19: 28.57142857 | F19: 2 | G19: 14.28571429 | H19: 2 | I19: 14.28571429 | J19: 0 | K19: 0
B20: LAMBAYEQUE | C20: 1 | D20: 0 | E20: 0 | F20: 0 | G20: 0 | H20: 0 | I20: 0 | J20: 0 | K20: 0
B21: LIMA DIRIS CENTRO | C21: 51 | D21: 11 | E21: 21.56862745 | F21: 8 | G21: 15.68627451 | H21: 3 | I21: 5.882352941 | J21: 0 | K21: 0
B22: LIMA DIRIS ESTE | C22: 14 | D22: 7 | E22: 50 | F22: 6 | G22: 42.85714286 | H22: 1 | I22: 7.142857143 | J22: 0 | K22: 0
B23: LIMA DIRIS NORTE | C23: 31 | D23: 10 | E23: 32.25806452 | F23: 7 | G23: 22.58064516 | H23: 3 | I23: 9.677419355 | J23: 0 | K23: 0
B24: LIMA DIRIS SUR | C24: 25 | D24: 8 | E24: 32 | F24: 7 | G24: 28 | H24: 1 | I24: 4 | J24: 0 | K24: 0
B25: LIMA PROVINCIAS | C25: 13 | D25: 2 | E25: 15.38461538 | F25: 1 | G25: 7.692307692 | H25: 1 | I25: 7.692307692 | J25: 0 | K25: 0
B26: LORETO | C26: (SD) | D26: (SD) | E26: (SD) | F26: (SD) | G26: (SD) | H26: (SD) | I26: (SD) | J26: (SD) | K26: (SD)
B27: MADRE DE DIOS | C27: (SD) | D27: (SD) | E27: (SD) | F27: (SD) | G27: (SD) | H27: (SD) | I27: (SD) | J27: (SD) | K27: (SD)
B28: MOQUEGUA | C28: 1 | D28: 0 | E28: 0 | F28: 0 | G28: 0 | H28: 0 | I28: 0 | J28: 0 | K28: 0
B29: PASCO | C29: (SD) | D29: (SD) | E29: (SD) | F29: (SD) | G29: (SD) | H29: (SD) | I29: (SD) | J29: (SD) | K29: (SD)
B30: PIURA | C30: 4 | D30: 0 | E30: 0 | F30: 0 | G30: 0 | H30: 0 | I30: 0 | J30: 0 | K30: 0
B31: PUNO | C31: (SD) | D31: (SD) | E31: (SD) | F31: (SD) | G31: (SD) | H31: (SD) | I31: (SD) | J31: (SD) | K31: (SD)
B32: SAN MARTIN | C32: 1 | D32: 0 | E32: 0 | F32: 0 | G32: 0 | H32: 0 | I32: 0 | J32: 0 | K32: 0
B33: TACNA | C33: 2 | D33: 0 | E33: 0 | F33: 0 | G33: 0 | H33: 0 | I33: 0 | J33: 0 | K33: 0
B34: TUMBES | C34: 5 | D34: 2 | E34: 40 | F34: 2 | G34: 40 | H34: 0 | I34: 0 | J34: 0 | K34: 0
B35: UCAYALI | C35: (SD) | D35: (SD) | E35: (SD) | F35: (SD) | G35: (SD) | H35: (SD) | I35: (SD) | J35: (SD) | K35: (SD)
B36: PERÚ | C36: =SUM(C7:C35) -> 188 | D36: =SUM(D7:D35) -> 52 | E36: =D36/C36*100 -> 27.65957447 | F36: =SUM(F7:F35) -> 39 | G36: =F36/C36*100 -> 20.74468085 | H36: =SUM(H7:H35) -> 13 | I36: =H36/C36*100 -> 6.914893617 | J36: =SUM(J7:J35) -> 0 | K36: =J36/C36*100 -> 0
B37: Fuente: Sistema de Información SIEN - HIS, 2022.
B38: Instituto Nacional de Salud / Centro Nacional de Alimentación y Nutrición / Dirección Ejecutiva de Vigilancia Alimentaria y Nutricional.
B39: (SD) Diresas sin registro de NIÑOS EXTRANJEROS.

Sheet Anemia 6-35m x DISTRITO
B2: CUADRO N°09 PERÚ: ANEMIA EN NIÑOS EXTRANJEROS ENTRE 6 A 35 MESES QUE ACCEDIERON A LOS ESTABLECIMIENTOS DE SALUD, SEGÚN DEPARTAMENTO, PROVINCIA Y DISTRITO DEL ESTABLECIMIENTO DE SALUD
B3: =INICIO!C$8 -> PERIODO: ENERO A MARZO 2022
B5: DEPARTAMENTO | C5: PROVINCIA | D5: DISTRITO | E5: UBIGEO | F5: N° DE EVALUADOS | G5: ANEMIA TOTAL | I5: ANEMIA LEVE | K5: ANEMIA MODERADA | M5: ANEMIA SEVERA
G6: N° DE CASOS | H6: % | I6: N° DE CASOS | J6: % | K6: N° DE CASOS | L6: % | M6: N° DE CASOS | N6: %
B7: AMAZONAS | C7: UTCUBAMBA | D7: BAGUA GRANDE | E7: 010701 | F7: 1 | G7: 0 | H7: 0 | I7: 0 | J7: 0 | K7: 0 | L7: 0 | M7: 0 | N7: 0
B8: ANCASH | C8: SANTA | D8: CHIMBOTE | E8: 021801 | F8: 1 | G8: 0 | H8: 0 | I8: 0 | J8: 0 | K8: 0 | L8: 0 | M8: 0 | N8: 0
D9: COISHCO | E9: 021803 | F9: 0 | G9: 0 | H9: 0 | M9: 0 | N9: 0
D10: NUEVO CHIMBOTE | E10: 021809 | F10: 3 | G10: 1 | H10: 33.33333333 | I10: 1 | J10: 33.33333333 | K10: 0 | L10: 0 | M10: 0 | N10: 0
B11: APURIMAC | C11: ABANCAY | D11: ABANCAY | E11: 030101 | F11: 1 | G11: 1 | H11: 100 | I11: 1 | J11: 100 | K11: 0 | L11: 0 | M11: 0 | N11: 0
B12: AREQUIPA | C12: AREQUIPA | D12: ALTO SELVA ALEGRE | E12: 040102 | F12: 0 | G12: 0 | H12: 0 | M12: 0 | N12: 0
D13: CERRO COLORADO | E13: 040104 | F13: 1 | G13: 1 | H13: 100 | I13: 0 | J13: 0 | K13: 1 | L13: 100 | M13: 0 | N13: 0
D14: JACOBO HUNTER | E14: 040107 | F14: 0 | G14: 0 | H14: 0 | M14: 0 | N14: 0
D15: MARIANO MELGAR | E15: 040109 | F15: 0 | G15: 0 | H15: 0 | M15: 0 | N15: 0
D16: MIRAFLORES | E16: 040110 | F16: 1 | G16: 0 | H16: 0 | I16: 0 | J16: 0 | K16: 0 | L16: 0 | M16: 0 | N16: 0
D17: PAUCARPATA | E17: 040112 | F17: 1 | G17: 0 | H17: 0 | I17: 0 | J17: 0 | K17: 0 | L17: 0 | M17: 0 | N17: 0
D18: SOCABAYA | E18: 040122 | F18: 0 | G18: 0 | H18: 0 | M18: 0 | N18: 0
C19: CAMANA | D19: QUILCA | E19: 040207 | F19: 0 | G19: 0 | H19: 0 | M19: 0 | N19: 0
C20: CARAVELI | D20: YAUCA | E20: 040313 | F20: 1 | G20: 0 | H20: 0 | I20: 0 | J20: 0 | K20: 0 | L20: 0 | M20: 0 | N20: 0
C21: ISLAY | D21: MOLLENDO | E21: 040701 | F21: 0 | G21: 0 | H21: 0 | M21: 0 | N21: 0
B22: CALLAO | C22: CALLAO | D22: CALLAO | E22: 070101 | F22: 8 | G22: 2 | H22: 25 | I22: 2 | J22: 25 | K22: 0 | L22: 0 | M22: 0 | N22: 0
D23: CARMEN DE LA LEGUA-REYNOSO | E23: 070103 | F23: 1 | G23: 0 | H23: 0 | I23: 0 | J23: 0 | K23: 0 | L23: 0 | M23: 0 | N23: 0
D24: VENTANILLA | E24: 070106 | F24: 5 | G24: 2 | H24: 40 | I24: 1 | J24: 20 | K24: 1 | L24: 20 | M24: 0 | N24: 0
B25: ICA | C25: ICA | D25: ICA | E25: 110101 | F25: 0 | G25: 0 | H25: 0 | M25: 0 | N25: 0
D26: PUEBLO NUEVO | E26: 110107 | F26: 0 | G26: 0 | H26: 0 | M26: 0 | N26: 0
D27: SALAS | E27: 110108 | F27: 0 | G27: 0 | H27: 0 | M27: 0 | N27: 0
D28: SUBTANJALLA | E28: 110112 | F28: 1 | G28: 1 | H28: 100 | I28: 1 | J28: 100 | K28: 0 | L28: 0 | M28: 0 | N28: 0
D29: TATE | E29: 110113 | F29: 0 | G29: 0 | H29: 0 | M29: 0 | N29: 0
C30: NAZCA | D30: MARCONA | E30: 110304 | F30: 0 | G30: 0 | H30: 0 | M30: 0 | N30: 0
C31: PISCO | D31: PARACAS | E31: 110505 | F31: 0 | G31: 0 | H31: 0 | M31: 0 | N31: 0
D32: PISCO | E32: 110501 | F32: 0 | G32: 0 | H32: 0 | M32: 0 | N32: 0
B33: JUNIN | C33: SATIPO | D33: PANGOA | E33: 120606 | F33: 1 | G33: 0 | H33: 0 | I33: 0 | J33: 0 | K33: 0 | L33: 0 | M33: 0 | N33: 0
B34: LA LIBERTAD | C34: CHEPEN | D34: CHEPEN | E34: 130401 | F34: 1 | G34: 0 | H34: 0 | I34: 0 | J34: 0 | K34: 0 | L34: 0 | M34: 0 | N34: 0
C35: PACASMAYO | D35: GUADALUPE | E35: 130702 | F35: 1 | G35: 0 | H35: 0 | I35: 0 | J35: 0 | K35: 0 | L35: 0 | M35: 0 | N35: 0
D36: PACASMAYO | E36: 130704 | F36: 1 | G36: 0 | H36: 0 | I36: 0 | J36: 0 | K36: 0 | L36: 0 | M36: 0 | N36: 0
C37: TRUJILLO | D37: FLORENCIA DE MORA | E37: 130103 | F37: 0 | G37: 0 | H37: 0 | M37: 0 | N37: 0
D38: LA ESPERANZA | E38: 130105 | F38: 1 | G38: 0 | H38: 0 | I38: 0 | J38: 0 | K38: 0 | L38: 0 | M38: 0 | N38: 0
D39: MOCHE | E39: 130107 | F39: 1 | G39: 0 | H39: 0 | I39: 0 | J39: 0 | K39: 0 | L39: 0 | M39: 0 | N39: 0
D40: TRUJILLO | E40: 130101 | F40: 6 | G40: 3 | H40: 50 | I40: 2 | J40: 33.33333333 | K40: 1 | L40: 16.66666667 | M40: 0 | N40: 0
D41: VICTOR LARCO HERRERA | E41: 130111 | F41: 2 | G41: 0 | H41: 0 | I41: 0 | J41: 0 | K41: 0 | L41: 0 | M41: 0 | N41: 0
C42: VIRU | D42: CHAO | E42: 131202 | F42: 1 | G42: 1 | H42: 100 | I42: 0 | J42: 0 | K42: 1 | L42: 100 | M42: 0 | N42: 0
B43: LAMBAYEQUE | C43: CHICLAYO | D43: CHICLAYO | E43: 140101 | F43: 0 | G43: 0 | H43: 0 | M43: 0 | N43: 0
D44: LAGUNAS | E44: 140107 | F44: 1 | G44: 0 | H44: 0 | I44: 0 | J44: 0 | K44: 0 | L44: 0 | M44: 0 | N44: 0
B45: LIMA | C45: BARRANCA | D45: SUPE | E45: 150204 | F45: 3 | G45: 1 | H45: 33.33333333 | I45: 1 | J45: 33.33333333 | K45: 0 | L45: 0 | M45: 0 | N45: 0
C46: CAÑETE | D46: CHILCA | E46: 150505 | F46: 0 | G46: 0 | H46: 0 | M46: 0 | N46: 0
D47: COAYLLO | E47: 150506 | F47: 0 | G47: 0 | H47: 0 | M47: 0 | N47: 0
D48: LUNAHUANA | E48: 150508 | F48: 0 | G48: 0 | H48: 0 | M48: 0 | N48: 0
D49: MALA | E49: 150509 | F49: 2 | G49: 0 | H49: 0 | I49: 0 | J49: 0 | K49: 0 | L49: 0 | M49: 0 | N49: 0
C50: HUARAL | D50: AUCALLAMA | E50: 150604 | F50: 2 | G50: 0 | H50: 0 | I50: 0 | J50: 0 | K50: 0 | L50: 0 | M50: 0 | N50: 0
D51: CHANCAY | E51: 150605 | F51: 0 | G51: 0 | H51: 0 | M51: 0 | N51: 0
D52: HUARAL | E52: 150601 | F52: 2 | G52: 1 | H52: 50 | I52: 0 | J52: 0 | K52: 1 | L52: 50 | M52: 0 | N52: 0
C53: HUAURA | D53: HUACHO | E53: 150801 | F53: 0 | G53: 0 | H53: 0 | M53: 0 | N53: 0
D54: HUALMAY | E54: 150805 | F54: 1 | G54: 0 | H54: 0 | I54: 0 | J54: 0 | K54: 0 | L54: 0 | M54: 0 | N54: 0
D55: HUAURA | E55: 150806 | F55: 0 | G55: 0 | H55: 0 | M55: 0 | N55: 0
D56: SAYAN | E56: 150811 | F56: 2 | G56: 0 | H56: 0 | I56: 0 | J56: 0 | K56: 0 | L56: 0 | M56: 0 | N56: 0
D57: VEGUETA | E57: 150812 | F57: 1 | G57: 0 | H57: 0 | I57: 0 | J57: 0 | K57: 0 | L57: 0 | M57: 0 | N57: 0
C58: LIMA | D58: ATE | E58: 150103 | F58: 5 | G58: 2 | H58: 40 | I58: 2 | J58: 40 | K58: 0 | L58: 0 | M58: 0 | N58: 0
D59: CARABAYLLO | E59: 150106 | F59: 1 | G59: 1 | H59: 100 | I59: 1 | J59: 100 | K59: 0 | L59: 0 | M59: 0 | N59: 0
D60: CHORRILLOS | E60: 150108 | F60: 3 | G60: 1 | H60: 33.33333333 | I60: 1 | J60: 33.33333333 | K60: 0 | L60: 0 | M60: 0 | N60: 0
D61: COMAS | E61: 150110 | F61: 3 | G61: 1 | H61: 33.33333333 | I61: 1 | J61: 33.33333333 | K61: 0 | L61: 0 | M61: 0 | N61: 0
D62: EL AGUSTINO | E62: 150111 | F62: 2 | G62: 1 | H62: 50 | I62: 1 | J62: 50 | K62: 0 | L62: 0 | M62: 0 | N62: 0
D63: INDEPENDENCIA | E63: 150112 | F63: 4 | G63: 0 | H63: 0 | I63: 0 | J63: 0 | K63: 0 | L63: 0 | M63: 0 | N63: 0
D64: JESUS MARIA | E64: 150113 | F64: 0 | G64: 0 | H64: 0 | M64: 0 | N64: 0
D65: LA VICTORIA | E65: 150115 | F65: 4 | G65: 1 | H65: 25 | I65: 1 | J65: 25 | K65: 0 | L65: 0 | M65: 0 | N65: 0
D66: LIMA | E66: 150101 | F66: 10 | G66: 2 | H66: 20 | I66: 1 | J66: 10 | K66: 1 | L66: 10 | M66: 0 | N66: 0
D67: LINCE | E67: 150116 | F67: 3 | G67: 1 | H67: 33.33333333 | I67: 1 | J67: 33.33333333 | K67: 0 | L67: 0 | M67: 0 | N67: 0
D68: LOS OLIVOS | E68: 150117 | F68: 10 | G68: 2 | H68: 20 | I68: 1 | J68: 10 | K68: 1 | L68: 10 | M68: 0 | N68: 0
D69: LURIGANCHO | E69: 150118 | F69: 2 | G69: 1 | H69: 50 | I69: 1 | J69: 50 | K69: 0 | L69: 0 | M69: 0 | N69: 0
D70: LURIN | E70: 150119 | F70: 0 | G70: 0 | H70: 0 | M70: 0 | N70: 0
D71: MAGDALENA DEL MAR | E71: 150120 | F71: 2 | G71: 1 | H71: 50 | I71: 1 | J71: 50 | K71: 0 | L71: 0 | M71: 0 | N71: 0
D72: MIRAFLORES | E72: 150122 | F72: 4 | G72: 2 | H72: 50 | I72: 1 | J72: 25 | K72: 1 | L72: 25 | M72: 0 | N72: 0
D73: PACHACAMAC | E73: 150123 | F73: 1 | G73: 0 | H73: 0 | I73: 0 | J73: 0 | K73: 0 | L73: 0 | M73: 0 | N73: 0
D74: PUCUSANA | E74: 150124 | F74: 0 | G74: 0 | H74: 0 | M74: 0 | N74: 0
D75: PUENTE PIEDRA | E75: 150125 | F75: 0 | G75: 0 | H75: 0 | M75: 0 | N75: 0
D76: RIMAC | E76: 150128 | F76: 2 | G76: 1 | H76: 50 | I76: 1 | J76: 50 | K76: 0 | L76: 0 | M76: 0 | N76: 0
D77: SAN BARTOLO | E77: 150129 | F77: 1 | G77: 0 | H77: 0 | I77: 0 | J77: 0 | K77: 0 | L77: 0 | M77: 0 | N77: 0
D78: SAN ISIDRO | E78: 150131 | F78: 0 | G78: 0 | H78: 0 | M78: 0 | N78: 0
D79: SAN JUAN DE LURIGANCHO | E79: 150132 | F79: 26 | G79: 4 | H79: 15.38461538 | I79: 3 | J79: 11.53846154 | K79: 1 | L79: 3.846153846 | M79: 0 | N79: 0
D80: SAN JUAN DE MIRAFLORES | E80: 150133 | F80: 7 | G80: 3 | H80: 42.85714286 | I80: 3 | J80: 42.85714286 | K80: 0 | L80: 0 | M80: 0 | N80: 0
D81: SAN LUIS | E81: 150134 | F81: 0 | G81: 0 | H81: 0 | M81: 0 | N81: 0
D82: SAN MARTIN DE PORRES | E82: 150135 | F82: 11 | G82: 5 | H82: 45.45454545 | I82: 3 | J82: 27.27272727 | K82: 2 | L82: 18.18181818 | M82: 0 | N82: 0
D83: SAN MIGUEL | E83: 150136 | F83: 2 | G83: 0 | H83: 0 | I83: 0 | J83: 0 | K83: 0 | L83: 0 | M83: 0 | N83: 0
D84: SANTA ANITA | E84: 150137 | F84: 5 | G84: 3 | H84: 60 | I84: 2 | J84: 40 | K84: 1 | L84: 20 | M84: 0 | N84: 0
D85: SANTIAGO DE SURCO | E85: 150140 | F85: 5 | G85: 1 | H85: 20 | I85: 1 | J85: 20 | K85: 0 | L85: 0 | M85: 0 | N85: 0
D86: SURQUILLO | E86: 150141 | F86: 0 | G86: 0 | H86: 0 | M86: 0 | N86: 0
D87: VILLA EL SALVADOR | E87: 150142 | F87: 5 | G87: 3 | H87: 60 | I87: 2 | J87: 40 | K87: 1 | L87: 20 | M87: 0 | N87: 0
D88: VILLA MARIA DEL TRIUNFO | E88: 150143 | F88: 3 | G88: 0 | H88: 0 | I88: 0 | J88: 0 | K88: 0 | L88: 0 | M88: 0 | N88: 0
B89: MOQUEGUA | C89: ILO | D89: ILO | E89: 180301 | F89: 1 | G89: 0 | H89: 0 | I89: 0 | J89: 0 | K89: 0 | L89: 0 | M89: 0 | N89: 0
B90: PIURA | C90: PAITA | D90: COLAN | E90: 200504 | F90: 0 | G90: 0 | H90: 0 | M90: 0 | N90: 0
C91: PIURA | D91: CASTILLA | E91: 200104 | F91: 2 | G91: 0 | H91: 0 | I91: 0 | J91: 0 | K91: 0 | L91: 0 | M91: 0 | N91: 0
D92: PIURA | E92: 200101 | F92: 0 | G92: 0 | H92: 0 | M92: 0 | N92: 0
D93: VEINTISEIS DE OCTUBRE | E93: 200115 | F93: 1 | G93: 0 | H93: 0 | I93: 0 | J93: 0 | K93: 0 | L93: 0 | M93: 0 | N93: 0
C94: SECHURA | D94: SECHURA | E94: 200801 | F94: 0 | G94: 0 | H94: 0 | M94: 0 | N94: 0
C95: SULLANA | D95: SULLANA | E95: 200601 | F95: 0 | G95: 0 | H95: 0 | M95: 0 | N95: 0
C96: TALARA | D96: LOS ORGANOS | E96: 200705 | F96: 0 | G96: 0 | H96: 0 | M96: 0 | N96: 0
D97: MANCORA | E97: 200706 | F97: 1 | G97: 0 | H97: 0 | I97: 0 | J97: 0 | K97: 0 | L97: 0 | M97: 0 | N97: 0
D98: PARIÑAS | E98: 200701 | F98: 0 | G98: 0 | H98: 0 | M98: 0 | N98: 0
B99: SAN MARTIN | C99: RIOJA | D99: NUEVA CAJAMARCA | E99: 220804 | F99: 0 | G99: 0 | H99: 0 | M99: 0 | N99: 0
C100: SAN MARTIN | D100: TARAPOTO | E100: 220901 | F100: 1 | G100: 0 | H100: 0 | I100: 0 | J100: 0 | K100: 0 | L100: 0 | M100: 0 | N100: 0
B101: TACNA | C101: TACNA | D101: ALTO DE LA ALIANZA | E101: 230102 | F101: 0 | G101: 0 | H101: 0 | M101: 0 | N101: 0
D102: CORONEL GREGORIO ALBARRACIN L. | E102: 230110 | F102: 0 | G102: 0 | H102: 0 | M102: 0 | N102: 0
D103: TACNA | E103: 230101 | F103: 2 | G103: 0 | H103: 0 | I103: 0 | J103: 0 | K103: 0 | L103: 0 | M103: 0 | N103: 0
B104: TUMBES | C104: CONTRALMIRANTE VILLAR | D104: ZORRITOS | E104: 240201 | F104: 2 | G104: 0 | H104: 0 | I104: 0 | J104: 0 | K104: 0 | L104: 0 | M104: 0 | N104: 0
C105: TUMBES | D105: CORRALES | E105: 240102 | F105: 0 | G105: 0 | H105: 0 | M105: 0 | N105: 0
D106: PAMPAS DE HOSPITAL | E106: 240104 | F106: 1 | G106: 0 | H106: 0 | I106: 0 | J106: 0 | K106: 0 | L106: 0 | M106: 0 | N106: 0
D107: TUMBES | E107: 240101 | F107: 2 | G107: 2 | H107: 100 | I107: 2 | J107: 100 | K107: 0 | L107: 0 | M107: 0 | N107: 0
B108: PERÚ | F108: =SUM(F7:F107) -> 188 | G108: =SUM(G7:G107) -> 52 | H108: =G108/F108*100 -> 27.65957447 | I108: =SUM(I7:I107) -> 39 | J108: =I108/F108*100 -> 20.74468085 | K108: =SUM(K7:K107) -> 13 | L108: =K108/F108*100 -> 6.914893617 | M108: =SUM(M7:M107) -> 0 | N108: =M108/F108*100 -> 0
B109: Fuente: Sistema de Información SIEN - HIS, 2022.
B110: Instituto Nacional de Salud / Centro Nacional de Alimentación y Nutrición / Dirección Ejecutiva de Vigilancia Alimentaria y Nutricional.

Sheet Anemia 6-59m x DEP
B2: CUADRO N°10 PERÚ: ANEMIA EN NIÑOS EXTRANJEROS ENTRE 6 A 59 MESES QUE ACCEDIERON A LOS ESTABLECIMIENTOS DE SALUD, SEGÚN DEPARTAMENTO DEL ESTABLECIMIENTO DE SALUD
B3: =INICIO!C$8 -> PERIODO: ENERO A MARZO 2022
B5: DEPARTAMENTO | C5: N° DE EVALUADOS | D5: ANEMIA TOTAL | F5: ANEMIA LEVE | H5: ANEMIA MODERADA | J5: ANEMIA SEVERA
D6: N° DE CASOS | E6: % | F6: N° DE CASOS | G6: % | H6: N° DE CASOS | I6: % | J6: N° DE CASOS | K6: %
B7: AMAZONAS | C7: 1 | D7: 0 | E7: 0 | F7: 0 | G7: 0 | H7: 0 | I7: 0 | J7: 0 | K7: 0
B8: ANCASH | C8: 8 | D8: 2 | E8: 25 | F8: 2 | G8: 25 | H8: 0 | I8: 0 | J8: 0 | K8: 0
B9: APURIMAC | C9: 1 | D9: 1 | E9: 100 | F9: 1 | G9: 100 | H9: 0 | I9: 0 | J9: 0 | K9: 0
B10: AREQUIPA | C10: 11 | D10: 1 | E10: 9.090909091 | F10: 0 | G10: 0 | H10: 1 | I10: 9.090909091 | J10: 0 | K10: 0
B11: AYACUCHO | C11: (SD) | D11: (SD) | E11: (SD) | F11: (SD) | G11: (SD) | H11: (SD) | I11: (SD) | J11: (SD) | K11: (SD)
B12: CAJAMARCA | C12: (SD) | D12: (SD) | E12: (SD) | F12: (SD) | G12: (SD) | H12: (SD) | I12: (SD) | J12: (SD) | K12: (SD)
B13: CALLAO | C13: 24 | D13: 9 | E13: 37.5 | F13: 7 | G13: 29.16666667 | H13: 2 | I13: 8.333333333 | J13: 0 | K13: 0
B14: CUSCO | C14: (SD) | D14: (SD) | E14: (SD) | F14: (SD) | G14: (SD) | H14: (SD) | I14: (SD) | J14: (SD) | K14: (SD)
B15: HUANCAVELICA | C15: (SD) | D15: (SD) | E15: (SD) | F15: (SD) | G15: (SD) | H15: (SD) | I15: (SD) | J15: (SD) | K15: (SD)
B16: HUANUCO | C16: (SD) | D16: (SD) | E16: (SD) | F16: (SD) | G16: (SD) | H16: (SD) | I16: (SD) | J16: (SD) | K16: (SD)
B17: ICA | C17: 9 | D17: 2 | E17: 22.22222222 | F17: 2 | G17: 22.22222222 | H17: 0 | I17: 0 | J17: 0 | K17: 0
B18: JUNIN | C18: 2 | D18: 0 | E18: 0 | F18: 0 | G18: 0 | H18: 0 | I18: 0 | J18: 0 | K18: 0
B19: LA LIBERTAD | C19: 27 | D19: 6 | E19: 22.22222222 | F19: 2 | G19: 7.407407407 | H19: 4 | I19: 14.81481481 | J19: 0 | K19: 0
B20: LAMBAYEQUE | C20: 2 | D20: 0 | E20: 0 | F20: 0 | G20: 0 | H20: 0 | I20: 0 | J20: 0 | K20: 0
B21: LIMA | C21: 259 | D21: 48 | E21: 18.53281853 | F21: 37 | G21: 14.28571429 | H21: 11 | I21: 4.247104247 | J21: 0 | K21: 0
B22: LORETO | C22: (SD) | D22: (SD) | E22: (SD) | F22: (SD) | G22: (SD) | H22: (SD) | I22: (SD) | J22: (SD) | K22: (SD)
B23: MADRE DE DIOS | C23: (SD) | D23: (SD) | E23: (SD) | F23: (SD) | G23: (SD) | H23: (SD) | I23: (SD) | J23: (SD) | K23: (SD)
B24: MOQUEGUA | C24: 2 | D24: 0 | E24: 0 | F24: 0 | G24: 0 | H24: 0 | I24: 0 | J24: 0 | K24: 0
B25: PASCO | C25: (SD) | D25: (SD) | E25: (SD) | F25: (SD) | G25: (SD) | H25: (SD) | I25: (SD) | J25: (SD) | K25: (SD)
B26: PIURA | C26: 17 | D26: 2 | E26: 11.76470588 | F26: 2 | G26: 11.76470588 | H26: 0 | I26: 0 | J26: 0 | K26: 0
B27: PUNO | C27: (SD) | D27: (SD) | E27: (SD) | F27: (SD) | G27: (SD) | H27: (SD) | I27: (SD) | J27: (SD) | K27: (SD)
B28: SAN MARTIN | C28: 5 | D28: 2 | E28: 40 | F28: 2 | G28: 40 | H28: 0 | I28: 0 | J28: 0 | K28: 0
B29: TACNA | C29: 11 | D29: 0 | E29: 0 | F29: 0 | G29: 0 | H29: 0 | I29: 0 | J29: 0 | K29: 0
B30: TUMBES | C30: 9 | D30: 2 | E30: 22.22222222 | F30: 2 | G30: 22.22222222 | H30: 0 | I30: 0 | J30: 0 | K30: 0
B31: UCAYALI | C31: (SD) | D31: (SD) | E31: (SD) | F31: (SD) | G31: (SD) | H31: (SD) | I31: (SD) | J31: (SD) | K31: (SD)
B32: PERÚ | C32: =SUM(C7:C31) -> 388 | D32: =SUM(D7:D31) -> 75 | E32: =D32/C32*100 -> 19.32989691 | F32: =SUM(F7:F31) -> 57 | G32: =F32/C32*100 -> 14.69072165 | H32: =SUM(H7:H31) -> 18 | I32: =H32/C32*100 -> 4.639175258 | J32: =SUM(J7:J31) -> 0 | K32: =J32/C32*100 -> 0
B33: Fuente: Sistema de Información SIEN - HIS, 2022.
B34: Instituto Nacional de Salud / Centro Nacional de Alimentación y Nutrición / Dirección Ejecutiva de Vigilancia Alimentaria y Nutricional.
B35: (SD) Departamentos sin registro de NIÑOS EXTRANJEROS.

Sheet Anemia 6-59m x DIRESA
B2: CUADRO N°11 PERÚ: ANEMIA EN NIÑOS EXTRANJEROS ENTRE 6 A 59 MESES QUE ACCEDIERON A LOS ESTABLECIMIENTOS DE SALUD, SEGÚN DIRESA / GERESA / DIRIS
B3: =INICIO!C$8 -> PERIODO: ENERO A MARZO 2022
B5: DIRESA / GERESA / DIRIS | C5: N° DE EVALUADOS | D5: ANEMIA TOTAL | F5: ANEMIA LEVE | H5: ANEMIA MODERADA | J5: ANEMIA SEVERA
D6: N° DE CASOS | E6: % | F6: N° DE CASOS | G6: % | H6: N° DE CASOS | I6: % | J6: N° DE CASOS | K6: %
B7: AMAZONAS | C7: 1 | D7: 0 | E7: 0 | F7: 0 | G7: 0 | H7: 0 | I7: 0 | J7: 0 | K7: 0
B8: ANCASH | C8: 8 | D8: 2 | E8: 25 | F8: 2 | G8: 25 | H8: 0 | I8: 0 | J8: 0 | K8: 0
B9: APURIMAC | C9: 1 | D9: 1 | E9: 100 | F9: 1 | G9: 100 | H9: 0 | I9: 0 | J9: 0 | K9: 0
B10: AREQUIPA | C10: 11 | D10: 1 | E10: 9.090909091 | F10: 0 | G10: 0 | H10: 1 | I10: 9.090909091 | J10: 0 | K10: 0
B11: AYACUCHO | C11: (SD) | D11: (SD) | E11: (SD) | F11: (SD) | G11: (SD) | H11: (SD) | I11: (SD) | J11: (SD) | K11: (SD)
B12: CAJAMARCA | C12: (SD) | D12: (SD) | E12: (SD) | F12: (SD) | G12: (SD) | H12: (SD) | I12: (SD) | J12: (SD) | K12: (SD)
B13: CALLAO | C13: 24 | D13: 9 | E13: 37.5 | F13: 7 | G13: 29.16666667 | H13: 2 | I13: 8.333333333 | J13: 0 | K13: 0
B14: CUSCO | C14: (SD) | D14: (SD) | E14: (SD) | F14: (SD) | G14: (SD) | H14: (SD) | I14: (SD) | J14: (SD) | K14: (SD)
B15: HUANCAVELICA | C15: (SD) | D15: (SD) | E15: (SD) | F15: (SD) | G15: (SD) | H15: (SD) | I15: (SD) | J15: (SD) | K15: (SD)
B16: HUANUCO | C16: (SD) | D16: (SD) | E16: (SD) | F16: (SD) | G16: (SD) | H16: (SD) | I16: (SD) | J16: (SD) | K16: (SD)
B17: ICA | C17: 9 | D17: 2 | E17: 22.22222222 | F17: 2 | G17: 22.22222222 | H17: 0 | I17: 0 | J17: 0 | K17: 0
B18: JUNIN | C18: 2 | D18: 0 | E18: 0 | F18: 0 | G18: 0 | H18: 0 | I18: 0 | J18: 0 | K18: 0
B19: LA LIBERTAD | C19: 27 | D19: 6 | E19: 22.22222222 | F19: 2 | G19: 7.407407407 | H19: 4 | I19: 14.81481481 | J19: 0 | K19: 0
B20: LAMBAYEQUE | C20: 2 | D20: 0 | E20: 0 | F20: 0 | G20: 0 | H20: 0 | I20: 0 | J20: 0 | K20: 0
B21: LIMA DIRIS CENTRO | C21: 111 | D21: 13 | E21: 11.71171171 | F21: 9 | G21: 8.108108108 | H21: 4 | I21: 3.603603604 | J21: 0 | K21: 0
B22: LIMA DIRIS ESTE | C22: 23 | D22: 10 | E22: 43.47826087 | F22: 8 | G22: 34.7826087 | H22: 2 | I22: 8.695652174 | J22: 0 | K22: 0
B23: LIMA DIRIS NORTE | C23: 54 | D23: 13 | E23: 24.07407407 | F23: 10 | G23: 18.51851852 | H23: 3 | I23: 5.555555556 | J23: 0 | K23: 0
B24: LIMA DIRIS SUR | C24: 41 | D24: 10 | E24: 24.3902439 | F24: 9 | G24: 21.95121951 | H24: 1 | I24: 2.43902439 | J24: 0 | K24: 0
B25: LIMA PROVINCIAS | C25: 30 | D25: 2 | E25: 6.666666667 | F25: 1 | G25: 3.333333333 | H25: 1 | I25: 3.333333333 | J25: 0 | K25: 0
B26: LORETO | C26: (SD) | D26: (SD) | E26: (SD) | F26: (SD) | G26: (SD) | H26: (SD) | I26: (SD) | J26: (SD) | K26: (SD)
B27: MADRE DE DIOS | C27: (SD) | D27: (SD) | E27: (SD) | F27: (SD) | G27: (SD) | H27: (SD) | I27: (SD) | J27: (SD) | K27: (SD)
B28: MOQUEGUA | C28: 2 | D28: 0 | E28: 0 | F28: 0 | G28: 0 | H28: 0 | I28: 0 | J28: 0 | K28: 0
B29: PASCO | C29: (SD) | D29: (SD) | E29: (SD) | F29: (SD) | G29: (SD) | H29: (SD) | I29: (SD) | J29: (SD) | K29: (SD)
B30: PIURA | C30: 17 | D30: 2 | E30: 11.76470588 | F30: 2 | G30: 11.76470588 | H30: 0 | I30: 0 | J30: 0 | K30: 0
B31: PUNO | C31: (SD) | D31: (SD) | E31: (SD) | F31: (SD) | G31: (SD) | H31: (SD) | I31: (SD) | J31: (SD) | K31: (SD)
B32: SAN MARTIN | C32: 5 | D32: 2 | E32: 40 | F32: 2 | G32: 40 | H32: 0 | I32: 0 | J32: 0 | K32: 0
B33: TACNA | C33: 11 | D33: 0 | E33: 0 | F33: 0 | G33: 0 | H33: 0 | I33: 0 | J33: 0 | K33: 0
B34: TUMBES | C34: 9 | D34: 2 | E34: 22.22222222 | F34: 2 | G34: 22.22222222 | H34: 0 | I34: 0 | J34: 0 | K34: 0
B35: UCAYALI | C35: (SD) | D35: (SD) | E35: (SD) | F35: (SD) | G35: (SD) | H35: (SD) | I35: (SD) | J35: (SD) | K35: (SD)
B36: PERÚ | C36: =SUM(C7:C35) -> 388 | D36: =SUM(D7:D35) -> 75 | E36: =D36/C36*100 -> 19.32989691 | F36: =SUM(F7:F35) -> 57 | G36: =F36/C36*100 -> 14.69072165 | H36: =SUM(H7:H35) -> 18 | I36: =H36/C36*100 -> 4.639175258 | J36: =SUM(J7:J35) -> 0 | K36: =J36/C36*100 -> 0
B37: Fuente: Sistema de Información SIEN - HIS, 2022.
B38: Instituto Nacional de Salud / Centro Nacional de Alimentación y Nutrición / Dirección Ejecutiva de Vigilancia Alimentaria y Nutricional.
B39: (SD) Diresas sin registro de NIÑOS EXTRANJEROS.

Sheet Anemia 6-59m x DISTRITO
B2: CUADRO N°12 PERÚ: ANEMIA EN NIÑOS EXTRANJEROS ENTRE 6 A 59 MESES QUE ACCEDIERON A LOS ESTABLECIMIENTOS DE SALUD, SEGÚN DEPARTAMENTO, PROVINCIA Y DISTRITO DEL ESTABLECIMIENTO DE SALUD
B3: =INICIO!C$8 -> PERIODO: ENERO A MARZO 2022
B5: DEPARTAMENTO | C5: PROVINCIA | D5: DISTRITO | E5: UBIGEO | F5: N° DE EVALUADOS | G5: ANEMIA TOTAL | I5: ANEMIA LEVE | K5: ANEMIA MODERADA | M5: ANEMIA SEVERA
G6: N° DE CASOS | H6: % | I6: N° DE CASOS | J6: % | K6: N° DE CASOS | L6: % | M6: N° DE CASOS | N6: %
B7: AMAZONAS | C7: UTCUBAMBA | D7: BAGUA GRANDE | E7: 010701 | F7: 1 | G7: 0 | H7: 0 | I7: 0 | J7: 0 | K7: 0 | L7: 0 | M7: 0 | N7: 0
B8: ANCASH | C8: SANTA | D8: CHIMBOTE | E8: 021801 | F8: 2 | G8: 0 | H8: 0 | I8: 0 | J8: 0 | K8: 0 | L8: 0 | M8: 0 | N8: 0
D9: COISHCO | E9: 021803 | F9: 1 | G9: 0 | H9: 0 | I9: 0 | J9: 0 | K9: 0 | L9: 0 | M9: 0 | N9: 0
D10: NUEVO CHIMBOTE | E10: 021809 | F10: 5 | G10: 2 | H10: 40 | I10: 2 | J10: 40 | K10: 0 | L10: 0 | M10: 0 | N10: 0
B11: APURIMAC | C11: ABANCAY | D11: ABANCAY | E11: 030101 | F11: 1 | G11: 1 | H11: 100 | I11: 1 | J11: 100 | K11: 0 | L11: 0 | M11: 0 | N11: 0
B12: AREQUIPA | C12: AREQUIPA | D12: ALTO SELVA ALEGRE | E12: 040102 | F12: 1 | G12: 0 | H12: 0 | I12: 0 | J12: 0 | K12: 0 | L12: 0 | M12: 0 | N12: 0
D13: CERRO COLORADO | E13: 040104 | F13: 1 | G13: 1 | H13: 100 | I13: 0 | J13: 0 | K13: 1 | L13: 100 | M13: 0 | N13: 0
D14: JACOBO HUNTER | E14: 040107 | F14: 1 | G14: 0 | H14: 0 | I14: 0 | J14: 0 | K14: 0 | L14: 0 | M14: 0 | N14: 0
D15: MARIANO MELGAR | E15: 040109 | F15: 1 | G15: 0 | H15: 0 | I15: 0 | J15: 0 | K15: 0 | L15: 0 | M15: 0 | N15: 0
D16: MIRAFLORES | E16: 040110 | F16: 1 | G16: 0 | H16: 0 | I16: 0 | J16: 0 | K16: 0 | L16: 0 | M16: 0 | N16: 0
D17: PAUCARPATA | E17: 040112 | F17: 1 | G17: 0 | H17: 0 | I17: 0 | J17: 0 | K17: 0 | L17: 0 | M17: 0 | N17: 0
D18: SOCABAYA | E18: 040122 | F18: 2 | G18: 0 | H18: 0 | I18: 0 | J18: 0 | K18: 0 | L18: 0 | M18: 0 | N18: 0
C19: CAMANA | D19: QUILCA | E19: 040207 | F19: 1 | G19: 0 | H19: 0 | I19: 0 | J19: 0 | K19: 0 | L19: 0 | M19: 0 | N19: 0
C20: CARAVELI | D20: YAUCA | E20: 040313 | F20: 1 | G20: 0 | H20: 0 | I20: 0 | J20: 0 | K20: 0 | L20: 0 | M20: 0 | N20: 0
C21: ISLAY | D21: MOLLENDO | E21: 040701 | F21: 1 | G21: 0 | H21: 0 | I21: 0 | J21: 0 | K21: 0 | L21: 0 | M21: 0 | N21: 0
B22: CALLAO | C22: CALLAO | D22: CALLAO | E22: 070101 | F22: 17 | G22: 7 | H22: 41.17647059 | I22: 6 | J22: 35.29411765 | K22: 1 | L22: 5.882352941 | M22: 0 | N22: 0
D23: CARMEN DE LA LEGUA-REYNOSO | E23: 070103 | F23: 1 | G23: 0 | H23: 0 | I23: 0 | J23: 0 | K23: 0 | L23: 0 | M23: 0 | N23: 0
D24: VENTANILLA | E24: 070106 | F24: 6 | G24: 2 | H24: 33.33333333 | I24: 1 | J24: 16.66666667 | K24: 1 | L24: 16.66666667 | M24: 0 | N24: 0
B25: ICA | C25: ICA | D25: ICA | E25: 110101 | F25: 1 | G25: 0 | H25: 0 | I25: 0 | J25: 0 | K25: 0 | L25: 0 | M25: 0 | N25: 0
D26: PUEBLO NUEVO | E26: 110107 | F26: 1 | G26: 0 | H26: 0 | I26: 0 | J26: 0 | K26: 0 | L26: 0 | M26: 0 | N26: 0
D27: SALAS | E27: 110108 | F27: 1 | G27: 0 | H27: 0 | I27: 0 | J27: 0 | K27: 0 | L27: 0 | M27: 0 | N27: 0
D28: SUBTANJALLA | E28: 110112 | F28: 2 | G28: 1 | H28: 50 | I28: 1 | J28: 50 | K28: 0 | L28: 0 | M28: 0 | N28: 0
D29: TATE | E29: 110113 | F29: 1 | G29: 0 | H29: 0 | I29: 0 | J29: 0 | K29: 0 | L29: 0 | M29: 0 | N29: 0
C30: NAZCA | D30: MARCONA | E30: 110304 | F30: 1 | G30: 1 | H30: 100 | I30: 1 | J30: 100 | K30: 0 | L30: 0 | M30: 0 | N30: 0
C31: PISCO | D31: PARACAS | E31: 110505 | F31: 1 | G31: 0 | H31: 0 | I31: 0 | J31: 0 | K31: 0 | L31: 0 | M31: 0 | N31: 0
D32: PISCO | E32: 110501 | F32: 1 | G32: 0 | H32: 0 | I32: 0 | J32: 0 | K32: 0 | L32: 0 | M32: 0 | N32: 0
B33: JUNIN | C33: SATIPO | D33: PANGOA | E33: 120606 | F33: 2 | G33: 0 | H33: 0 | I33: 0 | J33: 0 | K33: 0 | L33: 0 | M33: 0 | N33: 0
B34: LA LIBERTAD | C34: CHEPEN | D34: CHEPEN | E34: 130401 | F34: 2 | G34: 0 | H34: 0 | I34: 0 | J34: 0 | K34: 0 | L34: 0 | M34: 0 | N34: 0
C35: PACASMAYO | D35: GUADALUPE | E35: 130702 | F35: 2 | G35: 0 | H35: 0 | I35: 0 | J35: 0 | K35: 0 | L35: 0 | M35: 0 | N35: 0
D36: PACASMAYO | E36: 130704 | F36: 3 | G36: 0 | H36: 0 | I36: 0 | J36: 0 | K36: 0 | L36: 0 | M36: 0 | N36: 0
C37: TRUJILLO | D37: FLORENCIA DE MORA | E37: 130103 | F37: 1 | G37: 0 | H37: 0 | I37: 0 | J37: 0 | K37: 0 | L37: 0 | M37: 0 | N37: 0
D38: LA ESPERANZA | E38: 130105 | F38: 2 | G38: 0 | H38: 0 | I38: 0 | J38: 0 | K38: 0 | L38: 0 | M38: 0 | N38: 0
D39: MOCHE | E39: 130107 | F39: 4 | G39: 0 | H39: 0 | I39: 0 | J39: 0 | K39: 0 | L39: 0 | M39: 0 | N39: 0
D40: TRUJILLO | E40: 130101 | F40: 10 | G40: 5 | H40: 50 | I40: 2 | J40: 20 | K40: 3 | L40: 30 | M40: 0 | N40: 0
D41: VICTOR LARCO HERRERA | E41: 130111 | F41: 2 | G41: 0 | H41: 0 | I41: 0 | J41: 0 | K41: 0 | L41: 0 | M41: 0 | N41: 0
C42: VIRU | D42: CHAO | E42: 131202 | F42: 1 | G42: 1 | H42: 100 | I42: 0 | J42: 0 | K42: 1 | L42: 100 | M42: 0 | N42: 0
B43: LAMBAYEQUE | C43: CHICLAYO | D43: CHICLAYO | E43: 140101 | F43: 1 | G43: 0 | H43: 0 | I43: 0 | J43: 0 | K43: 0 | L43: 0 | M43: 0 | N43: 0
D44: LAGUNAS | E44: 140107 | F44: 1 | G44: 0 | H44: 0 | I44: 0 | J44: 0 | K44: 0 | L44: 0 | M44: 0 | N44: 0
B45: LIMA | C45: BARRANCA | D45: SUPE | E45: 150204 | F45: 3 | G45: 1 | H45: 33.33333333 | I45: 1 | J45: 33.33333333 | K45: 0 | L45: 0 | M45: 0 | N45: 0
C46: CAÑETE | D46: CHILCA | E46: 150505 | F46: 1 | G46: 0 | H46: 0 | I46: 0 | J46: 0 | K46: 0 | L46: 0 | M46: 0 | N46: 0
D47: COAYLLO | E47: 150506 | F47: 1 | G47: 0 | H47: 0 | I47: 0 | J47: 0 | K47: 0 | L47: 0 | M47: 0 | N47: 0
D48: LUNAHUANA | E48: 150508 | F48: 1 | G48: 0 | H48: 0 | I48: 0 | J48: 0 | K48: 0 | L48: 0 | M48: 0 | N48: 0
D49: MALA | E49: 150509 | F49: 5 | G49: 0 | H49: 0 | I49: 0 | J49: 0 | K49: 0 | L49: 0 | M49: 0 | N49: 0
C50: HUARAL | D50: AUCALLAMA | E50: 150604 | F50: 2 | G50: 0 | H50: 0 | I50: 0 | J50: 0 | K50: 0 | L50: 0 | M50: 0 | N50: 0
D51: CHANCAY | E51: 150605 | F51: 5 | G51: 0 | H51: 0 | I51: 0 | J51: 0 | K51: 0 | L51: 0 | M51: 0 | N51: 0
D52: HUARAL | E52: 150601 | F52: 4 | G52: 1 | H52: 25 | I52: 0 | J52: 0 | K52: 1 | L52: 25 | M52: 0 | N52: 0
C53: HUAURA | D53: HUACHO | E53: 150801 | F53: 2 | G53: 0 | H53: 0 | I53: 0 | J53: 0 | K53: 0 | L53: 0 | M53: 0 | N53: 0
D54: HUALMAY | E54: 150805 | F54: 2 | G54: 0 | H54: 0 | I54: 0 | J54: 0 | K54: 0 | L54: 0 | M54: 0 | N54: 0
D55: HUAURA | E55: 150806 | F55: 1 | G55: 0 | H55: 0 | I55: 0 | J55: 0 | K55: 0 | L55: 0 | M55: 0 | N55: 0
D56: SAYAN | E56: 150811 | F56: 2 | G56: 0 | H56: 0 | I56: 0 | J56: 0 | K56: 0 | L56: 0 | M56: 0 | N56: 0
D57: VEGUETA | E57: 150812 | F57: 1 | G57: 0 | H57: 0 | I57: 0 | J57: 0 | K57: 0 | L57: 0 | M57: 0 | N57: 0
C58: LIMA | D58: ATE | E58: 150103 | F58: 7 | G58: 2 | H58: 28.57142857 | I58: 2 | J58: 28.57142857 | K58: 0 | L58: 0 | M58: 0 | N58: 0
D59: CARABAYLLO | E59: 150106 | F59: 1 | G59: 1 | H59: 100 | I59: 1 | J59: 100 | K59: 0 | L59: 0 | M59: 0 | N59: 0
D60: CHORRILLOS | E60: 150108 | F60: 6 | G60: 2 | H60: 33.33333333 | I60: 2 | J60: 33.33333333 | K60: 0 | L60: 0 | M60: 0 | N60: 0
D61: COMAS | E61: 150110 | F61: 7 | G61: 1 | H61: 14.28571429 | I61: 1 | J61: 14.28571429 | K61: 0 | L61: 0 | M61: 0 | N61: 0
D62: EL AGUSTINO | E62: 150111 | F62: 3 | G62: 2 | H62: 66.66666667 | I62: 2 | J62: 66.66666667 | K62: 0 | L62: 0 | M62: 0 | N62: 0
D63: INDEPENDENCIA | E63: 150112 | F63: 7 | G63: 2 | H63: 28.57142857 | I63: 2 | J63: 28.57142857 | K63: 0 | L63: 0 | M63: 0 | N63: 0
D64: JESUS MARIA | E64: 150113 | F64: 1 | G64: 0 | H64: 0 | I64: 0 | J64: 0 | K64: 0 | L64: 0 | M64: 0 | N64: 0
D65: LA VICTORIA | E65: 150115 | F65: 7 | G65: 1 | H65: 14.28571429 | I65: 1 | J65: 14.28571429 | K65: 0 | L65: 0 | M65: 0 | N65: 0
D66: LIMA | E66: 150101 | F66: 22 | G66: 3 | H66: 13.63636364 | I66: 2 | J66: 9.090909091 | K66: 1 | L66: 4.545454545
D67: LINCE | E67: 150116 | F67: 3 | G67: 1 | H67: 33.33333333 | I67: 1 | J67: 33.33333333 | K67: 0 | L67: 0
D68: LOS OLIVOS | E68: 150117 | F68: 12 | G68: 2 | H68: 16.66666667 | I68: 1 | J68: 8.333333333 | K68: 1 | L68: 8.333333333
D69: LURIGANCHO | E69: 150118 | F69: 7 | G69: 2 | H69: 28.57142857 | I69: 2 | J69: 28.57142857 | K69: 0 | L69: 0
D70: LURIN | E70: 150119 | F70: 2 | G70: 0 | H70: 0 | I70: 0 | J70: 0 | K70: 0 | L70: 0
D71: MAGDALENA DEL MAR | E71: 150120 | F71: 2 | G71: 1 | H71: 50 | I71: 1 | J71: 50 | K71: 0 | L71: 0
D72: MIRAFLORES | E72: 150122 | F72: 4 | G72: 2 | H72: 50 | I72: 1 | J72: 25 | K72: 1 | L72: 25
D73: PACHACAMAC | E73: 150123 | F73: 3 | G73: 0 | H73: 0 | I73: 0 | J73: 0 | K73: 0 | L73: 0
D74: PUCUSANA | E74: 150124 | F74: 1 | G74: 1 | H74: 100 | I74: 1 | J74: 100 | K74: 0 | L74: 0
D75: PUENTE PIEDRA | E75: 150125 | F75: 1 | G75: 0 | H75: 0 | I75: 0 | J75: 0 | K75: 0 | L75: 0
D76: RIMAC | E76: 150128 | F76: 5 | G76: 1 | H76: 20 | I76: 1 | J76: 20 | K76: 0 | L76: 0
D77: SAN BARTOLO | E77: 150129 | F77: 1 | G77: 0 | H77: 0 | I77: 0 | J77: 0 | K77: 0 | L77: 0
D78: SAN ISIDRO | E78: 150131 | F78: 2 | G78: 0 | H78: 0 | I78: 0 | J78: 0 | K78: 0 | L78: 0
D79: SAN JUAN DE LURIGANCHO | E79: 150132 | F79: 54 | G79: 5 | H79: 9.259259259 | I79: 3 | J79: 5.555555556 | K79: 2 | L79: 3.703703704
D80: SAN JUAN DE MIRAFLORES | E80: 150133 | F80: 7 | G80: 3 | H80: 42.85714286 | I80: 3 | J80: 42.85714286 | K80: 0 | L80: 0
D81: SAN LUIS | E81: 150134 | F81: 1 | G81: 0 | H81: 0 | I81: 0 | J81: 0 | K81: 0 | L81: 0
D82: SAN MARTIN DE PORRES | E82: 150135 | F82: 21 | G82: 6 | H82: 28.57142857 | I82: 4 | J82: 19.04761905 | K82: 2 | L82: 9.523809524
D83: SAN MIGUEL | E83: 150136 | F83: 13 | G83: 0 | H83: 0 | I83: 0 | J83: 0 | K83: 0 | L83: 0
D84: SANTA ANITA | E84: 150137 | F84: 6 | G84: 4 | H84: 66.66666667 | I84: 2 | J84: 33.33333333 | K84: 2 | L84: 33.33333333
D85: SANTIAGO DE SURCO | E85: 150140 | F85: 11 | G85: 1 | H85: 9.090909091 | I85: 1 | J85: 9.090909091 | K85: 0 | L85: 0
D86: SURQUILLO | E86: 150141 | F86: 2 | G86: 0 | H86: 0 | I86: 0 | J86: 0 | K86: 0 | L86: 0
D87: VILLA EL SALVADOR | E87: 150142 | F87: 7 | G87: 3 | H87: 42.85714286 | I87: 2 | J87: 28.57142857 | K87: 1 | L87: 14.28571429
D88: VILLA MARIA DEL TRIUNFO | E88: 150143 | F88: 3 | G88: 0 | H88: 0 | I88: 0 | J88: 0 | K88: 0 | L88: 0
B89: MOQUEGUA | C89: ILO | D89: ILO | E89: 180301 | F89: 2 | G89: 0 | H89: 0 | I89: 0 | J89: 0 | K89: 0 | L89: 0
B90: PIURA | C90: PAITA | D90: COLAN | E90: 200504 | F90: 1 | G90: 0 | H90: 0 | I90: 0 | J90: 0 | K90: 0 | L90: 0
C91: PIURA | D91: CASTILLA | E91: 200104 | F91: 2 | G91: 0 | H91: 0 | I91: 0 | J91: 0 | K91: 0 | L91: 0
D92: PIURA | E92: 200101 | F92: 3 | G92: 0 | H92: 0 | I92: 0 | J92: 0 | K92: 0 | L92: 0
D93: VEINTISEIS DE OCTUBRE | E93: 200115 | F93: 5 | G93: 1 | H93: 20 | I93: 1 | J93: 20 | K93: 0 | L93: 0
C94: SECHURA | D94: SECHURA | E94: 200801 | F94: 1 | G94: 0 | H94: 0 | I94: 0 | J94: 0 | K94: 0 | L94: 0
C95: SULLANA | D95: SULLANA | E95: 200601 | F95: 2 | G95: 1 | H95: 50 | I95: 1 | J95: 50 | K95: 0 | L95: 0
C96: TALARA | D96: LOS ORGANOS | E96: 200705 | F96: 1 | G96: 0 | H96: 0 | I96: 0 | J96: 0 | K96: 0 | L96: 0
D97: MANCORA | E97: 200706 | F97: 1 | G97: 0 | H97: 0 | I97: 0 | J97: 0 | K97: 0 | L97: 0
D98: PARIÑAS | E98: 200701 | F98: 1 | G98: 0 | H98: 0 | I98: 0 | J98: 0 | K98: 0 | L98: 0
B99: SAN MARTIN | C99: RIOJA | D99: NUEVA CAJAMARCA | E99: 220804 | F99: 3 | G99: 2 | H99: 66.66666667 | I99: 2 | J99: 66.66666667 | K99: 0 | L99: 0
C100: SAN MARTIN | D100: TARAPOTO | E100: 220901 | F100: 2 | G100: 0 | H100: 0 | I100: 0 | J100: 0 | K100: 0 | L100: 0
B101: TACNA | C101: TACNA | D101: ALTO DE LA ALIANZA | E101: 230102 | F101: 1 | G101: 0 | H101: 0 | I101: 0 | J101: 0 | K101: 0 | L101: 0
D102: CORONEL GREGORIO ALBARRACIN L. | E102: 230110 | F102: 1 | G102: 0 | H102: 0 | I102: 0 | J102: 0 | K102: 0 | L102: 0
D103: TACNA | E103: 230101 | F103: 9 | G103: 0 | H103: 0 | I103: 0 | J103: 0 | K103: 0 | L103: 0 | M103: 0 | N103: 0
B104: TUMBES | C104: CONTRALMIRANTE VILLAR | D104: ZORRITOS | E104: 240201 | F104: 2 | G104: 0 | H104: 0 | I104: 0 | J104: 0 | K104: 0 | L104: 0 | M104: 0 | N104: 0
C105: TUMBES | D105: CORRALES | E105: 240102 | F105: 2 | G105: 0 | H105: 0 | I105: 0 | J105: 0 | K105: 0 | L105: 0 | M105: 0 | N105: 0
D106: PAMPAS DE HOSPITAL | E106: 240104 | F106: 1 | G106: 0 | H106: 0 | I106: 0 | J106: 0 | K106: 0 | L106: 0 | M106: 0 | N106: 0
D107: TUMBES | E107: 240101 | F107: 4 | G107: 2 | H107: 50 | I107: 2 | J107: 50 | K107: 0 | L107: 0 | M107: 0 | N107: 0
B108: PERÚ | F108: =SUM(F7:F107) -> 388 | G108: =SUM(G7:G107) -> 75 | H108: =G108/F108*100 -> 19.32989691 | I108: =SUM(I7:I107) -> 57 | J108: =I108/F108*100 -> 14.69072165 | K108: =SUM(K7:K107) -> 18 | L108: =K108/F108*100 -> 4.639175258 | M108: =SUM(M7:M107) -> 0 | N108: =M108/F108*100 -> 0
B109: Fuente: Sistema de Información SIEN - HIS, 2022.
B110: Instituto Nacional de Salud / Centro Nacional de Alimentación y Nutrición / Dirección Ejecutiva de Vigilancia Alimentaria y Nutricional.
